{"text_format":"1","workbook":"xlsx","n_sheets":5,"sheets":["Grupos","Horarios","Original","Auxiliar","qry MODULOS HORARIOS"],"not_rendered":{"charts":0,"images":1,"macros":1,"external_links":0,"defined_names":12,"comments":0,"pivot_tables":0},"unopened":[],"bounds":{"document_bytes":16777216,"sheet_cells":100000,"rows_first":2000,"rows_last":500,"rows_between":2000,"halvings":0,"cell_chars":16384,"cell_head_chars":4096},"cells_cut":0,"cells_raw":0,"read":"whole","date_system":"1900"}

{"sheet":"Grupos","index":0,"n_rows":8,"n_cols":5,"rows_kept":8,"cut":false,"hidden":false,"merged":[]}
[]
[null,"Hoy es:",{"$f":"TODAY()","v":"2019-04-30"}]
[]
["ID GRUPO","Horario","Fecha Inicio","Posición en ORIGINAL","HOY"]
[1,"Horario A","2019-01-14",{"$f":"tbl_GRUPOS[[#This Row],[ID GRUPO]]+7","v":8},{"$f":"HOY","v":"2019-04-30"}]
[2,"Horario B","2019-01-14",{"$f":"tbl_GRUPOS[[#This Row],[ID GRUPO]]+7","v":9},{"$f":"HOY","v":"2019-04-30"}]
[3,"Horario C","2019-01-18",{"$f":"tbl_GRUPOS[[#This Row],[ID GRUPO]]+7","v":10},{"$f":"HOY","v":"2019-04-30"}]
[4,"Horario B","2019-01-21",{"$f":"tbl_GRUPOS[[#This Row],[ID GRUPO]]+7","v":11},{"$f":"HOY","v":"2019-04-30"}]

{"sheet":"Horarios","index":1,"n_rows":4,"n_cols":6,"rows_kept":4,"cut":false,"hidden":false,"merged":[]}
["ID_HORARIO","Horas por sesión","Cant de Sesiones","Inicia en","Finaliza en","Posición ID HORARIO"]
["Horario A",2,8,"Clase 1","Clase 8",{"$f":"MATCH(tbl_HORARIOS[[#This Row],[ID_HORARIO]],Campos,0)","v":4}]
["Horario B",3,5,"Clase 1","Clase 5",{"$f":"MATCH(tbl_HORARIOS[[#This Row],[ID_HORARIO]],Campos,0)","v":5}]
["Horario C",3,5,"Clase 1","Clase 5",{"$f":"MATCH(tbl_HORARIOS[[#This Row],[ID_HORARIO]],Campos,0)","v":6}]

{"sheet":"Original","index":2,"n_rows":367,"n_cols":80,"rows_kept":367,"cut":false,"hidden":false,"merged":[]}
["FECHAS","Festivo","DIASEM","Horario A","Horario B","Horario C","1","2","3","4","5","6","7","8","9","10","11","12","13","14","15","16","17","18","19","20","21","22","23","24","25","26","27","28","29","30","31","32","33","34","35","36","37","38","39","40","41","42","43","44","45","46","47","48","49","50","51","52","53","54","55","56","57","58","59","60","61","62","63","64","65","66","67","68","69","70","71","72"]
["2018-12-31","Festivo",{"$f":"WEEKDAY(A2,2)","v":1},{"$f":"IF(AND(tbl_ORIGINAL[[#This Row],[Festivo]]=\"No Festivo\",tbl_ORIGINAL[[#This Row],[DIASEM]]<=5),1,0)","v":0},{"$f":"IF(AND(tbl_ORIGINAL[[#This Row],[Festivo]]=\"No Festivo\",tbl_ORIGINAL[[#This Row],[DIASEM]]<=4),1,0)","v":0},{"$f":"IF(AND(tbl_ORIGINAL[[#This Row],[Festivo]]=\"No Festivo\",OR(tbl_ORIGINAL[[#This Row],[DIASEM]]=5,tbl_ORIGINAL[[#This Row],[DIASEM]]=6)),1,0)","v":0},null,null,null,null,null,null,null,null,null,null,null,null,null,null,null,null,null,null,null,null,null,null,null,null,null,null,null,null,null,null,null,null,null,null,null,null,null,null,null,null,null,null,null,null,null,null,null,null,null,null,null,null,null,null,null,null,null,null,null,null,null,null,null,null,null,null,null,null,null,null,null,null,null,43465]
["2019-01-01","Festivo",{"$f":"WEEKDAY(A3,2)","v":2},{"$f":"IF(AND(tbl_ORIGINAL[[#This Row],[Festivo]]=\"No Festivo\",tbl_ORIGINAL[[#This Row],[DIASEM]]<=5),1,0)","v":0},{"$f":"IF(AND(tbl_ORIGINAL[[#This Row],[Festivo]]=\"No Festivo\",tbl_ORIGINAL[[#This Row],[DIASEM]]<=4),1,0)","v":0},{"$f":"IF(AND(tbl_ORIGINAL[[#This Row],[Festivo]]=\"No Festivo\",OR(tbl_ORIGINAL[[#This Row],[DIASEM]]=5,tbl_ORIGINAL[[#This Row],[DIASEM]]=6)),1,0)","v":0}]
["2019-01-02","No festivo",{"$f":"WEEKDAY(A4,2)","v":3},{"$f":"IF(AND(tbl_ORIGINAL[[#This Row],[Festivo]]=\"No Festivo\",tbl_ORIGINAL[[#This Row],[DIASEM]]<=5),1,0)","v":1},{"$f":"IF(AND(tbl_ORIGINAL[[#This Row],[Festivo]]=\"No Festivo\",tbl_ORIGINAL[[#This Row],[DIASEM]]<=4),1,0)","v":1},{"$f":"IF(AND(tbl_ORIGINAL[[#This Row],[Festivo]]=\"No Festivo\",OR(tbl_ORIGINAL[[#This Row],[DIASEM]]=5,tbl_ORIGINAL[[#This Row],[DIASEM]]=6)),1,0)","v":0}]
["2019-01-03","No festivo",4,{"$f":"IF(AND(tbl_ORIGINAL[[#This Row],[Festivo]]=\"No Festivo\",tbl_ORIGINAL[[#This Row],[DIASEM]]<=5),1,0)","v":1},{"$f":"IF(AND(tbl_ORIGINAL[[#This Row],[Festivo]]=\"No Festivo\",tbl_ORIGINAL[[#This Row],[DIASEM]]<=4),1,0)","v":1},{"$f":"IF(AND(tbl_ORIGINAL[[#This Row],[Festivo]]=\"No Festivo\",OR(tbl_ORIGINAL[[#This Row],[DIASEM]]=5,tbl_ORIGINAL[[#This Row],[DIASEM]]=6)),1,0)","v":0}]
["2019-01-04","No festivo",5,{"$f":"IF(AND(tbl_ORIGINAL[[#This Row],[Festivo]]=\"No Festivo\",tbl_ORIGINAL[[#This Row],[DIASEM]]<=5),1,0)","v":1},{"$f":"IF(AND(tbl_ORIGINAL[[#This Row],[Festivo]]=\"No Festivo\",tbl_ORIGINAL[[#This Row],[DIASEM]]<=4),1,0)","v":0},{"$f":"IF(AND(tbl_ORIGINAL[[#This Row],[Festivo]]=\"No Festivo\",OR(tbl_ORIGINAL[[#This Row],[DIASEM]]=5,tbl_ORIGINAL[[#This Row],[DIASEM]]=6)),1,0)","v":1}]
["2019-01-05","No festivo",6,{"$f":"IF(AND(tbl_ORIGINAL[[#This Row],[Festivo]]=\"No Festivo\",tbl_ORIGINAL[[#This Row],[DIASEM]]<=5),1,0)","v":0},{"$f":"IF(AND(tbl_ORIGINAL[[#This Row],[Festivo]]=\"No Festivo\",tbl_ORIGINAL[[#This Row],[DIASEM]]<=4),1,0)","v":0},{"$f":"IF(AND(tbl_ORIGINAL[[#This Row],[Festivo]]=\"No Festivo\",OR(tbl_ORIGINAL[[#This Row],[DIASEM]]=5,tbl_ORIGINAL[[#This Row],[DIASEM]]=6)),1,0)","v":1}]
["2019-01-06","No festivo",7,{"$f":"IF(AND(tbl_ORIGINAL[[#This Row],[Festivo]]=\"No Festivo\",tbl_ORIGINAL[[#This Row],[DIASEM]]<=5),1,0)","v":0},{"$f":"IF(AND(tbl_ORIGINAL[[#This Row],[Festivo]]=\"No Festivo\",tbl_ORIGINAL[[#This Row],[DIASEM]]<=4),1,0)","v":0},{"$f":"IF(AND(tbl_ORIGINAL[[#This Row],[Festivo]]=\"No Festivo\",OR(tbl_ORIGINAL[[#This Row],[DIASEM]]=5,tbl_ORIGINAL[[#This Row],[DIASEM]]=6)),1,0)","v":0}]
["2019-01-07","Festivo",1,{"$f":"IF(AND(tbl_ORIGINAL[[#This Row],[Festivo]]=\"No Festivo\",tbl_ORIGINAL[[#This Row],[DIASEM]]<=5),1,0)","v":0},{"$f":"IF(AND(tbl_ORIGINAL[[#This Row],[Festivo]]=\"No Festivo\",tbl_ORIGINAL[[#This Row],[DIASEM]]<=4),1,0)","v":0},{"$f":"IF(AND(tbl_ORIGINAL[[#This Row],[Festivo]]=\"No Festivo\",OR(tbl_ORIGINAL[[#This Row],[DIASEM]]=5,tbl_ORIGINAL[[#This Row],[DIASEM]]=6)),1,0)","v":0}]
["2019-01-08","No festivo",2,{"$f":"IF(AND(tbl_ORIGINAL[[#This Row],[Festivo]]=\"No Festivo\",tbl_ORIGINAL[[#This Row],[DIASEM]]<=5),1,0)","v":1},{"$f":"IF(AND(tbl_ORIGINAL[[#This Row],[Festivo]]=\"No Festivo\",tbl_ORIGINAL[[#This Row],[DIASEM]]<=4),1,0)","v":1},{"$f":"IF(AND(tbl_ORIGINAL[[#This Row],[Festivo]]=\"No Festivo\",OR(tbl_ORIGINAL[[#This Row],[DIASEM]]=5,tbl_ORIGINAL[[#This Row],[DIASEM]]=6)),1,0)","v":0}]
["2019-01-09","No festivo",3,{"$f":"IF(AND(tbl_ORIGINAL[[#This Row],[Festivo]]=\"No Festivo\",tbl_ORIGINAL[[#This Row],[DIASEM]]<=5),1,0)","v":1},{"$f":"IF(AND(tbl_ORIGINAL[[#This Row],[Festivo]]=\"No Festivo\",tbl_ORIGINAL[[#This Row],[DIASEM]]<=4),1,0)","v":1},{"$f":"IF(AND(tbl_ORIGINAL[[#This Row],[Festivo]]=\"No Festivo\",OR(tbl_ORIGINAL[[#This Row],[DIASEM]]=5,tbl_ORIGINAL[[#This Row],[DIASEM]]=6)),1,0)","v":0}]
["2019-01-10","No festivo",4,{"$f":"IF(AND(tbl_ORIGINAL[[#This Row],[Festivo]]=\"No Festivo\",tbl_ORIGINAL[[#This Row],[DIASEM]]<=5),1,0)","v":1},{"$f":"IF(AND(tbl_ORIGINAL[[#This Row],[Festivo]]=\"No Festivo\",tbl_ORIGINAL[[#This Row],[DIASEM]]<=4),1,0)","v":1},{"$f":"IF(AND(tbl_ORIGINAL[[#This Row],[Festivo]]=\"No Festivo\",OR(tbl_ORIGINAL[[#This Row],[DIASEM]]=5,tbl_ORIGINAL[[#This Row],[DIASEM]]=6)),1,0)","v":0}]
["2019-01-11","No festivo",5,{"$f":"IF(AND(tbl_ORIGINAL[[#This Row],[Festivo]]=\"No Festivo\",tbl_ORIGINAL[[#This Row],[DIASEM]]<=5),1,0)","v":1},{"$f":"IF(AND(tbl_ORIGINAL[[#This Row],[Festivo]]=\"No Festivo\",tbl_ORIGINAL[[#This Row],[DIASEM]]<=4),1,0)","v":0},{"$f":"IF(AND(tbl_ORIGINAL[[#This Row],[Festivo]]=\"No Festivo\",OR(tbl_ORIGINAL[[#This Row],[DIASEM]]=5,tbl_ORIGINAL[[#This Row],[DIASEM]]=6)),1,0)","v":1}]
["2019-01-12","No festivo",6,{"$f":"IF(AND(tbl_ORIGINAL[[#This Row],[Festivo]]=\"No Festivo\",tbl_ORIGINAL[[#This Row],[DIASEM]]<=5),1,0)","v":0},{"$f":"IF(AND(tbl_ORIGINAL[[#This Row],[Festivo]]=\"No Festivo\",tbl_ORIGINAL[[#This Row],[DIASEM]]<=4),1,0)","v":0},{"$f":"IF(AND(tbl_ORIGINAL[[#This Row],[Festivo]]=\"No Festivo\",OR(tbl_ORIGINAL[[#This Row],[DIASEM]]=5,tbl_ORIGINAL[[#This Row],[DIASEM]]=6)),1,0)","v":1}]
["2019-01-13","No festivo",7,{"$f":"IF(AND(tbl_ORIGINAL[[#This Row],[Festivo]]=\"No Festivo\",tbl_ORIGINAL[[#This Row],[DIASEM]]<=5),1,0)","v":0},{"$f":"IF(AND(tbl_ORIGINAL[[#This Row],[Festivo]]=\"No Festivo\",tbl_ORIGINAL[[#This Row],[DIASEM]]<=4),1,0)","v":0},{"$f":"IF(AND(tbl_ORIGINAL[[#This Row],[Festivo]]=\"No Festivo\",OR(tbl_ORIGINAL[[#This Row],[DIASEM]]=5,tbl_ORIGINAL[[#This Row],[DIASEM]]=6)),1,0)","v":0}]
["2019-01-14","No festivo",1,{"$f":"IF(AND(tbl_ORIGINAL[[#This Row],[Festivo]]=\"No Festivo\",tbl_ORIGINAL[[#This Row],[DIASEM]]<=5),1,0)","v":1},{"$f":"IF(AND(tbl_ORIGINAL[[#This Row],[Festivo]]=\"No Festivo\",tbl_ORIGINAL[[#This Row],[DIASEM]]<=4),1,0)","v":1},{"$f":"IF(AND(tbl_ORIGINAL[[#This Row],[Festivo]]=\"No Festivo\",OR(tbl_ORIGINAL[[#This Row],[DIASEM]]=5,tbl_ORIGINAL[[#This Row],[DIASEM]]=6)),1,0)","v":0}]
["2019-01-15","No festivo",2,{"$f":"IF(AND(tbl_ORIGINAL[[#This Row],[Festivo]]=\"No Festivo\",tbl_ORIGINAL[[#This Row],[DIASEM]]<=5),1,0)","v":1},{"$f":"IF(AND(tbl_ORIGINAL[[#This Row],[Festivo]]=\"No Festivo\",tbl_ORIGINAL[[#This Row],[DIASEM]]<=4),1,0)","v":1},{"$f":"IF(AND(tbl_ORIGINAL[[#This Row],[Festivo]]=\"No Festivo\",OR(tbl_ORIGINAL[[#This Row],[DIASEM]]=5,tbl_ORIGINAL[[#This Row],[DIASEM]]=6)),1,0)","v":0}]
["2019-01-16","No festivo",3,{"$f":"IF(AND(tbl_ORIGINAL[[#This Row],[Festivo]]=\"No Festivo\",tbl_ORIGINAL[[#This Row],[DIASEM]]<=5),1,0)","v":1},{"$f":"IF(AND(tbl_ORIGINAL[[#This Row],[Festivo]]=\"No Festivo\",tbl_ORIGINAL[[#This Row],[DIASEM]]<=4),1,0)","v":1},{"$f":"IF(AND(tbl_ORIGINAL[[#This Row],[Festivo]]=\"No Festivo\",OR(tbl_ORIGINAL[[#This Row],[DIASEM]]=5,tbl_ORIGINAL[[#This Row],[DIASEM]]=6)),1,0)","v":0}]
["2019-01-17","No festivo",4,{"$f":"IF(AND(tbl_ORIGINAL[[#This Row],[Festivo]]=\"No Festivo\",tbl_ORIGINAL[[#This Row],[DIASEM]]<=5),1,0)","v":1},{"$f":"IF(AND(tbl_ORIGINAL[[#This Row],[Festivo]]=\"No Festivo\",tbl_ORIGINAL[[#This Row],[DIASEM]]<=4),1,0)","v":1},{"$f":"IF(AND(tbl_ORIGINAL[[#This Row],[Festivo]]=\"No Festivo\",OR(tbl_ORIGINAL[[#This Row],[DIASEM]]=5,tbl_ORIGINAL[[#This Row],[DIASEM]]=6)),1,0)","v":0}]
["2019-01-18","No festivo",5,{"$f":"IF(AND(tbl_ORIGINAL[[#This Row],[Festivo]]=\"No Festivo\",tbl_ORIGINAL[[#This Row],[DIASEM]]<=5),1,0)","v":1},{"$f":"IF(AND(tbl_ORIGINAL[[#This Row],[Festivo]]=\"No Festivo\",tbl_ORIGINAL[[#This Row],[DIASEM]]<=4),1,0)","v":0},{"$f":"IF(AND(tbl_ORIGINAL[[#This Row],[Festivo]]=\"No Festivo\",OR(tbl_ORIGINAL[[#This Row],[DIASEM]]=5,tbl_ORIGINAL[[#This Row],[DIASEM]]=6)),1,0)","v":1}]
["2019-01-19","No festivo",6,{"$f":"IF(AND(tbl_ORIGINAL[[#This Row],[Festivo]]=\"No Festivo\",tbl_ORIGINAL[[#This Row],[DIASEM]]<=5),1,0)","v":0},{"$f":"IF(AND(tbl_ORIGINAL[[#This Row],[Festivo]]=\"No Festivo\",tbl_ORIGINAL[[#This Row],[DIASEM]]<=4),1,0)","v":0},{"$f":"IF(AND(tbl_ORIGINAL[[#This Row],[Festivo]]=\"No Festivo\",OR(tbl_ORIGINAL[[#This Row],[DIASEM]]=5,tbl_ORIGINAL[[#This Row],[DIASEM]]=6)),1,0)","v":1}]
["2019-01-20","No festivo",7,{"$f":"IF(AND(tbl_ORIGINAL[[#This Row],[Festivo]]=\"No Festivo\",tbl_ORIGINAL[[#This Row],[DIASEM]]<=5),1,0)","v":0},{"$f":"IF(AND(tbl_ORIGINAL[[#This Row],[Festivo]]=\"No Festivo\",tbl_ORIGINAL[[#This Row],[DIASEM]]<=4),1,0)","v":0},{"$f":"IF(AND(tbl_ORIGINAL[[#This Row],[Festivo]]=\"No Festivo\",OR(tbl_ORIGINAL[[#This Row],[DIASEM]]=5,tbl_ORIGINAL[[#This Row],[DIASEM]]=6)),1,0)","v":0}]
["2019-01-21","No festivo",1,{"$f":"IF(AND(tbl_ORIGINAL[[#This Row],[Festivo]]=\"No Festivo\",tbl_ORIGINAL[[#This Row],[DIASEM]]<=5),1,0)","v":1},{"$f":"IF(AND(tbl_ORIGINAL[[#This Row],[Festivo]]=\"No Festivo\",tbl_ORIGINAL[[#This Row],[DIASEM]]<=4),1,0)","v":1},{"$f":"IF(AND(tbl_ORIGINAL[[#This Row],[Festivo]]=\"No Festivo\",OR(tbl_ORIGINAL[[#This Row],[DIASEM]]=5,tbl_ORIGINAL[[#This Row],[DIASEM]]=6)),1,0)","v":0}]
["2019-01-22","No festivo",2,{"$f":"IF(AND(tbl_ORIGINAL[[#This Row],[Festivo]]=\"No Festivo\",tbl_ORIGINAL[[#This Row],[DIASEM]]<=5),1,0)","v":1},{"$f":"IF(AND(tbl_ORIGINAL[[#This Row],[Festivo]]=\"No Festivo\",tbl_ORIGINAL[[#This Row],[DIASEM]]<=4),1,0)","v":1},{"$f":"IF(AND(tbl_ORIGINAL[[#This Row],[Festivo]]=\"No Festivo\",OR(tbl_ORIGINAL[[#This Row],[DIASEM]]=5,tbl_ORIGINAL[[#This Row],[DIASEM]]=6)),1,0)","v":0}]
["2019-01-23","No festivo",3,{"$f":"IF(AND(tbl_ORIGINAL[[#This Row],[Festivo]]=\"No Festivo\",tbl_ORIGINAL[[#This Row],[DIASEM]]<=5),1,0)","v":1},{"$f":"IF(AND(tbl_ORIGINAL[[#This Row],[Festivo]]=\"No Festivo\",tbl_ORIGINAL[[#This Row],[DIASEM]]<=4),1,0)","v":1},{"$f":"IF(AND(tbl_ORIGINAL[[#This Row],[Festivo]]=\"No Festivo\",OR(tbl_ORIGINAL[[#This Row],[DIASEM]]=5,tbl_ORIGINAL[[#This Row],[DIASEM]]=6)),1,0)","v":0}]
["2019-01-24","No festivo",4,{"$f":"IF(AND(tbl_ORIGINAL[[#This Row],[Festivo]]=\"No Festivo\",tbl_ORIGINAL[[#This Row],[DIASEM]]<=5),1,0)","v":1},{"$f":"IF(AND(tbl_ORIGINAL[[#This Row],[Festivo]]=\"No Festivo\",tbl_ORIGINAL[[#This Row],[DIASEM]]<=4),1,0)","v":1},{"$f":"IF(AND(tbl_ORIGINAL[[#This Row],[Festivo]]=\"No Festivo\",OR(tbl_ORIGINAL[[#This Row],[DIASEM]]=5,tbl_ORIGINAL[[#This Row],[DIASEM]]=6)),1,0)","v":0}]
["2019-01-25","No festivo",5,{"$f":"IF(AND(tbl_ORIGINAL[[#This Row],[Festivo]]=\"No Festivo\",tbl_ORIGINAL[[#This Row],[DIASEM]]<=5),1,0)","v":1},{"$f":"IF(AND(tbl_ORIGINAL[[#This Row],[Festivo]]=\"No Festivo\",tbl_ORIGINAL[[#This Row],[DIASEM]]<=4),1,0)","v":0},{"$f":"IF(AND(tbl_ORIGINAL[[#This Row],[Festivo]]=\"No Festivo\",OR(tbl_ORIGINAL[[#This Row],[DIASEM]]=5,tbl_ORIGINAL[[#This Row],[DIASEM]]=6)),1,0)","v":1}]
["2019-01-26","No festivo",6,{"$f":"IF(AND(tbl_ORIGINAL[[#This Row],[Festivo]]=\"No Festivo\",tbl_ORIGINAL[[#This Row],[DIASEM]]<=5),1,0)","v":0},{"$f":"IF(AND(tbl_ORIGINAL[[#This Row],[Festivo]]=\"No Festivo\",tbl_ORIGINAL[[#This Row],[DIASEM]]<=4),1,0)","v":0},{"$f":"IF(AND(tbl_ORIGINAL[[#This Row],[Festivo]]=\"No Festivo\",OR(tbl_ORIGINAL[[#This Row],[DIASEM]]=5,tbl_ORIGINAL[[#This Row],[DIASEM]]=6)),1,0)","v":1}]
["2019-01-27","No festivo",7,{"$f":"IF(AND(tbl_ORIGINAL[[#This Row],[Festivo]]=\"No Festivo\",tbl_ORIGINAL[[#This Row],[DIASEM]]<=5),1,0)","v":0},{"$f":"IF(AND(tbl_ORIGINAL[[#This Row],[Festivo]]=\"No Festivo\",tbl_ORIGINAL[[#This Row],[DIASEM]]<=4),1,0)","v":0},{"$f":"IF(AND(tbl_ORIGINAL[[#This Row],[Festivo]]=\"No Festivo\",OR(tbl_ORIGINAL[[#This Row],[DIASEM]]=5,tbl_ORIGINAL[[#This Row],[DIASEM]]=6)),1,0)","v":0}]
["2019-01-28","No festivo",1,{"$f":"IF(AND(tbl_ORIGINAL[[#This Row],[Festivo]]=\"No Festivo\",tbl_ORIGINAL[[#This Row],[DIASEM]]<=5),1,0)","v":1},{"$f":"IF(AND(tbl_ORIGINAL[[#This Row],[Festivo]]=\"No Festivo\",tbl_ORIGINAL[[#This Row],[DIASEM]]<=4),1,0)","v":1},{"$f":"IF(AND(tbl_ORIGINAL[[#This Row],[Festivo]]=\"No Festivo\",OR(tbl_ORIGINAL[[#This Row],[DIASEM]]=5,tbl_ORIGINAL[[#This Row],[DIASEM]]=6)),1,0)","v":0}]
["2019-01-29","No festivo",2,{"$f":"IF(AND(tbl_ORIGINAL[[#This Row],[Festivo]]=\"No Festivo\",tbl_ORIGINAL[[#This Row],[DIASEM]]<=5),1,0)","v":1},{"$f":"IF(AND(tbl_ORIGINAL[[#This Row],[Festivo]]=\"No Festivo\",tbl_ORIGINAL[[#This Row],[DIASEM]]<=4),1,0)","v":1},{"$f":"IF(AND(tbl_ORIGINAL[[#This Row],[Festivo]]=\"No Festivo\",OR(tbl_ORIGINAL[[#This Row],[DIASEM]]=5,tbl_ORIGINAL[[#This Row],[DIASEM]]=6)),1,0)","v":0}]
["2019-01-30","No festivo",3,{"$f":"IF(AND(tbl_ORIGINAL[[#This Row],[Festivo]]=\"No Festivo\",tbl_ORIGINAL[[#This Row],[DIASEM]]<=5),1,0)","v":1},{"$f":"IF(AND(tbl_ORIGINAL[[#This Row],[Festivo]]=\"No Festivo\",tbl_ORIGINAL[[#This Row],[DIASEM]]<=4),1,0)","v":1},{"$f":"IF(AND(tbl_ORIGINAL[[#This Row],[Festivo]]=\"No Festivo\",OR(tbl_ORIGINAL[[#This Row],[DIASEM]]=5,tbl_ORIGINAL[[#This Row],[DIASEM]]=6)),1,0)","v":0}]
["2019-01-31","No festivo",4,{"$f":"IF(AND(tbl_ORIGINAL[[#This Row],[Festivo]]=\"No Festivo\",tbl_ORIGINAL[[#This Row],[DIASEM]]<=5),1,0)","v":1},{"$f":"IF(AND(tbl_ORIGINAL[[#This Row],[Festivo]]=\"No Festivo\",tbl_ORIGINAL[[#This Row],[DIASEM]]<=4),1,0)","v":1},{"$f":"IF(AND(tbl_ORIGINAL[[#This Row],[Festivo]]=\"No Festivo\",OR(tbl_ORIGINAL[[#This Row],[DIASEM]]=5,tbl_ORIGINAL[[#This Row],[DIASEM]]=6)),1,0)","v":0}]
["2019-02-01","No festivo",5,{"$f":"IF(AND(tbl_ORIGINAL[[#This Row],[Festivo]]=\"No Festivo\",tbl_ORIGINAL[[#This Row],[DIASEM]]<=5),1,0)","v":1},{"$f":"IF(AND(tbl_ORIGINAL[[#This Row],[Festivo]]=\"No Festivo\",tbl_ORIGINAL[[#This Row],[DIASEM]]<=4),1,0)","v":0},{"$f":"IF(AND(tbl_ORIGINAL[[#This Row],[Festivo]]=\"No Festivo\",OR(tbl_ORIGINAL[[#This Row],[DIASEM]]=5,tbl_ORIGINAL[[#This Row],[DIASEM]]=6)),1,0)","v":1}]
["2019-02-02","No festivo",6,{"$f":"IF(AND(tbl_ORIGINAL[[#This Row],[Festivo]]=\"No Festivo\",tbl_ORIGINAL[[#This Row],[DIASEM]]<=5),1,0)","v":0},{"$f":"IF(AND(tbl_ORIGINAL[[#This Row],[Festivo]]=\"No Festivo\",tbl_ORIGINAL[[#This Row],[DIASEM]]<=4),1,0)","v":0},{"$f":"IF(AND(tbl_ORIGINAL[[#This Row],[Festivo]]=\"No Festivo\",OR(tbl_ORIGINAL[[#This Row],[DIASEM]]=5,tbl_ORIGINAL[[#This Row],[DIASEM]]=6)),1,0)","v":1}]
["2019-02-03","No festivo",7,{"$f":"IF(AND(tbl_ORIGINAL[[#This Row],[Festivo]]=\"No Festivo\",tbl_ORIGINAL[[#This Row],[DIASEM]]<=5),1,0)","v":0},{"$f":"IF(AND(tbl_ORIGINAL[[#This Row],[Festivo]]=\"No Festivo\",tbl_ORIGINAL[[#This Row],[DIASEM]]<=4),1,0)","v":0},{"$f":"IF(AND(tbl_ORIGINAL[[#This Row],[Festivo]]=\"No Festivo\",OR(tbl_ORIGINAL[[#This Row],[DIASEM]]=5,tbl_ORIGINAL[[#This Row],[DIASEM]]=6)),1,0)","v":0}]
["2019-02-04","No festivo",1,{"$f":"IF(AND(tbl_ORIGINAL[[#This Row],[Festivo]]=\"No Festivo\",tbl_ORIGINAL[[#This Row],[DIASEM]]<=5),1,0)","v":1},{"$f":"IF(AND(tbl_ORIGINAL[[#This Row],[Festivo]]=\"No Festivo\",tbl_ORIGINAL[[#This Row],[DIASEM]]<=4),1,0)","v":1},{"$f":"IF(AND(tbl_ORIGINAL[[#This Row],[Festivo]]=\"No Festivo\",OR(tbl_ORIGINAL[[#This Row],[DIASEM]]=5,tbl_ORIGINAL[[#This Row],[DIASEM]]=6)),1,0)","v":0}]
["2019-02-05","No festivo",2,{"$f":"IF(AND(tbl_ORIGINAL[[#This Row],[Festivo]]=\"No Festivo\",tbl_ORIGINAL[[#This Row],[DIASEM]]<=5),1,0)","v":1},{"$f":"IF(AND(tbl_ORIGINAL[[#This Row],[Festivo]]=\"No Festivo\",tbl_ORIGINAL[[#This Row],[DIASEM]]<=4),1,0)","v":1},{"$f":"IF(AND(tbl_ORIGINAL[[#This Row],[Festivo]]=\"No Festivo\",OR(tbl_ORIGINAL[[#This Row],[DIASEM]]=5,tbl_ORIGINAL[[#This Row],[DIASEM]]=6)),1,0)","v":0}]
["2019-02-06","No festivo",3,{"$f":"IF(AND(tbl_ORIGINAL[[#This Row],[Festivo]]=\"No Festivo\",tbl_ORIGINAL[[#This Row],[DIASEM]]<=5),1,0)","v":1},{"$f":"IF(AND(tbl_ORIGINAL[[#This Row],[Festivo]]=\"No Festivo\",tbl_ORIGINAL[[#This Row],[DIASEM]]<=4),1,0)","v":1},{"$f":"IF(AND(tbl_ORIGINAL[[#This Row],[Festivo]]=\"No Festivo\",OR(tbl_ORIGINAL[[#This Row],[DIASEM]]=5,tbl_ORIGINAL[[#This Row],[DIASEM]]=6)),1,0)","v":0}]
["2019-02-07","No festivo",4,{"$f":"IF(AND(tbl_ORIGINAL[[#This Row],[Festivo]]=\"No Festivo\",tbl_ORIGINAL[[#This Row],[DIASEM]]<=5),1,0)","v":1},{"$f":"IF(AND(tbl_ORIGINAL[[#This Row],[Festivo]]=\"No Festivo\",tbl_ORIGINAL[[#This Row],[DIASEM]]<=4),1,0)","v":1},{"$f":"IF(AND(tbl_ORIGINAL[[#This Row],[Festivo]]=\"No Festivo\",OR(tbl_ORIGINAL[[#This Row],[DIASEM]]=5,tbl_ORIGINAL[[#This Row],[DIASEM]]=6)),1,0)","v":0}]
["2019-02-08","No festivo",5,{"$f":"IF(AND(tbl_ORIGINAL[[#This Row],[Festivo]]=\"No Festivo\",tbl_ORIGINAL[[#This Row],[DIASEM]]<=5),1,0)","v":1},{"$f":"IF(AND(tbl_ORIGINAL[[#This Row],[Festivo]]=\"No Festivo\",tbl_ORIGINAL[[#This Row],[DIASEM]]<=4),1,0)","v":0},{"$f":"IF(AND(tbl_ORIGINAL[[#This Row],[Festivo]]=\"No Festivo\",OR(tbl_ORIGINAL[[#This Row],[DIASEM]]=5,tbl_ORIGINAL[[#This Row],[DIASEM]]=6)),1,0)","v":1}]
["2019-02-09","No festivo",6,{"$f":"IF(AND(tbl_ORIGINAL[[#This Row],[Festivo]]=\"No Festivo\",tbl_ORIGINAL[[#This Row],[DIASEM]]<=5),1,0)","v":0},{"$f":"IF(AND(tbl_ORIGINAL[[#This Row],[Festivo]]=\"No Festivo\",tbl_ORIGINAL[[#This Row],[DIASEM]]<=4),1,0)","v":0},{"$f":"IF(AND(tbl_ORIGINAL[[#This Row],[Festivo]]=\"No Festivo\",OR(tbl_ORIGINAL[[#This Row],[DIASEM]]=5,tbl_ORIGINAL[[#This Row],[DIASEM]]=6)),1,0)","v":1}]
["2019-02-10","No festivo",7,{"$f":"IF(AND(tbl_ORIGINAL[[#This Row],[Festivo]]=\"No Festivo\",tbl_ORIGINAL[[#This Row],[DIASEM]]<=5),1,0)","v":0},{"$f":"IF(AND(tbl_ORIGINAL[[#This Row],[Festivo]]=\"No Festivo\",tbl_ORIGINAL[[#This Row],[DIASEM]]<=4),1,0)","v":0},{"$f":"IF(AND(tbl_ORIGINAL[[#This Row],[Festivo]]=\"No Festivo\",OR(tbl_ORIGINAL[[#This Row],[DIASEM]]=5,tbl_ORIGINAL[[#This Row],[DIASEM]]=6)),1,0)","v":0}]
["2019-02-11","No festivo",1,{"$f":"IF(AND(tbl_ORIGINAL[[#This Row],[Festivo]]=\"No Festivo\",tbl_ORIGINAL[[#This Row],[DIASEM]]<=5),1,0)","v":1},{"$f":"IF(AND(tbl_ORIGINAL[[#This Row],[Festivo]]=\"No Festivo\",tbl_ORIGINAL[[#This Row],[DIASEM]]<=4),1,0)","v":1},{"$f":"IF(AND(tbl_ORIGINAL[[#This Row],[Festivo]]=\"No Festivo\",OR(tbl_ORIGINAL[[#This Row],[DIASEM]]=5,tbl_ORIGINAL[[#This Row],[DIASEM]]=6)),1,0)","v":0}]
["2019-02-12","No festivo",2,{"$f":"IF(AND(tbl_ORIGINAL[[#This Row],[Festivo]]=\"No Festivo\",tbl_ORIGINAL[[#This Row],[DIASEM]]<=5),1,0)","v":1},{"$f":"IF(AND(tbl_ORIGINAL[[#This Row],[Festivo]]=\"No Festivo\",tbl_ORIGINAL[[#This Row],[DIASEM]]<=4),1,0)","v":1},{"$f":"IF(AND(tbl_ORIGINAL[[#This Row],[Festivo]]=\"No Festivo\",OR(tbl_ORIGINAL[[#This Row],[DIASEM]]=5,tbl_ORIGINAL[[#This Row],[DIASEM]]=6)),1,0)","v":0}]
["2019-02-13","No festivo",3,{"$f":"IF(AND(tbl_ORIGINAL[[#This Row],[Festivo]]=\"No Festivo\",tbl_ORIGINAL[[#This Row],[DIASEM]]<=5),1,0)","v":1},{"$f":"IF(AND(tbl_ORIGINAL[[#This Row],[Festivo]]=\"No Festivo\",tbl_ORIGINAL[[#This Row],[DIASEM]]<=4),1,0)","v":1},{"$f":"IF(AND(tbl_ORIGINAL[[#This Row],[Festivo]]=\"No Festivo\",OR(tbl_ORIGINAL[[#This Row],[DIASEM]]=5,tbl_ORIGINAL[[#This Row],[DIASEM]]=6)),1,0)","v":0}]
["2019-02-14","No festivo",4,{"$f":"IF(AND(tbl_ORIGINAL[[#This Row],[Festivo]]=\"No Festivo\",tbl_ORIGINAL[[#This Row],[DIASEM]]<=5),1,0)","v":1},{"$f":"IF(AND(tbl_ORIGINAL[[#This Row],[Festivo]]=\"No Festivo\",tbl_ORIGINAL[[#This Row],[DIASEM]]<=4),1,0)","v":1},{"$f":"IF(AND(tbl_ORIGINAL[[#This Row],[Festivo]]=\"No Festivo\",OR(tbl_ORIGINAL[[#This Row],[DIASEM]]=5,tbl_ORIGINAL[[#This Row],[DIASEM]]=6)),1,0)","v":0}]
["2019-02-15","No festivo",5,{"$f":"IF(AND(tbl_ORIGINAL[[#This Row],[Festivo]]=\"No Festivo\",tbl_ORIGINAL[[#This Row],[DIASEM]]<=5),1,0)","v":1},{"$f":"IF(AND(tbl_ORIGINAL[[#This Row],[Festivo]]=\"No Festivo\",tbl_ORIGINAL[[#This Row],[DIASEM]]<=4),1,0)","v":0},{"$f":"IF(AND(tbl_ORIGINAL[[#This Row],[Festivo]]=\"No Festivo\",OR(tbl_ORIGINAL[[#This Row],[DIASEM]]=5,tbl_ORIGINAL[[#This Row],[DIASEM]]=6)),1,0)","v":1}]
["2019-02-16","No festivo",6,{"$f":"IF(AND(tbl_ORIGINAL[[#This Row],[Festivo]]=\"No Festivo\",tbl_ORIGINAL[[#This Row],[DIASEM]]<=5),1,0)","v":0},{"$f":"IF(AND(tbl_ORIGINAL[[#This Row],[Festivo]]=\"No Festivo\",tbl_ORIGINAL[[#This Row],[DIASEM]]<=4),1,0)","v":0},{"$f":"IF(AND(tbl_ORIGINAL[[#This Row],[Festivo]]=\"No Festivo\",OR(tbl_ORIGINAL[[#This Row],[DIASEM]]=5,tbl_ORIGINAL[[#This Row],[DIASEM]]=6)),1,0)","v":1}]
["2019-02-17","No festivo",7,{"$f":"IF(AND(tbl_ORIGINAL[[#This Row],[Festivo]]=\"No Festivo\",tbl_ORIGINAL[[#This Row],[DIASEM]]<=5),1,0)","v":0},{"$f":"IF(AND(tbl_ORIGINAL[[#This Row],[Festivo]]=\"No Festivo\",tbl_ORIGINAL[[#This Row],[DIASEM]]<=4),1,0)","v":0},{"$f":"IF(AND(tbl_ORIGINAL[[#This Row],[Festivo]]=\"No Festivo\",OR(tbl_ORIGINAL[[#This Row],[DIASEM]]=5,tbl_ORIGINAL[[#This Row],[DIASEM]]=6)),1,0)","v":0}]
["2019-02-18","No festivo",1,{"$f":"IF(AND(tbl_ORIGINAL[[#This Row],[Festivo]]=\"No Festivo\",tbl_ORIGINAL[[#This Row],[DIASEM]]<=5),1,0)","v":1},{"$f":"IF(AND(tbl_ORIGINAL[[#This Row],[Festivo]]=\"No Festivo\",tbl_ORIGINAL[[#This Row],[DIASEM]]<=4),1,0)","v":1},{"$f":"IF(AND(tbl_ORIGINAL[[#This Row],[Festivo]]=\"No Festivo\",OR(tbl_ORIGINAL[[#This Row],[DIASEM]]=5,tbl_ORIGINAL[[#This Row],[DIASEM]]=6)),1,0)","v":0}]
["2019-02-19","No festivo",2,{"$f":"IF(AND(tbl_ORIGINAL[[#This Row],[Festivo]]=\"No Festivo\",tbl_ORIGINAL[[#This Row],[DIASEM]]<=5),1,0)","v":1},{"$f":"IF(AND(tbl_ORIGINAL[[#This Row],[Festivo]]=\"No Festivo\",tbl_ORIGINAL[[#This Row],[DIASEM]]<=4),1,0)","v":1},{"$f":"IF(AND(tbl_ORIGINAL[[#This Row],[Festivo]]=\"No Festivo\",OR(tbl_ORIGINAL[[#This Row],[DIASEM]]=5,tbl_ORIGINAL[[#This Row],[DIASEM]]=6)),1,0)","v":0}]
["2019-02-20","No festivo",3,{"$f":"IF(AND(tbl_ORIGINAL[[#This Row],[Festivo]]=\"No Festivo\",tbl_ORIGINAL[[#This Row],[DIASEM]]<=5),1,0)","v":1},{"$f":"IF(AND(tbl_ORIGINAL[[#This Row],[Festivo]]=\"No Festivo\",tbl_ORIGINAL[[#This Row],[DIASEM]]<=4),1,0)","v":1},{"$f":"IF(AND(tbl_ORIGINAL[[#This Row],[Festivo]]=\"No Festivo\",OR(tbl_ORIGINAL[[#This Row],[DIASEM]]=5,tbl_ORIGINAL[[#This Row],[DIASEM]]=6)),1,0)","v":0}]
["2019-02-21","No festivo",4,{"$f":"IF(AND(tbl_ORIGINAL[[#This Row],[Festivo]]=\"No Festivo\",tbl_ORIGINAL[[#This Row],[DIASEM]]<=5),1,0)","v":1},{"$f":"IF(AND(tbl_ORIGINAL[[#This Row],[Festivo]]=\"No Festivo\",tbl_ORIGINAL[[#This Row],[DIASEM]]<=4),1,0)","v":1},{"$f":"IF(AND(tbl_ORIGINAL[[#This Row],[Festivo]]=\"No Festivo\",OR(tbl_ORIGINAL[[#This Row],[DIASEM]]=5,tbl_ORIGINAL[[#This Row],[DIASEM]]=6)),1,0)","v":0}]
["2019-02-22","No festivo",5,{"$f":"IF(AND(tbl_ORIGINAL[[#This Row],[Festivo]]=\"No Festivo\",tbl_ORIGINAL[[#This Row],[DIASEM]]<=5),1,0)","v":1},{"$f":"IF(AND(tbl_ORIGINAL[[#This Row],[Festivo]]=\"No Festivo\",tbl_ORIGINAL[[#This Row],[DIASEM]]<=4),1,0)","v":0},{"$f":"IF(AND(tbl_ORIGINAL[[#This Row],[Festivo]]=\"No Festivo\",OR(tbl_ORIGINAL[[#This Row],[DIASEM]]=5,tbl_ORIGINAL[[#This Row],[DIASEM]]=6)),1,0)","v":1}]
["2019-02-23","No festivo",6,{"$f":"IF(AND(tbl_ORIGINAL[[#This Row],[Festivo]]=\"No Festivo\",tbl_ORIGINAL[[#This Row],[DIASEM]]<=5),1,0)","v":0},{"$f":"IF(AND(tbl_ORIGINAL[[#This Row],[Festivo]]=\"No Festivo\",tbl_ORIGINAL[[#This Row],[DIASEM]]<=4),1,0)","v":0},{"$f":"IF(AND(tbl_ORIGINAL[[#This Row],[Festivo]]=\"No Festivo\",OR(tbl_ORIGINAL[[#This Row],[DIASEM]]=5,tbl_ORIGINAL[[#This Row],[DIASEM]]=6)),1,0)","v":1}]
["2019-02-24","No festivo",7,{"$f":"IF(AND(tbl_ORIGINAL[[#This Row],[Festivo]]=\"No Festivo\",tbl_ORIGINAL[[#This Row],[DIASEM]]<=5),1,0)","v":0},{"$f":"IF(AND(tbl_ORIGINAL[[#This Row],[Festivo]]=\"No Festivo\",tbl_ORIGINAL[[#This Row],[DIASEM]]<=4),1,0)","v":0},{"$f":"IF(AND(tbl_ORIGINAL[[#This Row],[Festivo]]=\"No Festivo\",OR(tbl_ORIGINAL[[#This Row],[DIASEM]]=5,tbl_ORIGINAL[[#This Row],[DIASEM]]=6)),1,0)","v":0}]
["2019-02-25","No festivo",1,{"$f":"IF(AND(tbl_ORIGINAL[[#This Row],[Festivo]]=\"No Festivo\",tbl_ORIGINAL[[#This Row],[DIASEM]]<=5),1,0)","v":1},{"$f":"IF(AND(tbl_ORIGINAL[[#This Row],[Festivo]]=\"No Festivo\",tbl_ORIGINAL[[#This Row],[DIASEM]]<=4),1,0)","v":1},{"$f":"IF(AND(tbl_ORIGINAL[[#This Row],[Festivo]]=\"No Festivo\",OR(tbl_ORIGINAL[[#This Row],[DIASEM]]=5,tbl_ORIGINAL[[#This Row],[DIASEM]]=6)),1,0)","v":0}]
["2019-02-26","No festivo",2,{"$f":"IF(AND(tbl_ORIGINAL[[#This Row],[Festivo]]=\"No Festivo\",tbl_ORIGINAL[[#This Row],[DIASEM]]<=5),1,0)","v":1},{"$f":"IF(AND(tbl_ORIGINAL[[#This Row],[Festivo]]=\"No Festivo\",tbl_ORIGINAL[[#This Row],[DIASEM]]<=4),1,0)","v":1},{"$f":"IF(AND(tbl_ORIGINAL[[#This Row],[Festivo]]=\"No Festivo\",OR(tbl_ORIGINAL[[#This Row],[DIASEM]]=5,tbl_ORIGINAL[[#This Row],[DIASEM]]=6)),1,0)","v":0}]
["2019-02-27","No festivo",3,{"$f":"IF(AND(tbl_ORIGINAL[[#This Row],[Festivo]]=\"No Festivo\",tbl_ORIGINAL[[#This Row],[DIASEM]]<=5),1,0)","v":1},{"$f":"IF(AND(tbl_ORIGINAL[[#This Row],[Festivo]]=\"No Festivo\",tbl_ORIGINAL[[#This Row],[DIASEM]]<=4),1,0)","v":1},{"$f":"IF(AND(tbl_ORIGINAL[[#This Row],[Festivo]]=\"No Festivo\",OR(tbl_ORIGINAL[[#This Row],[DIASEM]]=5,tbl_ORIGINAL[[#This Row],[DIASEM]]=6)),1,0)","v":0}]
["2019-02-28","No festivo",4,{"$f":"IF(AND(tbl_ORIGINAL[[#This Row],[Festivo]]=\"No Festivo\",tbl_ORIGINAL[[#This Row],[DIASEM]]<=5),1,0)","v":1},{"$f":"IF(AND(tbl_ORIGINAL[[#This Row],[Festivo]]=\"No Festivo\",tbl_ORIGINAL[[#This Row],[DIASEM]]<=4),1,0)","v":1},{"$f":"IF(AND(tbl_ORIGINAL[[#This Row],[Festivo]]=\"No Festivo\",OR(tbl_ORIGINAL[[#This Row],[DIASEM]]=5,tbl_ORIGINAL[[#This Row],[DIASEM]]=6)),1,0)","v":0}]
["2019-03-01","No festivo",5,{"$f":"IF(AND(tbl_ORIGINAL[[#This Row],[Festivo]]=\"No Festivo\",tbl_ORIGINAL[[#This Row],[DIASEM]]<=5),1,0)","v":1},{"$f":"IF(AND(tbl_ORIGINAL[[#This Row],[Festivo]]=\"No Festivo\",tbl_ORIGINAL[[#This Row],[DIASEM]]<=4),1,0)","v":0},{"$f":"IF(AND(tbl_ORIGINAL[[#This Row],[Festivo]]=\"No Festivo\",OR(tbl_ORIGINAL[[#This Row],[DIASEM]]=5,tbl_ORIGINAL[[#This Row],[DIASEM]]=6)),1,0)","v":1}]
["2019-03-02","No festivo",6,{"$f":"IF(AND(tbl_ORIGINAL[[#This Row],[Festivo]]=\"No Festivo\",tbl_ORIGINAL[[#This Row],[DIASEM]]<=5),1,0)","v":0},{"$f":"IF(AND(tbl_ORIGINAL[[#This Row],[Festivo]]=\"No Festivo\",tbl_ORIGINAL[[#This Row],[DIASEM]]<=4),1,0)","v":0},{"$f":"IF(AND(tbl_ORIGINAL[[#This Row],[Festivo]]=\"No Festivo\",OR(tbl_ORIGINAL[[#This Row],[DIASEM]]=5,tbl_ORIGINAL[[#This Row],[DIASEM]]=6)),1,0)","v":1}]
["2019-03-03","No festivo",7,{"$f":"IF(AND(tbl_ORIGINAL[[#This Row],[Festivo]]=\"No Festivo\",tbl_ORIGINAL[[#This Row],[DIASEM]]<=5),1,0)","v":0},{"$f":"IF(AND(tbl_ORIGINAL[[#This Row],[Festivo]]=\"No Festivo\",tbl_ORIGINAL[[#This Row],[DIASEM]]<=4),1,0)","v":0},{"$f":"IF(AND(tbl_ORIGINAL[[#This Row],[Festivo]]=\"No Festivo\",OR(tbl_ORIGINAL[[#This Row],[DIASEM]]=5,tbl_ORIGINAL[[#This Row],[DIASEM]]=6)),1,0)","v":0}]
["2019-03-04","No festivo",1,{"$f":"IF(AND(tbl_ORIGINAL[[#This Row],[Festivo]]=\"No Festivo\",tbl_ORIGINAL[[#This Row],[DIASEM]]<=5),1,0)","v":1},{"$f":"IF(AND(tbl_ORIGINAL[[#This Row],[Festivo]]=\"No Festivo\",tbl_ORIGINAL[[#This Row],[DIASEM]]<=4),1,0)","v":1},{"$f":"IF(AND(tbl_ORIGINAL[[#This Row],[Festivo]]=\"No Festivo\",OR(tbl_ORIGINAL[[#This Row],[DIASEM]]=5,tbl_ORIGINAL[[#This Row],[DIASEM]]=6)),1,0)","v":0}]
["2019-03-05","No festivo",2,{"$f":"IF(AND(tbl_ORIGINAL[[#This Row],[Festivo]]=\"No Festivo\",tbl_ORIGINAL[[#This Row],[DIASEM]]<=5),1,0)","v":1},{"$f":"IF(AND(tbl_ORIGINAL[[#This Row],[Festivo]]=\"No Festivo\",tbl_ORIGINAL[[#This Row],[DIASEM]]<=4),1,0)","v":1},{"$f":"IF(AND(tbl_ORIGINAL[[#This Row],[Festivo]]=\"No Festivo\",OR(tbl_ORIGINAL[[#This Row],[DIASEM]]=5,tbl_ORIGINAL[[#This Row],[DIASEM]]=6)),1,0)","v":0}]
["2019-03-06","No festivo",3,{"$f":"IF(AND(tbl_ORIGINAL[[#This Row],[Festivo]]=\"No Festivo\",tbl_ORIGINAL[[#This Row],[DIASEM]]<=5),1,0)","v":1},{"$f":"IF(AND(tbl_ORIGINAL[[#This Row],[Festivo]]=\"No Festivo\",tbl_ORIGINAL[[#This Row],[DIASEM]]<=4),1,0)","v":1},{"$f":"IF(AND(tbl_ORIGINAL[[#This Row],[Festivo]]=\"No Festivo\",OR(tbl_ORIGINAL[[#This Row],[DIASEM]]=5,tbl_ORIGINAL[[#This Row],[DIASEM]]=6)),1,0)","v":0}]
["2019-03-07","No festivo",{"$f":"WEEKDAY(A68,2)","v":4},{"$f":"IF(AND(tbl_ORIGINAL[[#This Row],[Festivo]]=\"No Festivo\",tbl_ORIGINAL[[#This Row],[DIASEM]]<=5),1,0)","v":1},{"$f":"IF(AND(tbl_ORIGINAL[[#This Row],[Festivo]]=\"No Festivo\",tbl_ORIGINAL[[#This Row],[DIASEM]]<=4),1,0)","v":1},{"$f":"IF(AND(tbl_ORIGINAL[[#This Row],[Festivo]]=\"No Festivo\",OR(tbl_ORIGINAL[[#This Row],[DIASEM]]=5,tbl_ORIGINAL[[#This Row],[DIASEM]]=6)),1,0)","v":0}]
["2019-03-08","No festivo",5,{"$f":"IF(AND(tbl_ORIGINAL[[#This Row],[Festivo]]=\"No Festivo\",tbl_ORIGINAL[[#This Row],[DIASEM]]<=5),1,0)","v":1},{"$f":"IF(AND(tbl_ORIGINAL[[#This Row],[Festivo]]=\"No Festivo\",tbl_ORIGINAL[[#This Row],[DIASEM]]<=4),1,0)","v":0},{"$f":"IF(AND(tbl_ORIGINAL[[#This Row],[Festivo]]=\"No Festivo\",OR(tbl_ORIGINAL[[#This Row],[DIASEM]]=5,tbl_ORIGINAL[[#This Row],[DIASEM]]=6)),1,0)","v":1}]
["2019-03-09","No festivo",6,{"$f":"IF(AND(tbl_ORIGINAL[[#This Row],[Festivo]]=\"No Festivo\",tbl_ORIGINAL[[#This Row],[DIASEM]]<=5),1,0)","v":0},{"$f":"IF(AND(tbl_ORIGINAL[[#This Row],[Festivo]]=\"No Festivo\",tbl_ORIGINAL[[#This Row],[DIASEM]]<=4),1,0)","v":0},{"$f":"IF(AND(tbl_ORIGINAL[[#This Row],[Festivo]]=\"No Festivo\",OR(tbl_ORIGINAL[[#This Row],[DIASEM]]=5,tbl_ORIGINAL[[#This Row],[DIASEM]]=6)),1,0)","v":1}]
["2019-03-10","No festivo",7,{"$f":"IF(AND(tbl_ORIGINAL[[#This Row],[Festivo]]=\"No Festivo\",tbl_ORIGINAL[[#This Row],[DIASEM]]<=5),1,0)","v":0},{"$f":"IF(AND(tbl_ORIGINAL[[#This Row],[Festivo]]=\"No Festivo\",tbl_ORIGINAL[[#This Row],[DIASEM]]<=4),1,0)","v":0},{"$f":"IF(AND(tbl_ORIGINAL[[#This Row],[Festivo]]=\"No Festivo\",OR(tbl_ORIGINAL[[#This Row],[DIASEM]]=5,tbl_ORIGINAL[[#This Row],[DIASEM]]=6)),1,0)","v":0}]
["2019-03-11","No festivo",1,{"$f":"IF(AND(tbl_ORIGINAL[[#This Row],[Festivo]]=\"No Festivo\",tbl_ORIGINAL[[#This Row],[DIASEM]]<=5),1,0)","v":1},{"$f":"IF(AND(tbl_ORIGINAL[[#This Row],[Festivo]]=\"No Festivo\",tbl_ORIGINAL[[#This Row],[DIASEM]]<=4),1,0)","v":1},{"$f":"IF(AND(tbl_ORIGINAL[[#This Row],[Festivo]]=\"No Festivo\",OR(tbl_ORIGINAL[[#This Row],[DIASEM]]=5,tbl_ORIGINAL[[#This Row],[DIASEM]]=6)),1,0)","v":0}]
["2019-03-12","No festivo",2,{"$f":"IF(AND(tbl_ORIGINAL[[#This Row],[Festivo]]=\"No Festivo\",tbl_ORIGINAL[[#This Row],[DIASEM]]<=5),1,0)","v":1},{"$f":"IF(AND(tbl_ORIGINAL[[#This Row],[Festivo]]=\"No Festivo\",tbl_ORIGINAL[[#This Row],[DIASEM]]<=4),1,0)","v":1},{"$f":"IF(AND(tbl_ORIGINAL[[#This Row],[Festivo]]=\"No Festivo\",OR(tbl_ORIGINAL[[#This Row],[DIASEM]]=5,tbl_ORIGINAL[[#This Row],[DIASEM]]=6)),1,0)","v":0}]
["2019-03-13","No festivo",3,{"$f":"IF(AND(tbl_ORIGINAL[[#This Row],[Festivo]]=\"No Festivo\",tbl_ORIGINAL[[#This Row],[DIASEM]]<=5),1,0)","v":1},{"$f":"IF(AND(tbl_ORIGINAL[[#This Row],[Festivo]]=\"No Festivo\",tbl_ORIGINAL[[#This Row],[DIASEM]]<=4),1,0)","v":1},{"$f":"IF(AND(tbl_ORIGINAL[[#This Row],[Festivo]]=\"No Festivo\",OR(tbl_ORIGINAL[[#This Row],[DIASEM]]=5,tbl_ORIGINAL[[#This Row],[DIASEM]]=6)),1,0)","v":0}]
["2019-03-14","No festivo",4,{"$f":"IF(AND(tbl_ORIGINAL[[#This Row],[Festivo]]=\"No Festivo\",tbl_ORIGINAL[[#This Row],[DIASEM]]<=5),1,0)","v":1},{"$f":"IF(AND(tbl_ORIGINAL[[#This Row],[Festivo]]=\"No Festivo\",tbl_ORIGINAL[[#This Row],[DIASEM]]<=4),1,0)","v":1},{"$f":"IF(AND(tbl_ORIGINAL[[#This Row],[Festivo]]=\"No Festivo\",OR(tbl_ORIGINAL[[#This Row],[DIASEM]]=5,tbl_ORIGINAL[[#This Row],[DIASEM]]=6)),1,0)","v":0}]
["2019-03-15","No festivo",5,{"$f":"IF(AND(tbl_ORIGINAL[[#This Row],[Festivo]]=\"No Festivo\",tbl_ORIGINAL[[#This Row],[DIASEM]]<=5),1,0)","v":1},{"$f":"IF(AND(tbl_ORIGINAL[[#This Row],[Festivo]]=\"No Festivo\",tbl_ORIGINAL[[#This Row],[DIASEM]]<=4),1,0)","v":0},{"$f":"IF(AND(tbl_ORIGINAL[[#This Row],[Festivo]]=\"No Festivo\",OR(tbl_ORIGINAL[[#This Row],[DIASEM]]=5,tbl_ORIGINAL[[#This Row],[DIASEM]]=6)),1,0)","v":1}]
["2019-03-16","No festivo",6,{"$f":"IF(AND(tbl_ORIGINAL[[#This Row],[Festivo]]=\"No Festivo\",tbl_ORIGINAL[[#This Row],[DIASEM]]<=5),1,0)","v":0},{"$f":"IF(AND(tbl_ORIGINAL[[#This Row],[Festivo]]=\"No Festivo\",tbl_ORIGINAL[[#This Row],[DIASEM]]<=4),1,0)","v":0},{"$f":"IF(AND(tbl_ORIGINAL[[#This Row],[Festivo]]=\"No Festivo\",OR(tbl_ORIGINAL[[#This Row],[DIASEM]]=5,tbl_ORIGINAL[[#This Row],[DIASEM]]=6)),1,0)","v":1}]
["2019-03-17","No festivo",7,{"$f":"IF(AND(tbl_ORIGINAL[[#This Row],[Festivo]]=\"No Festivo\",tbl_ORIGINAL[[#This Row],[DIASEM]]<=5),1,0)","v":0},{"$f":"IF(AND(tbl_ORIGINAL[[#This Row],[Festivo]]=\"No Festivo\",tbl_ORIGINAL[[#This Row],[DIASEM]]<=4),1,0)","v":0},{"$f":"IF(AND(tbl_ORIGINAL[[#This Row],[Festivo]]=\"No Festivo\",OR(tbl_ORIGINAL[[#This Row],[DIASEM]]=5,tbl_ORIGINAL[[#This Row],[DIASEM]]=6)),1,0)","v":0}]
["2019-03-18","No festivo",1,{"$f":"IF(AND(tbl_ORIGINAL[[#This Row],[Festivo]]=\"No Festivo\",tbl_ORIGINAL[[#This Row],[DIASEM]]<=5),1,0)","v":1},{"$f":"IF(AND(tbl_ORIGINAL[[#This Row],[Festivo]]=\"No Festivo\",tbl_ORIGINAL[[#This Row],[DIASEM]]<=4),1,0)","v":1},{"$f":"IF(AND(tbl_ORIGINAL[[#This Row],[Festivo]]=\"No Festivo\",OR(tbl_ORIGINAL[[#This Row],[DIASEM]]=5,tbl_ORIGINAL[[#This Row],[DIASEM]]=6)),1,0)","v":0}]
["2019-03-19","No festivo",2,{"$f":"IF(AND(tbl_ORIGINAL[[#This Row],[Festivo]]=\"No Festivo\",tbl_ORIGINAL[[#This Row],[DIASEM]]<=5),1,0)","v":1},{"$f":"IF(AND(tbl_ORIGINAL[[#This Row],[Festivo]]=\"No Festivo\",tbl_ORIGINAL[[#This Row],[DIASEM]]<=4),1,0)","v":1},{"$f":"IF(AND(tbl_ORIGINAL[[#This Row],[Festivo]]=\"No Festivo\",OR(tbl_ORIGINAL[[#This Row],[DIASEM]]=5,tbl_ORIGINAL[[#This Row],[DIASEM]]=6)),1,0)","v":0}]
["2019-03-20","No festivo",3,{"$f":"IF(AND(tbl_ORIGINAL[[#This Row],[Festivo]]=\"No Festivo\",tbl_ORIGINAL[[#This Row],[DIASEM]]<=5),1,0)","v":1},{"$f":"IF(AND(tbl_ORIGINAL[[#This Row],[Festivo]]=\"No Festivo\",tbl_ORIGINAL[[#This Row],[DIASEM]]<=4),1,0)","v":1},{"$f":"IF(AND(tbl_ORIGINAL[[#This Row],[Festivo]]=\"No Festivo\",OR(tbl_ORIGINAL[[#This Row],[DIASEM]]=5,tbl_ORIGINAL[[#This Row],[DIASEM]]=6)),1,0)","v":0}]
["2019-03-21","No festivo",4,{"$f":"IF(AND(tbl_ORIGINAL[[#This Row],[Festivo]]=\"No Festivo\",tbl_ORIGINAL[[#This Row],[DIASEM]]<=5),1,0)","v":1},{"$f":"IF(AND(tbl_ORIGINAL[[#This Row],[Festivo]]=\"No Festivo\",tbl_ORIGINAL[[#This Row],[DIASEM]]<=4),1,0)","v":1},{"$f":"IF(AND(tbl_ORIGINAL[[#This Row],[Festivo]]=\"No Festivo\",OR(tbl_ORIGINAL[[#This Row],[DIASEM]]=5,tbl_ORIGINAL[[#This Row],[DIASEM]]=6)),1,0)","v":0}]
["2019-03-22","No festivo",5,{"$f":"IF(AND(tbl_ORIGINAL[[#This Row],[Festivo]]=\"No Festivo\",tbl_ORIGINAL[[#This Row],[DIASEM]]<=5),1,0)","v":1},{"$f":"IF(AND(tbl_ORIGINAL[[#This Row],[Festivo]]=\"No Festivo\",tbl_ORIGINAL[[#This Row],[DIASEM]]<=4),1,0)","v":0},{"$f":"IF(AND(tbl_ORIGINAL[[#This Row],[Festivo]]=\"No Festivo\",OR(tbl_ORIGINAL[[#This Row],[DIASEM]]=5,tbl_ORIGINAL[[#This Row],[DIASEM]]=6)),1,0)","v":1}]
["2019-03-23","No festivo",6,{"$f":"IF(AND(tbl_ORIGINAL[[#This Row],[Festivo]]=\"No Festivo\",tbl_ORIGINAL[[#This Row],[DIASEM]]<=5),1,0)","v":0},{"$f":"IF(AND(tbl_ORIGINAL[[#This Row],[Festivo]]=\"No Festivo\",tbl_ORIGINAL[[#This Row],[DIASEM]]<=4),1,0)","v":0},{"$f":"IF(AND(tbl_ORIGINAL[[#This Row],[Festivo]]=\"No Festivo\",OR(tbl_ORIGINAL[[#This Row],[DIASEM]]=5,tbl_ORIGINAL[[#This Row],[DIASEM]]=6)),1,0)","v":1}]
["2019-03-24","No festivo",7,{"$f":"IF(AND(tbl_ORIGINAL[[#This Row],[Festivo]]=\"No Festivo\",tbl_ORIGINAL[[#This Row],[DIASEM]]<=5),1,0)","v":0},{"$f":"IF(AND(tbl_ORIGINAL[[#This Row],[Festivo]]=\"No Festivo\",tbl_ORIGINAL[[#This Row],[DIASEM]]<=4),1,0)","v":0},{"$f":"IF(AND(tbl_ORIGINAL[[#This Row],[Festivo]]=\"No Festivo\",OR(tbl_ORIGINAL[[#This Row],[DIASEM]]=5,tbl_ORIGINAL[[#This Row],[DIASEM]]=6)),1,0)","v":0}]
["2019-03-25","Festivo",1,{"$f":"IF(AND(tbl_ORIGINAL[[#This Row],[Festivo]]=\"No Festivo\",tbl_ORIGINAL[[#This Row],[DIASEM]]<=5),1,0)","v":0},{"$f":"IF(AND(tbl_ORIGINAL[[#This Row],[Festivo]]=\"No Festivo\",tbl_ORIGINAL[[#This Row],[DIASEM]]<=4),1,0)","v":0},{"$f":"IF(AND(tbl_ORIGINAL[[#This Row],[Festivo]]=\"No Festivo\",OR(tbl_ORIGINAL[[#This Row],[DIASEM]]=5,tbl_ORIGINAL[[#This Row],[DIASEM]]=6)),1,0)","v":0}]
["2019-03-26","No festivo",2,{"$f":"IF(AND(tbl_ORIGINAL[[#This Row],[Festivo]]=\"No Festivo\",tbl_ORIGINAL[[#This Row],[DIASEM]]<=5),1,0)","v":1},{"$f":"IF(AND(tbl_ORIGINAL[[#This Row],[Festivo]]=\"No Festivo\",tbl_ORIGINAL[[#This Row],[DIASEM]]<=4),1,0)","v":1},{"$f":"IF(AND(tbl_ORIGINAL[[#This Row],[Festivo]]=\"No Festivo\",OR(tbl_ORIGINAL[[#This Row],[DIASEM]]=5,tbl_ORIGINAL[[#This Row],[DIASEM]]=6)),1,0)","v":0}]
["2019-03-27","No festivo",3,{"$f":"IF(AND(tbl_ORIGINAL[[#This Row],[Festivo]]=\"No Festivo\",tbl_ORIGINAL[[#This Row],[DIASEM]]<=5),1,0)","v":1},{"$f":"IF(AND(tbl_ORIGINAL[[#This Row],[Festivo]]=\"No Festivo\",tbl_ORIGINAL[[#This Row],[DIASEM]]<=4),1,0)","v":1},{"$f":"IF(AND(tbl_ORIGINAL[[#This Row],[Festivo]]=\"No Festivo\",OR(tbl_ORIGINAL[[#This Row],[DIASEM]]=5,tbl_ORIGINAL[[#This Row],[DIASEM]]=6)),1,0)","v":0}]
["2019-03-28","No festivo",4,{"$f":"IF(AND(tbl_ORIGINAL[[#This Row],[Festivo]]=\"No Festivo\",tbl_ORIGINAL[[#This Row],[DIASEM]]<=5),1,0)","v":1},{"$f":"IF(AND(tbl_ORIGINAL[[#This Row],[Festivo]]=\"No Festivo\",tbl_ORIGINAL[[#This Row],[DIASEM]]<=4),1,0)","v":1},{"$f":"IF(AND(tbl_ORIGINAL[[#This Row],[Festivo]]=\"No Festivo\",OR(tbl_ORIGINAL[[#This Row],[DIASEM]]=5,tbl_ORIGINAL[[#This Row],[DIASEM]]=6)),1,0)","v":0}]
["2019-03-29","No festivo",5,{"$f":"IF(AND(tbl_ORIGINAL[[#This Row],[Festivo]]=\"No Festivo\",tbl_ORIGINAL[[#This Row],[DIASEM]]<=5),1,0)","v":1},{"$f":"IF(AND(tbl_ORIGINAL[[#This Row],[Festivo]]=\"No Festivo\",tbl_ORIGINAL[[#This Row],[DIASEM]]<=4),1,0)","v":0},{"$f":"IF(AND(tbl_ORIGINAL[[#This Row],[Festivo]]=\"No Festivo\",OR(tbl_ORIGINAL[[#This Row],[DIASEM]]=5,tbl_ORIGINAL[[#This Row],[DIASEM]]=6)),1,0)","v":1}]
["2019-03-30","No festivo",6,{"$f":"IF(AND(tbl_ORIGINAL[[#This Row],[Festivo]]=\"No Festivo\",tbl_ORIGINAL[[#This Row],[DIASEM]]<=5),1,0)","v":0},{"$f":"IF(AND(tbl_ORIGINAL[[#This Row],[Festivo]]=\"No Festivo\",tbl_ORIGINAL[[#This Row],[DIASEM]]<=4),1,0)","v":0},{"$f":"IF(AND(tbl_ORIGINAL[[#This Row],[Festivo]]=\"No Festivo\",OR(tbl_ORIGINAL[[#This Row],[DIASEM]]=5,tbl_ORIGINAL[[#This Row],[DIASEM]]=6)),1,0)","v":1}]
["2019-03-31","No festivo",7,{"$f":"IF(AND(tbl_ORIGINAL[[#This Row],[Festivo]]=\"No Festivo\",tbl_ORIGINAL[[#This Row],[DIASEM]]<=5),1,0)","v":0},{"$f":"IF(AND(tbl_ORIGINAL[[#This Row],[Festivo]]=\"No Festivo\",tbl_ORIGINAL[[#This Row],[DIASEM]]<=4),1,0)","v":0},{"$f":"IF(AND(tbl_ORIGINAL[[#This Row],[Festivo]]=\"No Festivo\",OR(tbl_ORIGINAL[[#This Row],[DIASEM]]=5,tbl_ORIGINAL[[#This Row],[DIASEM]]=6)),1,0)","v":0}]
["2019-04-01","No festivo",1,{"$f":"IF(AND(tbl_ORIGINAL[[#This Row],[Festivo]]=\"No Festivo\",tbl_ORIGINAL[[#This Row],[DIASEM]]<=5),1,0)","v":1},{"$f":"IF(AND(tbl_ORIGINAL[[#This Row],[Festivo]]=\"No Festivo\",tbl_ORIGINAL[[#This Row],[DIASEM]]<=4),1,0)","v":1},{"$f":"IF(AND(tbl_ORIGINAL[[#This Row],[Festivo]]=\"No Festivo\",OR(tbl_ORIGINAL[[#This Row],[DIASEM]]=5,tbl_ORIGINAL[[#This Row],[DIASEM]]=6)),1,0)","v":0}]
["2019-04-02","No festivo",2,{"$f":"IF(AND(tbl_ORIGINAL[[#This Row],[Festivo]]=\"No Festivo\",tbl_ORIGINAL[[#This Row],[DIASEM]]<=5),1,0)","v":1},{"$f":"IF(AND(tbl_ORIGINAL[[#This Row],[Festivo]]=\"No Festivo\",tbl_ORIGINAL[[#This Row],[DIASEM]]<=4),1,0)","v":1},{"$f":"IF(AND(tbl_ORIGINAL[[#This Row],[Festivo]]=\"No Festivo\",OR(tbl_ORIGINAL[[#This Row],[DIASEM]]=5,tbl_ORIGINAL[[#This Row],[DIASEM]]=6)),1,0)","v":0}]
["2019-04-03","No festivo",3,{"$f":"IF(AND(tbl_ORIGINAL[[#This Row],[Festivo]]=\"No Festivo\",tbl_ORIGINAL[[#This Row],[DIASEM]]<=5),1,0)","v":1},{"$f":"IF(AND(tbl_ORIGINAL[[#This Row],[Festivo]]=\"No Festivo\",tbl_ORIGINAL[[#This Row],[DIASEM]]<=4),1,0)","v":1},{"$f":"IF(AND(tbl_ORIGINAL[[#This Row],[Festivo]]=\"No Festivo\",OR(tbl_ORIGINAL[[#This Row],[DIASEM]]=5,tbl_ORIGINAL[[#This Row],[DIASEM]]=6)),1,0)","v":0}]
["2019-04-04","No festivo",4,{"$f":"IF(AND(tbl_ORIGINAL[[#This Row],[Festivo]]=\"No Festivo\",tbl_ORIGINAL[[#This Row],[DIASEM]]<=5),1,0)","v":1},{"$f":"IF(AND(tbl_ORIGINAL[[#This Row],[Festivo]]=\"No Festivo\",tbl_ORIGINAL[[#This Row],[DIASEM]]<=4),1,0)","v":1},{"$f":"IF(AND(tbl_ORIGINAL[[#This Row],[Festivo]]=\"No Festivo\",OR(tbl_ORIGINAL[[#This Row],[DIASEM]]=5,tbl_ORIGINAL[[#This Row],[DIASEM]]=6)),1,0)","v":0}]
["2019-04-05","No festivo",5,{"$f":"IF(AND(tbl_ORIGINAL[[#This Row],[Festivo]]=\"No Festivo\",tbl_ORIGINAL[[#This Row],[DIASEM]]<=5),1,0)","v":1},{"$f":"IF(AND(tbl_ORIGINAL[[#This Row],[Festivo]]=\"No Festivo\",tbl_ORIGINAL[[#This Row],[DIASEM]]<=4),1,0)","v":0},{"$f":"IF(AND(tbl_ORIGINAL[[#This Row],[Festivo]]=\"No Festivo\",OR(tbl_ORIGINAL[[#This Row],[DIASEM]]=5,tbl_ORIGINAL[[#This Row],[DIASEM]]=6)),1,0)","v":1}]
["2019-04-06","No festivo",6,{"$f":"IF(AND(tbl_ORIGINAL[[#This Row],[Festivo]]=\"No Festivo\",tbl_ORIGINAL[[#This Row],[DIASEM]]<=5),1,0)","v":0},{"$f":"IF(AND(tbl_ORIGINAL[[#This Row],[Festivo]]=\"No Festivo\",tbl_ORIGINAL[[#This Row],[DIASEM]]<=4),1,0)","v":0},{"$f":"IF(AND(tbl_ORIGINAL[[#This Row],[Festivo]]=\"No Festivo\",OR(tbl_ORIGINAL[[#This Row],[DIASEM]]=5,tbl_ORIGINAL[[#This Row],[DIASEM]]=6)),1,0)","v":1}]
["2019-04-07","No festivo",7,{"$f":"IF(AND(tbl_ORIGINAL[[#This Row],[Festivo]]=\"No Festivo\",tbl_ORIGINAL[[#This Row],[DIASEM]]<=5),1,0)","v":0},{"$f":"IF(AND(tbl_ORIGINAL[[#This Row],[Festivo]]=\"No Festivo\",tbl_ORIGINAL[[#This Row],[DIASEM]]<=4),1,0)","v":0},{"$f":"IF(AND(tbl_ORIGINAL[[#This Row],[Festivo]]=\"No Festivo\",OR(tbl_ORIGINAL[[#This Row],[DIASEM]]=5,tbl_ORIGINAL[[#This Row],[DIASEM]]=6)),1,0)","v":0}]
["2019-04-08","No festivo",1,{"$f":"IF(AND(tbl_ORIGINAL[[#This Row],[Festivo]]=\"No Festivo\",tbl_ORIGINAL[[#This Row],[DIASEM]]<=5),1,0)","v":1},{"$f":"IF(AND(tbl_ORIGINAL[[#This Row],[Festivo]]=\"No Festivo\",tbl_ORIGINAL[[#This Row],[DIASEM]]<=4),1,0)","v":1},{"$f":"IF(AND(tbl_ORIGINAL[[#This Row],[Festivo]]=\"No Festivo\",OR(tbl_ORIGINAL[[#This Row],[DIASEM]]=5,tbl_ORIGINAL[[#This Row],[DIASEM]]=6)),1,0)","v":0}]
["2019-04-09","No festivo",2,{"$f":"IF(AND(tbl_ORIGINAL[[#This Row],[Festivo]]=\"No Festivo\",tbl_ORIGINAL[[#This Row],[DIASEM]]<=5),1,0)","v":1},{"$f":"IF(AND(tbl_ORIGINAL[[#This Row],[Festivo]]=\"No Festivo\",tbl_ORIGINAL[[#This Row],[DIASEM]]<=4),1,0)","v":1},{"$f":"IF(AND(tbl_ORIGINAL[[#This Row],[Festivo]]=\"No Festivo\",OR(tbl_ORIGINAL[[#This Row],[DIASEM]]=5,tbl_ORIGINAL[[#This Row],[DIASEM]]=6)),1,0)","v":0}]
["2019-04-10","No festivo",3,{"$f":"IF(AND(tbl_ORIGINAL[[#This Row],[Festivo]]=\"No Festivo\",tbl_ORIGINAL[[#This Row],[DIASEM]]<=5),1,0)","v":1},{"$f":"IF(AND(tbl_ORIGINAL[[#This Row],[Festivo]]=\"No Festivo\",tbl_ORIGINAL[[#This Row],[DIASEM]]<=4),1,0)","v":1},{"$f":"IF(AND(tbl_ORIGINAL[[#This Row],[Festivo]]=\"No Festivo\",OR(tbl_ORIGINAL[[#This Row],[DIASEM]]=5,tbl_ORIGINAL[[#This Row],[DIASEM]]=6)),1,0)","v":0}]
["2019-04-11","No festivo",4,{"$f":"IF(AND(tbl_ORIGINAL[[#This Row],[Festivo]]=\"No Festivo\",tbl_ORIGINAL[[#This Row],[DIASEM]]<=5),1,0)","v":1},{"$f":"IF(AND(tbl_ORIGINAL[[#This Row],[Festivo]]=\"No Festivo\",tbl_ORIGINAL[[#This Row],[DIASEM]]<=4),1,0)","v":1},{"$f":"IF(AND(tbl_ORIGINAL[[#This Row],[Festivo]]=\"No Festivo\",OR(tbl_ORIGINAL[[#This Row],[DIASEM]]=5,tbl_ORIGINAL[[#This Row],[DIASEM]]=6)),1,0)","v":0}]
["2019-04-12","No festivo",5,{"$f":"IF(AND(tbl_ORIGINAL[[#This Row],[Festivo]]=\"No Festivo\",tbl_ORIGINAL[[#This Row],[DIASEM]]<=5),1,0)","v":1},{"$f":"IF(AND(tbl_ORIGINAL[[#This Row],[Festivo]]=\"No Festivo\",tbl_ORIGINAL[[#This Row],[DIASEM]]<=4),1,0)","v":0},{"$f":"IF(AND(tbl_ORIGINAL[[#This Row],[Festivo]]=\"No Festivo\",OR(tbl_ORIGINAL[[#This Row],[DIASEM]]=5,tbl_ORIGINAL[[#This Row],[DIASEM]]=6)),1,0)","v":1}]
["2019-04-13","No festivo",6,{"$f":"IF(AND(tbl_ORIGINAL[[#This Row],[Festivo]]=\"No Festivo\",tbl_ORIGINAL[[#This Row],[DIASEM]]<=5),1,0)","v":0},{"$f":"IF(AND(tbl_ORIGINAL[[#This Row],[Festivo]]=\"No Festivo\",tbl_ORIGINAL[[#This Row],[DIASEM]]<=4),1,0)","v":0},{"$f":"IF(AND(tbl_ORIGINAL[[#This Row],[Festivo]]=\"No Festivo\",OR(tbl_ORIGINAL[[#This Row],[DIASEM]]=5,tbl_ORIGINAL[[#This Row],[DIASEM]]=6)),1,0)","v":1}]
["2019-04-14","No festivo",7,{"$f":"IF(AND(tbl_ORIGINAL[[#This Row],[Festivo]]=\"No Festivo\",tbl_ORIGINAL[[#This Row],[DIASEM]]<=5),1,0)","v":0},{"$f":"IF(AND(tbl_ORIGINAL[[#This Row],[Festivo]]=\"No Festivo\",tbl_ORIGINAL[[#This Row],[DIASEM]]<=4),1,0)","v":0},{"$f":"IF(AND(tbl_ORIGINAL[[#This Row],[Festivo]]=\"No Festivo\",OR(tbl_ORIGINAL[[#This Row],[DIASEM]]=5,tbl_ORIGINAL[[#This Row],[DIASEM]]=6)),1,0)","v":0}]
["2019-04-15","Festivo",1,{"$f":"IF(AND(tbl_ORIGINAL[[#This Row],[Festivo]]=\"No Festivo\",tbl_ORIGINAL[[#This Row],[DIASEM]]<=5),1,0)","v":0},{"$f":"IF(AND(tbl_ORIGINAL[[#This Row],[Festivo]]=\"No Festivo\",tbl_ORIGINAL[[#This Row],[DIASEM]]<=4),1,0)","v":0},{"$f":"IF(AND(tbl_ORIGINAL[[#This Row],[Festivo]]=\"No Festivo\",OR(tbl_ORIGINAL[[#This Row],[DIASEM]]=5,tbl_ORIGINAL[[#This Row],[DIASEM]]=6)),1,0)","v":0}]
["2019-04-16","Festivo",2,{"$f":"IF(AND(tbl_ORIGINAL[[#This Row],[Festivo]]=\"No Festivo\",tbl_ORIGINAL[[#This Row],[DIASEM]]<=5),1,0)","v":0},{"$f":"IF(AND(tbl_ORIGINAL[[#This Row],[Festivo]]=\"No Festivo\",tbl_ORIGINAL[[#This Row],[DIASEM]]<=4),1,0)","v":0},{"$f":"IF(AND(tbl_ORIGINAL[[#This Row],[Festivo]]=\"No Festivo\",OR(tbl_ORIGINAL[[#This Row],[DIASEM]]=5,tbl_ORIGINAL[[#This Row],[DIASEM]]=6)),1,0)","v":0}]
["2019-04-17","Festivo",3,{"$f":"IF(AND(tbl_ORIGINAL[[#This Row],[Festivo]]=\"No Festivo\",tbl_ORIGINAL[[#This Row],[DIASEM]]<=5),1,0)","v":0},{"$f":"IF(AND(tbl_ORIGINAL[[#This Row],[Festivo]]=\"No Festivo\",tbl_ORIGINAL[[#This Row],[DIASEM]]<=4),1,0)","v":0},{"$f":"IF(AND(tbl_ORIGINAL[[#This Row],[Festivo]]=\"No Festivo\",OR(tbl_ORIGINAL[[#This Row],[DIASEM]]=5,tbl_ORIGINAL[[#This Row],[DIASEM]]=6)),1,0)","v":0}]
["2019-04-18","Festivo",4,{"$f":"IF(AND(tbl_ORIGINAL[[#This Row],[Festivo]]=\"No Festivo\",tbl_ORIGINAL[[#This Row],[DIASEM]]<=5),1,0)","v":0},{"$f":"IF(AND(tbl_ORIGINAL[[#This Row],[Festivo]]=\"No Festivo\",tbl_ORIGINAL[[#This Row],[DIASEM]]<=4),1,0)","v":0},{"$f":"IF(AND(tbl_ORIGINAL[[#This Row],[Festivo]]=\"No Festivo\",OR(tbl_ORIGINAL[[#This Row],[DIASEM]]=5,tbl_ORIGINAL[[#This Row],[DIASEM]]=6)),1,0)","v":0}]
["2019-04-19","Festivo",5,{"$f":"IF(AND(tbl_ORIGINAL[[#This Row],[Festivo]]=\"No Festivo\",tbl_ORIGINAL[[#This Row],[DIASEM]]<=5),1,0)","v":0},{"$f":"IF(AND(tbl_ORIGINAL[[#This Row],[Festivo]]=\"No Festivo\",tbl_ORIGINAL[[#This Row],[DIASEM]]<=4),1,0)","v":0},{"$f":"IF(AND(tbl_ORIGINAL[[#This Row],[Festivo]]=\"No Festivo\",OR(tbl_ORIGINAL[[#This Row],[DIASEM]]=5,tbl_ORIGINAL[[#This Row],[DIASEM]]=6)),1,0)","v":0}]
["2019-04-20","Festivo",6,{"$f":"IF(AND(tbl_ORIGINAL[[#This Row],[Festivo]]=\"No Festivo\",tbl_ORIGINAL[[#This Row],[DIASEM]]<=5),1,0)","v":0},{"$f":"IF(AND(tbl_ORIGINAL[[#This Row],[Festivo]]=\"No Festivo\",tbl_ORIGINAL[[#This Row],[DIASEM]]<=4),1,0)","v":0},{"$f":"IF(AND(tbl_ORIGINAL[[#This Row],[Festivo]]=\"No Festivo\",OR(tbl_ORIGINAL[[#This Row],[DIASEM]]=5,tbl_ORIGINAL[[#This Row],[DIASEM]]=6)),1,0)","v":0}]
["2019-04-21","No festivo",7,{"$f":"IF(AND(tbl_ORIGINAL[[#This Row],[Festivo]]=\"No Festivo\",tbl_ORIGINAL[[#This Row],[DIASEM]]<=5),1,0)","v":0},{"$f":"IF(AND(tbl_ORIGINAL[[#This Row],[Festivo]]=\"No Festivo\",tbl_ORIGINAL[[#This Row],[DIASEM]]<=4),1,0)","v":0},{"$f":"IF(AND(tbl_ORIGINAL[[#This Row],[Festivo]]=\"No Festivo\",OR(tbl_ORIGINAL[[#This Row],[DIASEM]]=5,tbl_ORIGINAL[[#This Row],[DIASEM]]=6)),1,0)","v":0}]
["2019-04-22","No festivo",1,{"$f":"IF(AND(tbl_ORIGINAL[[#This Row],[Festivo]]=\"No Festivo\",tbl_ORIGINAL[[#This Row],[DIASEM]]<=5),1,0)","v":1},{"$f":"IF(AND(tbl_ORIGINAL[[#This Row],[Festivo]]=\"No Festivo\",tbl_ORIGINAL[[#This Row],[DIASEM]]<=4),1,0)","v":1},{"$f":"IF(AND(tbl_ORIGINAL[[#This Row],[Festivo]]=\"No Festivo\",OR(tbl_ORIGINAL[[#This Row],[DIASEM]]=5,tbl_ORIGINAL[[#This Row],[DIASEM]]=6)),1,0)","v":0}]
["2019-04-23","No festivo",2,{"$f":"IF(AND(tbl_ORIGINAL[[#This Row],[Festivo]]=\"No Festivo\",tbl_ORIGINAL[[#This Row],[DIASEM]]<=5),1,0)","v":1},{"$f":"IF(AND(tbl_ORIGINAL[[#This Row],[Festivo]]=\"No Festivo\",tbl_ORIGINAL[[#This Row],[DIASEM]]<=4),1,0)","v":1},{"$f":"IF(AND(tbl_ORIGINAL[[#This Row],[Festivo]]=\"No Festivo\",OR(tbl_ORIGINAL[[#This Row],[DIASEM]]=5,tbl_ORIGINAL[[#This Row],[DIASEM]]=6)),1,0)","v":0}]
["2019-04-24","No festivo",3,{"$f":"IF(AND(tbl_ORIGINAL[[#This Row],[Festivo]]=\"No Festivo\",tbl_ORIGINAL[[#This Row],[DIASEM]]<=5),1,0)","v":1},{"$f":"IF(AND(tbl_ORIGINAL[[#This Row],[Festivo]]=\"No Festivo\",tbl_ORIGINAL[[#This Row],[DIASEM]]<=4),1,0)","v":1},{"$f":"IF(AND(tbl_ORIGINAL[[#This Row],[Festivo]]=\"No Festivo\",OR(tbl_ORIGINAL[[#This Row],[DIASEM]]=5,tbl_ORIGINAL[[#This Row],[DIASEM]]=6)),1,0)","v":0}]
["2019-04-25","No festivo",4,{"$f":"IF(AND(tbl_ORIGINAL[[#This Row],[Festivo]]=\"No Festivo\",tbl_ORIGINAL[[#This Row],[DIASEM]]<=5),1,0)","v":1},{"$f":"IF(AND(tbl_ORIGINAL[[#This Row],[Festivo]]=\"No Festivo\",tbl_ORIGINAL[[#This Row],[DIASEM]]<=4),1,0)","v":1},{"$f":"IF(AND(tbl_ORIGINAL[[#This Row],[Festivo]]=\"No Festivo\",OR(tbl_ORIGINAL[[#This Row],[DIASEM]]=5,tbl_ORIGINAL[[#This Row],[DIASEM]]=6)),1,0)","v":0}]
["2019-04-26","No festivo",5,{"$f":"IF(AND(tbl_ORIGINAL[[#This Row],[Festivo]]=\"No Festivo\",tbl_ORIGINAL[[#This Row],[DIASEM]]<=5),1,0)","v":1},{"$f":"IF(AND(tbl_ORIGINAL[[#This Row],[Festivo]]=\"No Festivo\",tbl_ORIGINAL[[#This Row],[DIASEM]]<=4),1,0)","v":0},{"$f":"IF(AND(tbl_ORIGINAL[[#This Row],[Festivo]]=\"No Festivo\",OR(tbl_ORIGINAL[[#This Row],[DIASEM]]=5,tbl_ORIGINAL[[#This Row],[DIASEM]]=6)),1,0)","v":1}]
["2019-04-27","No festivo",6,{"$f":"IF(AND(tbl_ORIGINAL[[#This Row],[Festivo]]=\"No Festivo\",tbl_ORIGINAL[[#This Row],[DIASEM]]<=5),1,0)","v":0},{"$f":"IF(AND(tbl_ORIGINAL[[#This Row],[Festivo]]=\"No Festivo\",tbl_ORIGINAL[[#This Row],[DIASEM]]<=4),1,0)","v":0},{"$f":"IF(AND(tbl_ORIGINAL[[#This Row],[Festivo]]=\"No Festivo\",OR(tbl_ORIGINAL[[#This Row],[DIASEM]]=5,tbl_ORIGINAL[[#This Row],[DIASEM]]=6)),1,0)","v":1}]
["2019-04-28","No festivo",7,{"$f":"IF(AND(tbl_ORIGINAL[[#This Row],[Festivo]]=\"No Festivo\",tbl_ORIGINAL[[#This Row],[DIASEM]]<=5),1,0)","v":0},{"$f":"IF(AND(tbl_ORIGINAL[[#This Row],[Festivo]]=\"No Festivo\",tbl_ORIGINAL[[#This Row],[DIASEM]]<=4),1,0)","v":0},{"$f":"IF(AND(tbl_ORIGINAL[[#This Row],[Festivo]]=\"No Festivo\",OR(tbl_ORIGINAL[[#This Row],[DIASEM]]=5,tbl_ORIGINAL[[#This Row],[DIASEM]]=6)),1,0)","v":0}]
["2019-04-29","No festivo",1,{"$f":"IF(AND(tbl_ORIGINAL[[#This Row],[Festivo]]=\"No Festivo\",tbl_ORIGINAL[[#This Row],[DIASEM]]<=5),1,0)","v":1},{"$f":"IF(AND(tbl_ORIGINAL[[#This Row],[Festivo]]=\"No Festivo\",tbl_ORIGINAL[[#This Row],[DIASEM]]<=4),1,0)","v":1},{"$f":"IF(AND(tbl_ORIGINAL[[#This Row],[Festivo]]=\"No Festivo\",OR(tbl_ORIGINAL[[#This Row],[DIASEM]]=5,tbl_ORIGINAL[[#This Row],[DIASEM]]=6)),1,0)","v":0}]
["2019-04-30","No festivo",2,{"$f":"IF(AND(tbl_ORIGINAL[[#This Row],[Festivo]]=\"No Festivo\",tbl_ORIGINAL[[#This Row],[DIASEM]]<=5),1,0)","v":1},{"$f":"IF(AND(tbl_ORIGINAL[[#This Row],[Festivo]]=\"No Festivo\",tbl_ORIGINAL[[#This Row],[DIASEM]]<=4),1,0)","v":1},{"$f":"IF(AND(tbl_ORIGINAL[[#This Row],[Festivo]]=\"No Festivo\",OR(tbl_ORIGINAL[[#This Row],[DIASEM]]=5,tbl_ORIGINAL[[#This Row],[DIASEM]]=6)),1,0)","v":0}]
["2019-05-01","Festivo",3,{"$f":"IF(AND(tbl_ORIGINAL[[#This Row],[Festivo]]=\"No Festivo\",tbl_ORIGINAL[[#This Row],[DIASEM]]<=5),1,0)","v":0},{"$f":"IF(AND(tbl_ORIGINAL[[#This Row],[Festivo]]=\"No Festivo\",tbl_ORIGINAL[[#This Row],[DIASEM]]<=4),1,0)","v":0},{"$f":"IF(AND(tbl_ORIGINAL[[#This Row],[Festivo]]=\"No Festivo\",OR(tbl_ORIGINAL[[#This Row],[DIASEM]]=5,tbl_ORIGINAL[[#This Row],[DIASEM]]=6)),1,0)","v":0}]
["2019-05-02","No festivo",4,{"$f":"IF(AND(tbl_ORIGINAL[[#This Row],[Festivo]]=\"No Festivo\",tbl_ORIGINAL[[#This Row],[DIASEM]]<=5),1,0)","v":1},{"$f":"IF(AND(tbl_ORIGINAL[[#This Row],[Festivo]]=\"No Festivo\",tbl_ORIGINAL[[#This Row],[DIASEM]]<=4),1,0)","v":1},{"$f":"IF(AND(tbl_ORIGINAL[[#This Row],[Festivo]]=\"No Festivo\",OR(tbl_ORIGINAL[[#This Row],[DIASEM]]=5,tbl_ORIGINAL[[#This Row],[DIASEM]]=6)),1,0)","v":0}]
["2019-05-03","No festivo",5,{"$f":"IF(AND(tbl_ORIGINAL[[#This Row],[Festivo]]=\"No Festivo\",tbl_ORIGINAL[[#This Row],[DIASEM]]<=5),1,0)","v":1},{"$f":"IF(AND(tbl_ORIGINAL[[#This Row],[Festivo]]=\"No Festivo\",tbl_ORIGINAL[[#This Row],[DIASEM]]<=4),1,0)","v":0},{"$f":"IF(AND(tbl_ORIGINAL[[#This Row],[Festivo]]=\"No Festivo\",OR(tbl_ORIGINAL[[#This Row],[DIASEM]]=5,tbl_ORIGINAL[[#This Row],[DIASEM]]=6)),1,0)","v":1}]
["2019-05-04","No festivo",6,{"$f":"IF(AND(tbl_ORIGINAL[[#This Row],[Festivo]]=\"No Festivo\",tbl_ORIGINAL[[#This Row],[DIASEM]]<=5),1,0)","v":0},{"$f":"IF(AND(tbl_ORIGINAL[[#This Row],[Festivo]]=\"No Festivo\",tbl_ORIGINAL[[#This Row],[DIASEM]]<=4),1,0)","v":0},{"$f":"IF(AND(tbl_ORIGINAL[[#This Row],[Festivo]]=\"No Festivo\",OR(tbl_ORIGINAL[[#This Row],[DIASEM]]=5,tbl_ORIGINAL[[#This Row],[DIASEM]]=6)),1,0)","v":1}]
["2019-05-05","No festivo",7,{"$f":"IF(AND(tbl_ORIGINAL[[#This Row],[Festivo]]=\"No Festivo\",tbl_ORIGINAL[[#This Row],[DIASEM]]<=5),1,0)","v":0},{"$f":"IF(AND(tbl_ORIGINAL[[#This Row],[Festivo]]=\"No Festivo\",tbl_ORIGINAL[[#This Row],[DIASEM]]<=4),1,0)","v":0},{"$f":"IF(AND(tbl_ORIGINAL[[#This Row],[Festivo]]=\"No Festivo\",OR(tbl_ORIGINAL[[#This Row],[DIASEM]]=5,tbl_ORIGINAL[[#This Row],[DIASEM]]=6)),1,0)","v":0}]
["2019-05-06","No festivo",1,{"$f":"IF(AND(tbl_ORIGINAL[[#This Row],[Festivo]]=\"No Festivo\",tbl_ORIGINAL[[#This Row],[DIASEM]]<=5),1,0)","v":1},{"$f":"IF(AND(tbl_ORIGINAL[[#This Row],[Festivo]]=\"No Festivo\",tbl_ORIGINAL[[#This Row],[DIASEM]]<=4),1,0)","v":1},{"$f":"IF(AND(tbl_ORIGINAL[[#This Row],[Festivo]]=\"No Festivo\",OR(tbl_ORIGINAL[[#This Row],[DIASEM]]=5,tbl_ORIGINAL[[#This Row],[DIASEM]]=6)),1,0)","v":0}]
["2019-05-07","No festivo",2,{"$f":"IF(AND(tbl_ORIGINAL[[#This Row],[Festivo]]=\"No Festivo\",tbl_ORIGINAL[[#This Row],[DIASEM]]<=5),1,0)","v":1},{"$f":"IF(AND(tbl_ORIGINAL[[#This Row],[Festivo]]=\"No Festivo\",tbl_ORIGINAL[[#This Row],[DIASEM]]<=4),1,0)","v":1},{"$f":"IF(AND(tbl_ORIGINAL[[#This Row],[Festivo]]=\"No Festivo\",OR(tbl_ORIGINAL[[#This Row],[DIASEM]]=5,tbl_ORIGINAL[[#This Row],[DIASEM]]=6)),1,0)","v":0}]
["2019-05-08","No festivo",3,{"$f":"IF(AND(tbl_ORIGINAL[[#This Row],[Festivo]]=\"No Festivo\",tbl_ORIGINAL[[#This Row],[DIASEM]]<=5),1,0)","v":1},{"$f":"IF(AND(tbl_ORIGINAL[[#This Row],[Festivo]]=\"No Festivo\",tbl_ORIGINAL[[#This Row],[DIASEM]]<=4),1,0)","v":1},{"$f":"IF(AND(tbl_ORIGINAL[[#This Row],[Festivo]]=\"No Festivo\",OR(tbl_ORIGINAL[[#This Row],[DIASEM]]=5,tbl_ORIGINAL[[#This Row],[DIASEM]]=6)),1,0)","v":0}]
["2019-05-09","No festivo",4,{"$f":"IF(AND(tbl_ORIGINAL[[#This Row],[Festivo]]=\"No Festivo\",tbl_ORIGINAL[[#This Row],[DIASEM]]<=5),1,0)","v":1},{"$f":"IF(AND(tbl_ORIGINAL[[#This Row],[Festivo]]=\"No Festivo\",tbl_ORIGINAL[[#This Row],[DIASEM]]<=4),1,0)","v":1},{"$f":"IF(AND(tbl_ORIGINAL[[#This Row],[Festivo]]=\"No Festivo\",OR(tbl_ORIGINAL[[#This Row],[DIASEM]]=5,tbl_ORIGINAL[[#This Row],[DIASEM]]=6)),1,0)","v":0}]
["2019-05-10","No festivo",{"$f":"WEEKDAY(A132,2)","v":5},{"$f":"IF(AND(tbl_ORIGINAL[[#This Row],[Festivo]]=\"No Festivo\",tbl_ORIGINAL[[#This Row],[DIASEM]]<=5),1,0)","v":1},{"$f":"IF(AND(tbl_ORIGINAL[[#This Row],[Festivo]]=\"No Festivo\",tbl_ORIGINAL[[#This Row],[DIASEM]]<=4),1,0)","v":0},{"$f":"IF(AND(tbl_ORIGINAL[[#This Row],[Festivo]]=\"No Festivo\",OR(tbl_ORIGINAL[[#This Row],[DIASEM]]=5,tbl_ORIGINAL[[#This Row],[DIASEM]]=6)),1,0)","v":1}]
["2019-05-11","No festivo",6,{"$f":"IF(AND(tbl_ORIGINAL[[#This Row],[Festivo]]=\"No Festivo\",tbl_ORIGINAL[[#This Row],[DIASEM]]<=5),1,0)","v":0},{"$f":"IF(AND(tbl_ORIGINAL[[#This Row],[Festivo]]=\"No Festivo\",tbl_ORIGINAL[[#This Row],[DIASEM]]<=4),1,0)","v":0},{"$f":"IF(AND(tbl_ORIGINAL[[#This Row],[Festivo]]=\"No Festivo\",OR(tbl_ORIGINAL[[#This Row],[DIASEM]]=5,tbl_ORIGINAL[[#This Row],[DIASEM]]=6)),1,0)","v":1}]
["2019-05-12","No festivo",7,{"$f":"IF(AND(tbl_ORIGINAL[[#This Row],[Festivo]]=\"No Festivo\",tbl_ORIGINAL[[#This Row],[DIASEM]]<=5),1,0)","v":0},{"$f":"IF(AND(tbl_ORIGINAL[[#This Row],[Festivo]]=\"No Festivo\",tbl_ORIGINAL[[#This Row],[DIASEM]]<=4),1,0)","v":0},{"$f":"IF(AND(tbl_ORIGINAL[[#This Row],[Festivo]]=\"No Festivo\",OR(tbl_ORIGINAL[[#This Row],[DIASEM]]=5,tbl_ORIGINAL[[#This Row],[DIASEM]]=6)),1,0)","v":0}]
["2019-05-13","No festivo",1,{"$f":"IF(AND(tbl_ORIGINAL[[#This Row],[Festivo]]=\"No Festivo\",tbl_ORIGINAL[[#This Row],[DIASEM]]<=5),1,0)","v":1},{"$f":"IF(AND(tbl_ORIGINAL[[#This Row],[Festivo]]=\"No Festivo\",tbl_ORIGINAL[[#This Row],[DIASEM]]<=4),1,0)","v":1},{"$f":"IF(AND(tbl_ORIGINAL[[#This Row],[Festivo]]=\"No Festivo\",OR(tbl_ORIGINAL[[#This Row],[DIASEM]]=5,tbl_ORIGINAL[[#This Row],[DIASEM]]=6)),1,0)","v":0}]
["2019-05-14","No festivo",2,{"$f":"IF(AND(tbl_ORIGINAL[[#This Row],[Festivo]]=\"No Festivo\",tbl_ORIGINAL[[#This Row],[DIASEM]]<=5),1,0)","v":1},{"$f":"IF(AND(tbl_ORIGINAL[[#This Row],[Festivo]]=\"No Festivo\",tbl_ORIGINAL[[#This Row],[DIASEM]]<=4),1,0)","v":1},{"$f":"IF(AND(tbl_ORIGINAL[[#This Row],[Festivo]]=\"No Festivo\",OR(tbl_ORIGINAL[[#This Row],[DIASEM]]=5,tbl_ORIGINAL[[#This Row],[DIASEM]]=6)),1,0)","v":0}]
["2019-05-15","No festivo",3,{"$f":"IF(AND(tbl_ORIGINAL[[#This Row],[Festivo]]=\"No Festivo\",tbl_ORIGINAL[[#This Row],[DIASEM]]<=5),1,0)","v":1},{"$f":"IF(AND(tbl_ORIGINAL[[#This Row],[Festivo]]=\"No Festivo\",tbl_ORIGINAL[[#This Row],[DIASEM]]<=4),1,0)","v":1},{"$f":"IF(AND(tbl_ORIGINAL[[#This Row],[Festivo]]=\"No Festivo\",OR(tbl_ORIGINAL[[#This Row],[DIASEM]]=5,tbl_ORIGINAL[[#This Row],[DIASEM]]=6)),1,0)","v":0}]
["2019-05-16","No festivo",4,{"$f":"IF(AND(tbl_ORIGINAL[[#This Row],[Festivo]]=\"No Festivo\",tbl_ORIGINAL[[#This Row],[DIASEM]]<=5),1,0)","v":1},{"$f":"IF(AND(tbl_ORIGINAL[[#This Row],[Festivo]]=\"No Festivo\",tbl_ORIGINAL[[#This Row],[DIASEM]]<=4),1,0)","v":1},{"$f":"IF(AND(tbl_ORIGINAL[[#This Row],[Festivo]]=\"No Festivo\",OR(tbl_ORIGINAL[[#This Row],[DIASEM]]=5,tbl_ORIGINAL[[#This Row],[DIASEM]]=6)),1,0)","v":0}]
["2019-05-17","No festivo",5,{"$f":"IF(AND(tbl_ORIGINAL[[#This Row],[Festivo]]=\"No Festivo\",tbl_ORIGINAL[[#This Row],[DIASEM]]<=5),1,0)","v":1},{"$f":"IF(AND(tbl_ORIGINAL[[#This Row],[Festivo]]=\"No Festivo\",tbl_ORIGINAL[[#This Row],[DIASEM]]<=4),1,0)","v":0},{"$f":"IF(AND(tbl_ORIGINAL[[#This Row],[Festivo]]=\"No Festivo\",OR(tbl_ORIGINAL[[#This Row],[DIASEM]]=5,tbl_ORIGINAL[[#This Row],[DIASEM]]=6)),1,0)","v":1}]
["2019-05-18","No festivo",6,{"$f":"IF(AND(tbl_ORIGINAL[[#This Row],[Festivo]]=\"No Festivo\",tbl_ORIGINAL[[#This Row],[DIASEM]]<=5),1,0)","v":0},{"$f":"IF(AND(tbl_ORIGINAL[[#This Row],[Festivo]]=\"No Festivo\",tbl_ORIGINAL[[#This Row],[DIASEM]]<=4),1,0)","v":0},{"$f":"IF(AND(tbl_ORIGINAL[[#This Row],[Festivo]]=\"No Festivo\",OR(tbl_ORIGINAL[[#This Row],[DIASEM]]=5,tbl_ORIGINAL[[#This Row],[DIASEM]]=6)),1,0)","v":1}]
["2019-05-19","No festivo",7,{"$f":"IF(AND(tbl_ORIGINAL[[#This Row],[Festivo]]=\"No Festivo\",tbl_ORIGINAL[[#This Row],[DIASEM]]<=5),1,0)","v":0},{"$f":"IF(AND(tbl_ORIGINAL[[#This Row],[Festivo]]=\"No Festivo\",tbl_ORIGINAL[[#This Row],[DIASEM]]<=4),1,0)","v":0},{"$f":"IF(AND(tbl_ORIGINAL[[#This Row],[Festivo]]=\"No Festivo\",OR(tbl_ORIGINAL[[#This Row],[DIASEM]]=5,tbl_ORIGINAL[[#This Row],[DIASEM]]=6)),1,0)","v":0}]
["2019-05-20","No festivo",1,{"$f":"IF(AND(tbl_ORIGINAL[[#This Row],[Festivo]]=\"No Festivo\",tbl_ORIGINAL[[#This Row],[DIASEM]]<=5),1,0)","v":1},{"$f":"IF(AND(tbl_ORIGINAL[[#This Row],[Festivo]]=\"No Festivo\",tbl_ORIGINAL[[#This Row],[DIASEM]]<=4),1,0)","v":1},{"$f":"IF(AND(tbl_ORIGINAL[[#This Row],[Festivo]]=\"No Festivo\",OR(tbl_ORIGINAL[[#This Row],[DIASEM]]=5,tbl_ORIGINAL[[#This Row],[DIASEM]]=6)),1,0)","v":0}]
["2019-05-21","No festivo",2,{"$f":"IF(AND(tbl_ORIGINAL[[#This Row],[Festivo]]=\"No Festivo\",tbl_ORIGINAL[[#This Row],[DIASEM]]<=5),1,0)","v":1},{"$f":"IF(AND(tbl_ORIGINAL[[#This Row],[Festivo]]=\"No Festivo\",tbl_ORIGINAL[[#This Row],[DIASEM]]<=4),1,0)","v":1},{"$f":"IF(AND(tbl_ORIGINAL[[#This Row],[Festivo]]=\"No Festivo\",OR(tbl_ORIGINAL[[#This Row],[DIASEM]]=5,tbl_ORIGINAL[[#This Row],[DIASEM]]=6)),1,0)","v":0}]
["2019-05-22","No festivo",3,{"$f":"IF(AND(tbl_ORIGINAL[[#This Row],[Festivo]]=\"No Festivo\",tbl_ORIGINAL[[#This Row],[DIASEM]]<=5),1,0)","v":1},{"$f":"IF(AND(tbl_ORIGINAL[[#This Row],[Festivo]]=\"No Festivo\",tbl_ORIGINAL[[#This Row],[DIASEM]]<=4),1,0)","v":1},{"$f":"IF(AND(tbl_ORIGINAL[[#This Row],[Festivo]]=\"No Festivo\",OR(tbl_ORIGINAL[[#This Row],[DIASEM]]=5,tbl_ORIGINAL[[#This Row],[DIASEM]]=6)),1,0)","v":0}]
["2019-05-23","No festivo",4,{"$f":"IF(AND(tbl_ORIGINAL[[#This Row],[Festivo]]=\"No Festivo\",tbl_ORIGINAL[[#This Row],[DIASEM]]<=5),1,0)","v":1},{"$f":"IF(AND(tbl_ORIGINAL[[#This Row],[Festivo]]=\"No Festivo\",tbl_ORIGINAL[[#This Row],[DIASEM]]<=4),1,0)","v":1},{"$f":"IF(AND(tbl_ORIGINAL[[#This Row],[Festivo]]=\"No Festivo\",OR(tbl_ORIGINAL[[#This Row],[DIASEM]]=5,tbl_ORIGINAL[[#This Row],[DIASEM]]=6)),1,0)","v":0}]
["2019-05-24","No festivo",5,{"$f":"IF(AND(tbl_ORIGINAL[[#This Row],[Festivo]]=\"No Festivo\",tbl_ORIGINAL[[#This Row],[DIASEM]]<=5),1,0)","v":1},{"$f":"IF(AND(tbl_ORIGINAL[[#This Row],[Festivo]]=\"No Festivo\",tbl_ORIGINAL[[#This Row],[DIASEM]]<=4),1,0)","v":0},{"$f":"IF(AND(tbl_ORIGINAL[[#This Row],[Festivo]]=\"No Festivo\",OR(tbl_ORIGINAL[[#This Row],[DIASEM]]=5,tbl_ORIGINAL[[#This Row],[DIASEM]]=6)),1,0)","v":1}]
["2019-05-25","No festivo",6,{"$f":"IF(AND(tbl_ORIGINAL[[#This Row],[Festivo]]=\"No Festivo\",tbl_ORIGINAL[[#This Row],[DIASEM]]<=5),1,0)","v":0},{"$f":"IF(AND(tbl_ORIGINAL[[#This Row],[Festivo]]=\"No Festivo\",tbl_ORIGINAL[[#This Row],[DIASEM]]<=4),1,0)","v":0},{"$f":"IF(AND(tbl_ORIGINAL[[#This Row],[Festivo]]=\"No Festivo\",OR(tbl_ORIGINAL[[#This Row],[DIASEM]]=5,tbl_ORIGINAL[[#This Row],[DIASEM]]=6)),1,0)","v":1}]
["2019-05-26","No festivo",7,{"$f":"IF(AND(tbl_ORIGINAL[[#This Row],[Festivo]]=\"No Festivo\",tbl_ORIGINAL[[#This Row],[DIASEM]]<=5),1,0)","v":0},{"$f":"IF(AND(tbl_ORIGINAL[[#This Row],[Festivo]]=\"No Festivo\",tbl_ORIGINAL[[#This Row],[DIASEM]]<=4),1,0)","v":0},{"$f":"IF(AND(tbl_ORIGINAL[[#This Row],[Festivo]]=\"No Festivo\",OR(tbl_ORIGINAL[[#This Row],[DIASEM]]=5,tbl_ORIGINAL[[#This Row],[DIASEM]]=6)),1,0)","v":0}]
["2019-05-27","No festivo",1,{"$f":"IF(AND(tbl_ORIGINAL[[#This Row],[Festivo]]=\"No Festivo\",tbl_ORIGINAL[[#This Row],[DIASEM]]<=5),1,0)","v":1},{"$f":"IF(AND(tbl_ORIGINAL[[#This Row],[Festivo]]=\"No Festivo\",tbl_ORIGINAL[[#This Row],[DIASEM]]<=4),1,0)","v":1},{"$f":"IF(AND(tbl_ORIGINAL[[#This Row],[Festivo]]=\"No Festivo\",OR(tbl_ORIGINAL[[#This Row],[DIASEM]]=5,tbl_ORIGINAL[[#This Row],[DIASEM]]=6)),1,0)","v":0}]
["2019-05-28","No festivo",2,{"$f":"IF(AND(tbl_ORIGINAL[[#This Row],[Festivo]]=\"No Festivo\",tbl_ORIGINAL[[#This Row],[DIASEM]]<=5),1,0)","v":1},{"$f":"IF(AND(tbl_ORIGINAL[[#This Row],[Festivo]]=\"No Festivo\",tbl_ORIGINAL[[#This Row],[DIASEM]]<=4),1,0)","v":1},{"$f":"IF(AND(tbl_ORIGINAL[[#This Row],[Festivo]]=\"No Festivo\",OR(tbl_ORIGINAL[[#This Row],[DIASEM]]=5,tbl_ORIGINAL[[#This Row],[DIASEM]]=6)),1,0)","v":0}]
["2019-05-29","No festivo",3,{"$f":"IF(AND(tbl_ORIGINAL[[#This Row],[Festivo]]=\"No Festivo\",tbl_ORIGINAL[[#This Row],[DIASEM]]<=5),1,0)","v":1},{"$f":"IF(AND(tbl_ORIGINAL[[#This Row],[Festivo]]=\"No Festivo\",tbl_ORIGINAL[[#This Row],[DIASEM]]<=4),1,0)","v":1},{"$f":"IF(AND(tbl_ORIGINAL[[#This Row],[Festivo]]=\"No Festivo\",OR(tbl_ORIGINAL[[#This Row],[DIASEM]]=5,tbl_ORIGINAL[[#This Row],[DIASEM]]=6)),1,0)","v":0}]
["2019-05-30","No festivo",4,{"$f":"IF(AND(tbl_ORIGINAL[[#This Row],[Festivo]]=\"No Festivo\",tbl_ORIGINAL[[#This Row],[DIASEM]]<=5),1,0)","v":1},{"$f":"IF(AND(tbl_ORIGINAL[[#This Row],[Festivo]]=\"No Festivo\",tbl_ORIGINAL[[#This Row],[DIASEM]]<=4),1,0)","v":1},{"$f":"IF(AND(tbl_ORIGINAL[[#This Row],[Festivo]]=\"No Festivo\",OR(tbl_ORIGINAL[[#This Row],[DIASEM]]=5,tbl_ORIGINAL[[#This Row],[DIASEM]]=6)),1,0)","v":0}]
["2019-05-31","No festivo",5,{"$f":"IF(AND(tbl_ORIGINAL[[#This Row],[Festivo]]=\"No Festivo\",tbl_ORIGINAL[[#This Row],[DIASEM]]<=5),1,0)","v":1},{"$f":"IF(AND(tbl_ORIGINAL[[#This Row],[Festivo]]=\"No Festivo\",tbl_ORIGINAL[[#This Row],[DIASEM]]<=4),1,0)","v":0},{"$f":"IF(AND(tbl_ORIGINAL[[#This Row],[Festivo]]=\"No Festivo\",OR(tbl_ORIGINAL[[#This Row],[DIASEM]]=5,tbl_ORIGINAL[[#This Row],[DIASEM]]=6)),1,0)","v":1}]
["2019-06-01","No festivo",6,{"$f":"IF(AND(tbl_ORIGINAL[[#This Row],[Festivo]]=\"No Festivo\",tbl_ORIGINAL[[#This Row],[DIASEM]]<=5),1,0)","v":0},{"$f":"IF(AND(tbl_ORIGINAL[[#This Row],[Festivo]]=\"No Festivo\",tbl_ORIGINAL[[#This Row],[DIASEM]]<=4),1,0)","v":0},{"$f":"IF(AND(tbl_ORIGINAL[[#This Row],[Festivo]]=\"No Festivo\",OR(tbl_ORIGINAL[[#This Row],[DIASEM]]=5,tbl_ORIGINAL[[#This Row],[DIASEM]]=6)),1,0)","v":1}]
["2019-06-02","No festivo",7,{"$f":"IF(AND(tbl_ORIGINAL[[#This Row],[Festivo]]=\"No Festivo\",tbl_ORIGINAL[[#This Row],[DIASEM]]<=5),1,0)","v":0},{"$f":"IF(AND(tbl_ORIGINAL[[#This Row],[Festivo]]=\"No Festivo\",tbl_ORIGINAL[[#This Row],[DIASEM]]<=4),1,0)","v":0},{"$f":"IF(AND(tbl_ORIGINAL[[#This Row],[Festivo]]=\"No Festivo\",OR(tbl_ORIGINAL[[#This Row],[DIASEM]]=5,tbl_ORIGINAL[[#This Row],[DIASEM]]=6)),1,0)","v":0}]
["2019-06-03","Festivo",1,{"$f":"IF(AND(tbl_ORIGINAL[[#This Row],[Festivo]]=\"No Festivo\",tbl_ORIGINAL[[#This Row],[DIASEM]]<=5),1,0)","v":0},{"$f":"IF(AND(tbl_ORIGINAL[[#This Row],[Festivo]]=\"No Festivo\",tbl_ORIGINAL[[#This Row],[DIASEM]]<=4),1,0)","v":0},{"$f":"IF(AND(tbl_ORIGINAL[[#This Row],[Festivo]]=\"No Festivo\",OR(tbl_ORIGINAL[[#This Row],[DIASEM]]=5,tbl_ORIGINAL[[#This Row],[DIASEM]]=6)),1,0)","v":0}]
["2019-06-04","No festivo",2,{"$f":"IF(AND(tbl_ORIGINAL[[#This Row],[Festivo]]=\"No Festivo\",tbl_ORIGINAL[[#This Row],[DIASEM]]<=5),1,0)","v":1},{"$f":"IF(AND(tbl_ORIGINAL[[#This Row],[Festivo]]=\"No Festivo\",tbl_ORIGINAL[[#This Row],[DIASEM]]<=4),1,0)","v":1},{"$f":"IF(AND(tbl_ORIGINAL[[#This Row],[Festivo]]=\"No Festivo\",OR(tbl_ORIGINAL[[#This Row],[DIASEM]]=5,tbl_ORIGINAL[[#This Row],[DIASEM]]=6)),1,0)","v":0}]
["2019-06-05","No festivo",3,{"$f":"IF(AND(tbl_ORIGINAL[[#This Row],[Festivo]]=\"No Festivo\",tbl_ORIGINAL[[#This Row],[DIASEM]]<=5),1,0)","v":1},{"$f":"IF(AND(tbl_ORIGINAL[[#This Row],[Festivo]]=\"No Festivo\",tbl_ORIGINAL[[#This Row],[DIASEM]]<=4),1,0)","v":1},{"$f":"IF(AND(tbl_ORIGINAL[[#This Row],[Festivo]]=\"No Festivo\",OR(tbl_ORIGINAL[[#This Row],[DIASEM]]=5,tbl_ORIGINAL[[#This Row],[DIASEM]]=6)),1,0)","v":0}]
["2019-06-06","No festivo",4,{"$f":"IF(AND(tbl_ORIGINAL[[#This Row],[Festivo]]=\"No Festivo\",tbl_ORIGINAL[[#This Row],[DIASEM]]<=5),1,0)","v":1},{"$f":"IF(AND(tbl_ORIGINAL[[#This Row],[Festivo]]=\"No Festivo\",tbl_ORIGINAL[[#This Row],[DIASEM]]<=4),1,0)","v":1},{"$f":"IF(AND(tbl_ORIGINAL[[#This Row],[Festivo]]=\"No Festivo\",OR(tbl_ORIGINAL[[#This Row],[DIASEM]]=5,tbl_ORIGINAL[[#This Row],[DIASEM]]=6)),1,0)","v":0}]
["2019-06-07","No festivo",5,{"$f":"IF(AND(tbl_ORIGINAL[[#This Row],[Festivo]]=\"No Festivo\",tbl_ORIGINAL[[#This Row],[DIASEM]]<=5),1,0)","v":1},{"$f":"IF(AND(tbl_ORIGINAL[[#This Row],[Festivo]]=\"No Festivo\",tbl_ORIGINAL[[#This Row],[DIASEM]]<=4),1,0)","v":0},{"$f":"IF(AND(tbl_ORIGINAL[[#This Row],[Festivo]]=\"No Festivo\",OR(tbl_ORIGINAL[[#This Row],[DIASEM]]=5,tbl_ORIGINAL[[#This Row],[DIASEM]]=6)),1,0)","v":1}]
["2019-06-08","No festivo",6,{"$f":"IF(AND(tbl_ORIGINAL[[#This Row],[Festivo]]=\"No Festivo\",tbl_ORIGINAL[[#This Row],[DIASEM]]<=5),1,0)","v":0},{"$f":"IF(AND(tbl_ORIGINAL[[#This Row],[Festivo]]=\"No Festivo\",tbl_ORIGINAL[[#This Row],[DIASEM]]<=4),1,0)","v":0},{"$f":"IF(AND(tbl_ORIGINAL[[#This Row],[Festivo]]=\"No Festivo\",OR(tbl_ORIGINAL[[#This Row],[DIASEM]]=5,tbl_ORIGINAL[[#This Row],[DIASEM]]=6)),1,0)","v":1}]
["2019-06-09","No festivo",7,{"$f":"IF(AND(tbl_ORIGINAL[[#This Row],[Festivo]]=\"No Festivo\",tbl_ORIGINAL[[#This Row],[DIASEM]]<=5),1,0)","v":0},{"$f":"IF(AND(tbl_ORIGINAL[[#This Row],[Festivo]]=\"No Festivo\",tbl_ORIGINAL[[#This Row],[DIASEM]]<=4),1,0)","v":0},{"$f":"IF(AND(tbl_ORIGINAL[[#This Row],[Festivo]]=\"No Festivo\",OR(tbl_ORIGINAL[[#This Row],[DIASEM]]=5,tbl_ORIGINAL[[#This Row],[DIASEM]]=6)),1,0)","v":0}]
["2019-06-10","No festivo",1,{"$f":"IF(AND(tbl_ORIGINAL[[#This Row],[Festivo]]=\"No Festivo\",tbl_ORIGINAL[[#This Row],[DIASEM]]<=5),1,0)","v":1},{"$f":"IF(AND(tbl_ORIGINAL[[#This Row],[Festivo]]=\"No Festivo\",tbl_ORIGINAL[[#This Row],[DIASEM]]<=4),1,0)","v":1},{"$f":"IF(AND(tbl_ORIGINAL[[#This Row],[Festivo]]=\"No Festivo\",OR(tbl_ORIGINAL[[#This Row],[DIASEM]]=5,tbl_ORIGINAL[[#This Row],[DIASEM]]=6)),1,0)","v":0}]
["2019-06-11","No festivo",2,{"$f":"IF(AND(tbl_ORIGINAL[[#This Row],[Festivo]]=\"No Festivo\",tbl_ORIGINAL[[#This Row],[DIASEM]]<=5),1,0)","v":1},{"$f":"IF(AND(tbl_ORIGINAL[[#This Row],[Festivo]]=\"No Festivo\",tbl_ORIGINAL[[#This Row],[DIASEM]]<=4),1,0)","v":1},{"$f":"IF(AND(tbl_ORIGINAL[[#This Row],[Festivo]]=\"No Festivo\",OR(tbl_ORIGINAL[[#This Row],[DIASEM]]=5,tbl_ORIGINAL[[#This Row],[DIASEM]]=6)),1,0)","v":0}]
["2019-06-12","No festivo",3,{"$f":"IF(AND(tbl_ORIGINAL[[#This Row],[Festivo]]=\"No Festivo\",tbl_ORIGINAL[[#This Row],[DIASEM]]<=5),1,0)","v":1},{"$f":"IF(AND(tbl_ORIGINAL[[#This Row],[Festivo]]=\"No Festivo\",tbl_ORIGINAL[[#This Row],[DIASEM]]<=4),1,0)","v":1},{"$f":"IF(AND(tbl_ORIGINAL[[#This Row],[Festivo]]=\"No Festivo\",OR(tbl_ORIGINAL[[#This Row],[DIASEM]]=5,tbl_ORIGINAL[[#This Row],[DIASEM]]=6)),1,0)","v":0}]
["2019-06-13","No festivo",4,{"$f":"IF(AND(tbl_ORIGINAL[[#This Row],[Festivo]]=\"No Festivo\",tbl_ORIGINAL[[#This Row],[DIASEM]]<=5),1,0)","v":1},{"$f":"IF(AND(tbl_ORIGINAL[[#This Row],[Festivo]]=\"No Festivo\",tbl_ORIGINAL[[#This Row],[DIASEM]]<=4),1,0)","v":1},{"$f":"IF(AND(tbl_ORIGINAL[[#This Row],[Festivo]]=\"No Festivo\",OR(tbl_ORIGINAL[[#This Row],[DIASEM]]=5,tbl_ORIGINAL[[#This Row],[DIASEM]]=6)),1,0)","v":0}]
["2019-06-14","No festivo",5,{"$f":"IF(AND(tbl_ORIGINAL[[#This Row],[Festivo]]=\"No Festivo\",tbl_ORIGINAL[[#This Row],[DIASEM]]<=5),1,0)","v":1},{"$f":"IF(AND(tbl_ORIGINAL[[#This Row],[Festivo]]=\"No Festivo\",tbl_ORIGINAL[[#This Row],[DIASEM]]<=4),1,0)","v":0},{"$f":"IF(AND(tbl_ORIGINAL[[#This Row],[Festivo]]=\"No Festivo\",OR(tbl_ORIGINAL[[#This Row],[DIASEM]]=5,tbl_ORIGINAL[[#This Row],[DIASEM]]=6)),1,0)","v":1}]
["2019-06-15","No festivo",6,{"$f":"IF(AND(tbl_ORIGINAL[[#This Row],[Festivo]]=\"No Festivo\",tbl_ORIGINAL[[#This Row],[DIASEM]]<=5),1,0)","v":0},{"$f":"IF(AND(tbl_ORIGINAL[[#This Row],[Festivo]]=\"No Festivo\",tbl_ORIGINAL[[#This Row],[DIASEM]]<=4),1,0)","v":0},{"$f":"IF(AND(tbl_ORIGINAL[[#This Row],[Festivo]]=\"No Festivo\",OR(tbl_ORIGINAL[[#This Row],[DIASEM]]=5,tbl_ORIGINAL[[#This Row],[DIASEM]]=6)),1,0)","v":1}]
["2019-06-16","No festivo",7,{"$f":"IF(AND(tbl_ORIGINAL[[#This Row],[Festivo]]=\"No Festivo\",tbl_ORIGINAL[[#This Row],[DIASEM]]<=5),1,0)","v":0},{"$f":"IF(AND(tbl_ORIGINAL[[#This Row],[Festivo]]=\"No Festivo\",tbl_ORIGINAL[[#This Row],[DIASEM]]<=4),1,0)","v":0},{"$f":"IF(AND(tbl_ORIGINAL[[#This Row],[Festivo]]=\"No Festivo\",OR(tbl_ORIGINAL[[#This Row],[DIASEM]]=5,tbl_ORIGINAL[[#This Row],[DIASEM]]=6)),1,0)","v":0}]
["2019-06-17","No festivo",1,{"$f":"IF(AND(tbl_ORIGINAL[[#This Row],[Festivo]]=\"No Festivo\",tbl_ORIGINAL[[#This Row],[DIASEM]]<=5),1,0)","v":1},{"$f":"IF(AND(tbl_ORIGINAL[[#This Row],[Festivo]]=\"No Festivo\",tbl_ORIGINAL[[#This Row],[DIASEM]]<=4),1,0)","v":1},{"$f":"IF(AND(tbl_ORIGINAL[[#This Row],[Festivo]]=\"No Festivo\",OR(tbl_ORIGINAL[[#This Row],[DIASEM]]=5,tbl_ORIGINAL[[#This Row],[DIASEM]]=6)),1,0)","v":0}]
["2019-06-18","No festivo",2,{"$f":"IF(AND(tbl_ORIGINAL[[#This Row],[Festivo]]=\"No Festivo\",tbl_ORIGINAL[[#This Row],[DIASEM]]<=5),1,0)","v":1},{"$f":"IF(AND(tbl_ORIGINAL[[#This Row],[Festivo]]=\"No Festivo\",tbl_ORIGINAL[[#This Row],[DIASEM]]<=4),1,0)","v":1},{"$f":"IF(AND(tbl_ORIGINAL[[#This Row],[Festivo]]=\"No Festivo\",OR(tbl_ORIGINAL[[#This Row],[DIASEM]]=5,tbl_ORIGINAL[[#This Row],[DIASEM]]=6)),1,0)","v":0}]
["2019-06-19","No festivo",3,{"$f":"IF(AND(tbl_ORIGINAL[[#This Row],[Festivo]]=\"No Festivo\",tbl_ORIGINAL[[#This Row],[DIASEM]]<=5),1,0)","v":1},{"$f":"IF(AND(tbl_ORIGINAL[[#This Row],[Festivo]]=\"No Festivo\",tbl_ORIGINAL[[#This Row],[DIASEM]]<=4),1,0)","v":1},{"$f":"IF(AND(tbl_ORIGINAL[[#This Row],[Festivo]]=\"No Festivo\",OR(tbl_ORIGINAL[[#This Row],[DIASEM]]=5,tbl_ORIGINAL[[#This Row],[DIASEM]]=6)),1,0)","v":0}]
["2019-06-20","No festivo",4,{"$f":"IF(AND(tbl_ORIGINAL[[#This Row],[Festivo]]=\"No Festivo\",tbl_ORIGINAL[[#This Row],[DIASEM]]<=5),1,0)","v":1},{"$f":"IF(AND(tbl_ORIGINAL[[#This Row],[Festivo]]=\"No Festivo\",tbl_ORIGINAL[[#This Row],[DIASEM]]<=4),1,0)","v":1},{"$f":"IF(AND(tbl_ORIGINAL[[#This Row],[Festivo]]=\"No Festivo\",OR(tbl_ORIGINAL[[#This Row],[DIASEM]]=5,tbl_ORIGINAL[[#This Row],[DIASEM]]=6)),1,0)","v":0}]
["2019-06-21","No festivo",5,{"$f":"IF(AND(tbl_ORIGINAL[[#This Row],[Festivo]]=\"No Festivo\",tbl_ORIGINAL[[#This Row],[DIASEM]]<=5),1,0)","v":1},{"$f":"IF(AND(tbl_ORIGINAL[[#This Row],[Festivo]]=\"No Festivo\",tbl_ORIGINAL[[#This Row],[DIASEM]]<=4),1,0)","v":0},{"$f":"IF(AND(tbl_ORIGINAL[[#This Row],[Festivo]]=\"No Festivo\",OR(tbl_ORIGINAL[[#This Row],[DIASEM]]=5,tbl_ORIGINAL[[#This Row],[DIASEM]]=6)),1,0)","v":1}]
["2019-06-22","No festivo",6,{"$f":"IF(AND(tbl_ORIGINAL[[#This Row],[Festivo]]=\"No Festivo\",tbl_ORIGINAL[[#This Row],[DIASEM]]<=5),1,0)","v":0},{"$f":"IF(AND(tbl_ORIGINAL[[#This Row],[Festivo]]=\"No Festivo\",tbl_ORIGINAL[[#This Row],[DIASEM]]<=4),1,0)","v":0},{"$f":"IF(AND(tbl_ORIGINAL[[#This Row],[Festivo]]=\"No Festivo\",OR(tbl_ORIGINAL[[#This Row],[DIASEM]]=5,tbl_ORIGINAL[[#This Row],[DIASEM]]=6)),1,0)","v":1}]
["2019-06-23","No festivo",7,{"$f":"IF(AND(tbl_ORIGINAL[[#This Row],[Festivo]]=\"No Festivo\",tbl_ORIGINAL[[#This Row],[DIASEM]]<=5),1,0)","v":0},{"$f":"IF(AND(tbl_ORIGINAL[[#This Row],[Festivo]]=\"No Festivo\",tbl_ORIGINAL[[#This Row],[DIASEM]]<=4),1,0)","v":0},{"$f":"IF(AND(tbl_ORIGINAL[[#This Row],[Festivo]]=\"No Festivo\",OR(tbl_ORIGINAL[[#This Row],[DIASEM]]=5,tbl_ORIGINAL[[#This Row],[DIASEM]]=6)),1,0)","v":0}]
["2019-06-24","Festivo",1,{"$f":"IF(AND(tbl_ORIGINAL[[#This Row],[Festivo]]=\"No Festivo\",tbl_ORIGINAL[[#This Row],[DIASEM]]<=5),1,0)","v":0},{"$f":"IF(AND(tbl_ORIGINAL[[#This Row],[Festivo]]=\"No Festivo\",tbl_ORIGINAL[[#This Row],[DIASEM]]<=4),1,0)","v":0},{"$f":"IF(AND(tbl_ORIGINAL[[#This Row],[Festivo]]=\"No Festivo\",OR(tbl_ORIGINAL[[#This Row],[DIASEM]]=5,tbl_ORIGINAL[[#This Row],[DIASEM]]=6)),1,0)","v":0}]
["2019-06-25","No festivo",2,{"$f":"IF(AND(tbl_ORIGINAL[[#This Row],[Festivo]]=\"No Festivo\",tbl_ORIGINAL[[#This Row],[DIASEM]]<=5),1,0)","v":1},{"$f":"IF(AND(tbl_ORIGINAL[[#This Row],[Festivo]]=\"No Festivo\",tbl_ORIGINAL[[#This Row],[DIASEM]]<=4),1,0)","v":1},{"$f":"IF(AND(tbl_ORIGINAL[[#This Row],[Festivo]]=\"No Festivo\",OR(tbl_ORIGINAL[[#This Row],[DIASEM]]=5,tbl_ORIGINAL[[#This Row],[DIASEM]]=6)),1,0)","v":0}]
["2019-06-26","No festivo",3,{"$f":"IF(AND(tbl_ORIGINAL[[#This Row],[Festivo]]=\"No Festivo\",tbl_ORIGINAL[[#This Row],[DIASEM]]<=5),1,0)","v":1},{"$f":"IF(AND(tbl_ORIGINAL[[#This Row],[Festivo]]=\"No Festivo\",tbl_ORIGINAL[[#This Row],[DIASEM]]<=4),1,0)","v":1},{"$f":"IF(AND(tbl_ORIGINAL[[#This Row],[Festivo]]=\"No Festivo\",OR(tbl_ORIGINAL[[#This Row],[DIASEM]]=5,tbl_ORIGINAL[[#This Row],[DIASEM]]=6)),1,0)","v":0}]
["2019-06-27","No festivo",4,{"$f":"IF(AND(tbl_ORIGINAL[[#This Row],[Festivo]]=\"No Festivo\",tbl_ORIGINAL[[#This Row],[DIASEM]]<=5),1,0)","v":1},{"$f":"IF(AND(tbl_ORIGINAL[[#This Row],[Festivo]]=\"No Festivo\",tbl_ORIGINAL[[#This Row],[DIASEM]]<=4),1,0)","v":1},{"$f":"IF(AND(tbl_ORIGINAL[[#This Row],[Festivo]]=\"No Festivo\",OR(tbl_ORIGINAL[[#This Row],[DIASEM]]=5,tbl_ORIGINAL[[#This Row],[DIASEM]]=6)),1,0)","v":0}]
["2019-06-28","No festivo",5,{"$f":"IF(AND(tbl_ORIGINAL[[#This Row],[Festivo]]=\"No Festivo\",tbl_ORIGINAL[[#This Row],[DIASEM]]<=5),1,0)","v":1},{"$f":"IF(AND(tbl_ORIGINAL[[#This Row],[Festivo]]=\"No Festivo\",tbl_ORIGINAL[[#This Row],[DIASEM]]<=4),1,0)","v":0},{"$f":"IF(AND(tbl_ORIGINAL[[#This Row],[Festivo]]=\"No Festivo\",OR(tbl_ORIGINAL[[#This Row],[DIASEM]]=5,tbl_ORIGINAL[[#This Row],[DIASEM]]=6)),1,0)","v":1}]
["2019-06-29","No festivo",6,{"$f":"IF(AND(tbl_ORIGINAL[[#This Row],[Festivo]]=\"No Festivo\",tbl_ORIGINAL[[#This Row],[DIASEM]]<=5),1,0)","v":0},{"$f":"IF(AND(tbl_ORIGINAL[[#This Row],[Festivo]]=\"No Festivo\",tbl_ORIGINAL[[#This Row],[DIASEM]]<=4),1,0)","v":0},{"$f":"IF(AND(tbl_ORIGINAL[[#This Row],[Festivo]]=\"No Festivo\",OR(tbl_ORIGINAL[[#This Row],[DIASEM]]=5,tbl_ORIGINAL[[#This Row],[DIASEM]]=6)),1,0)","v":1}]
["2019-06-30","No festivo",7,{"$f":"IF(AND(tbl_ORIGINAL[[#This Row],[Festivo]]=\"No Festivo\",tbl_ORIGINAL[[#This Row],[DIASEM]]<=5),1,0)","v":0},{"$f":"IF(AND(tbl_ORIGINAL[[#This Row],[Festivo]]=\"No Festivo\",tbl_ORIGINAL[[#This Row],[DIASEM]]<=4),1,0)","v":0},{"$f":"IF(AND(tbl_ORIGINAL[[#This Row],[Festivo]]=\"No Festivo\",OR(tbl_ORIGINAL[[#This Row],[DIASEM]]=5,tbl_ORIGINAL[[#This Row],[DIASEM]]=6)),1,0)","v":0}]
["2019-07-01","Festivo",1,{"$f":"IF(AND(tbl_ORIGINAL[[#This Row],[Festivo]]=\"No Festivo\",tbl_ORIGINAL[[#This Row],[DIASEM]]<=5),1,0)","v":0},{"$f":"IF(AND(tbl_ORIGINAL[[#This Row],[Festivo]]=\"No Festivo\",tbl_ORIGINAL[[#This Row],[DIASEM]]<=4),1,0)","v":0},{"$f":"IF(AND(tbl_ORIGINAL[[#This Row],[Festivo]]=\"No Festivo\",OR(tbl_ORIGINAL[[#This Row],[DIASEM]]=5,tbl_ORIGINAL[[#This Row],[DIASEM]]=6)),1,0)","v":0}]
["2019-07-02","No festivo",2,{"$f":"IF(AND(tbl_ORIGINAL[[#This Row],[Festivo]]=\"No Festivo\",tbl_ORIGINAL[[#This Row],[DIASEM]]<=5),1,0)","v":1},{"$f":"IF(AND(tbl_ORIGINAL[[#This Row],[Festivo]]=\"No Festivo\",tbl_ORIGINAL[[#This Row],[DIASEM]]<=4),1,0)","v":1},{"$f":"IF(AND(tbl_ORIGINAL[[#This Row],[Festivo]]=\"No Festivo\",OR(tbl_ORIGINAL[[#This Row],[DIASEM]]=5,tbl_ORIGINAL[[#This Row],[DIASEM]]=6)),1,0)","v":0}]
["2019-07-03","No festivo",3,{"$f":"IF(AND(tbl_ORIGINAL[[#This Row],[Festivo]]=\"No Festivo\",tbl_ORIGINAL[[#This Row],[DIASEM]]<=5),1,0)","v":1},{"$f":"IF(AND(tbl_ORIGINAL[[#This Row],[Festivo]]=\"No Festivo\",tbl_ORIGINAL[[#This Row],[DIASEM]]<=4),1,0)","v":1},{"$f":"IF(AND(tbl_ORIGINAL[[#This Row],[Festivo]]=\"No Festivo\",OR(tbl_ORIGINAL[[#This Row],[DIASEM]]=5,tbl_ORIGINAL[[#This Row],[DIASEM]]=6)),1,0)","v":0}]
["2019-07-04","No festivo",4,{"$f":"IF(AND(tbl_ORIGINAL[[#This Row],[Festivo]]=\"No Festivo\",tbl_ORIGINAL[[#This Row],[DIASEM]]<=5),1,0)","v":1},{"$f":"IF(AND(tbl_ORIGINAL[[#This Row],[Festivo]]=\"No Festivo\",tbl_ORIGINAL[[#This Row],[DIASEM]]<=4),1,0)","v":1},{"$f":"IF(AND(tbl_ORIGINAL[[#This Row],[Festivo]]=\"No Festivo\",OR(tbl_ORIGINAL[[#This Row],[DIASEM]]=5,tbl_ORIGINAL[[#This Row],[DIASEM]]=6)),1,0)","v":0}]
["2019-07-05","No festivo",5,{"$f":"IF(AND(tbl_ORIGINAL[[#This Row],[Festivo]]=\"No Festivo\",tbl_ORIGINAL[[#This Row],[DIASEM]]<=5),1,0)","v":1},{"$f":"IF(AND(tbl_ORIGINAL[[#This Row],[Festivo]]=\"No Festivo\",tbl_ORIGINAL[[#This Row],[DIASEM]]<=4),1,0)","v":0},{"$f":"IF(AND(tbl_ORIGINAL[[#This Row],[Festivo]]=\"No Festivo\",OR(tbl_ORIGINAL[[#This Row],[DIASEM]]=5,tbl_ORIGINAL[[#This Row],[DIASEM]]=6)),1,0)","v":1}]
["2019-07-06","No festivo",6,{"$f":"IF(AND(tbl_ORIGINAL[[#This Row],[Festivo]]=\"No Festivo\",tbl_ORIGINAL[[#This Row],[DIASEM]]<=5),1,0)","v":0},{"$f":"IF(AND(tbl_ORIGINAL[[#This Row],[Festivo]]=\"No Festivo\",tbl_ORIGINAL[[#This Row],[DIASEM]]<=4),1,0)","v":0},{"$f":"IF(AND(tbl_ORIGINAL[[#This Row],[Festivo]]=\"No Festivo\",OR(tbl_ORIGINAL[[#This Row],[DIASEM]]=5,tbl_ORIGINAL[[#This Row],[DIASEM]]=6)),1,0)","v":1}]
["2019-07-07","No festivo",7,{"$f":"IF(AND(tbl_ORIGINAL[[#This Row],[Festivo]]=\"No Festivo\",tbl_ORIGINAL[[#This Row],[DIASEM]]<=5),1,0)","v":0},{"$f":"IF(AND(tbl_ORIGINAL[[#This Row],[Festivo]]=\"No Festivo\",tbl_ORIGINAL[[#This Row],[DIASEM]]<=4),1,0)","v":0},{"$f":"IF(AND(tbl_ORIGINAL[[#This Row],[Festivo]]=\"No Festivo\",OR(tbl_ORIGINAL[[#This Row],[DIASEM]]=5,tbl_ORIGINAL[[#This Row],[DIASEM]]=6)),1,0)","v":0}]
["2019-07-08","No festivo",1,{"$f":"IF(AND(tbl_ORIGINAL[[#This Row],[Festivo]]=\"No Festivo\",tbl_ORIGINAL[[#This Row],[DIASEM]]<=5),1,0)","v":1},{"$f":"IF(AND(tbl_ORIGINAL[[#This Row],[Festivo]]=\"No Festivo\",tbl_ORIGINAL[[#This Row],[DIASEM]]<=4),1,0)","v":1},{"$f":"IF(AND(tbl_ORIGINAL[[#This Row],[Festivo]]=\"No Festivo\",OR(tbl_ORIGINAL[[#This Row],[DIASEM]]=5,tbl_ORIGINAL[[#This Row],[DIASEM]]=6)),1,0)","v":0}]
["2019-07-09","No festivo",2,{"$f":"IF(AND(tbl_ORIGINAL[[#This Row],[Festivo]]=\"No Festivo\",tbl_ORIGINAL[[#This Row],[DIASEM]]<=5),1,0)","v":1},{"$f":"IF(AND(tbl_ORIGINAL[[#This Row],[Festivo]]=\"No Festivo\",tbl_ORIGINAL[[#This Row],[DIASEM]]<=4),1,0)","v":1},{"$f":"IF(AND(tbl_ORIGINAL[[#This Row],[Festivo]]=\"No Festivo\",OR(tbl_ORIGINAL[[#This Row],[DIASEM]]=5,tbl_ORIGINAL[[#This Row],[DIASEM]]=6)),1,0)","v":0}]
["2019-07-10","No festivo",3,{"$f":"IF(AND(tbl_ORIGINAL[[#This Row],[Festivo]]=\"No Festivo\",tbl_ORIGINAL[[#This Row],[DIASEM]]<=5),1,0)","v":1},{"$f":"IF(AND(tbl_ORIGINAL[[#This Row],[Festivo]]=\"No Festivo\",tbl_ORIGINAL[[#This Row],[DIASEM]]<=4),1,0)","v":1},{"$f":"IF(AND(tbl_ORIGINAL[[#This Row],[Festivo]]=\"No Festivo\",OR(tbl_ORIGINAL[[#This Row],[DIASEM]]=5,tbl_ORIGINAL[[#This Row],[DIASEM]]=6)),1,0)","v":0}]
["2019-07-11","No festivo",4,{"$f":"IF(AND(tbl_ORIGINAL[[#This Row],[Festivo]]=\"No Festivo\",tbl_ORIGINAL[[#This Row],[DIASEM]]<=5),1,0)","v":1},{"$f":"IF(AND(tbl_ORIGINAL[[#This Row],[Festivo]]=\"No Festivo\",tbl_ORIGINAL[[#This Row],[DIASEM]]<=4),1,0)","v":1},{"$f":"IF(AND(tbl_ORIGINAL[[#This Row],[Festivo]]=\"No Festivo\",OR(tbl_ORIGINAL[[#This Row],[DIASEM]]=5,tbl_ORIGINAL[[#This Row],[DIASEM]]=6)),1,0)","v":0}]
["2019-07-12","No festivo",5,{"$f":"IF(AND(tbl_ORIGINAL[[#This Row],[Festivo]]=\"No Festivo\",tbl_ORIGINAL[[#This Row],[DIASEM]]<=5),1,0)","v":1},{"$f":"IF(AND(tbl_ORIGINAL[[#This Row],[Festivo]]=\"No Festivo\",tbl_ORIGINAL[[#This Row],[DIASEM]]<=4),1,0)","v":0},{"$f":"IF(AND(tbl_ORIGINAL[[#This Row],[Festivo]]=\"No Festivo\",OR(tbl_ORIGINAL[[#This Row],[DIASEM]]=5,tbl_ORIGINAL[[#This Row],[DIASEM]]=6)),1,0)","v":1}]
["2019-07-13","No festivo",{"$f":"WEEKDAY(A196,2)","v":6},{"$f":"IF(AND(tbl_ORIGINAL[[#This Row],[Festivo]]=\"No Festivo\",tbl_ORIGINAL[[#This Row],[DIASEM]]<=5),1,0)","v":0},{"$f":"IF(AND(tbl_ORIGINAL[[#This Row],[Festivo]]=\"No Festivo\",tbl_ORIGINAL[[#This Row],[DIASEM]]<=4),1,0)","v":0},{"$f":"IF(AND(tbl_ORIGINAL[[#This Row],[Festivo]]=\"No Festivo\",OR(tbl_ORIGINAL[[#This Row],[DIASEM]]=5,tbl_ORIGINAL[[#This Row],[DIASEM]]=6)),1,0)","v":1}]
["2019-07-14","No festivo",7,{"$f":"IF(AND(tbl_ORIGINAL[[#This Row],[Festivo]]=\"No Festivo\",tbl_ORIGINAL[[#This Row],[DIASEM]]<=5),1,0)","v":0},{"$f":"IF(AND(tbl_ORIGINAL[[#This Row],[Festivo]]=\"No Festivo\",tbl_ORIGINAL[[#This Row],[DIASEM]]<=4),1,0)","v":0},{"$f":"IF(AND(tbl_ORIGINAL[[#This Row],[Festivo]]=\"No Festivo\",OR(tbl_ORIGINAL[[#This Row],[DIASEM]]=5,tbl_ORIGINAL[[#This Row],[DIASEM]]=6)),1,0)","v":0}]
["2019-07-15","No festivo",1,{"$f":"IF(AND(tbl_ORIGINAL[[#This Row],[Festivo]]=\"No Festivo\",tbl_ORIGINAL[[#This Row],[DIASEM]]<=5),1,0)","v":1},{"$f":"IF(AND(tbl_ORIGINAL[[#This Row],[Festivo]]=\"No Festivo\",tbl_ORIGINAL[[#This Row],[DIASEM]]<=4),1,0)","v":1},{"$f":"IF(AND(tbl_ORIGINAL[[#This Row],[Festivo]]=\"No Festivo\",OR(tbl_ORIGINAL[[#This Row],[DIASEM]]=5,tbl_ORIGINAL[[#This Row],[DIASEM]]=6)),1,0)","v":0}]
["2019-07-16","No festivo",2,{"$f":"IF(AND(tbl_ORIGINAL[[#This Row],[Festivo]]=\"No Festivo\",tbl_ORIGINAL[[#This Row],[DIASEM]]<=5),1,0)","v":1},{"$f":"IF(AND(tbl_ORIGINAL[[#This Row],[Festivo]]=\"No Festivo\",tbl_ORIGINAL[[#This Row],[DIASEM]]<=4),1,0)","v":1},{"$f":"IF(AND(tbl_ORIGINAL[[#This Row],[Festivo]]=\"No Festivo\",OR(tbl_ORIGINAL[[#This Row],[DIASEM]]=5,tbl_ORIGINAL[[#This Row],[DIASEM]]=6)),1,0)","v":0}]
["2019-07-17","No festivo",3,{"$f":"IF(AND(tbl_ORIGINAL[[#This Row],[Festivo]]=\"No Festivo\",tbl_ORIGINAL[[#This Row],[DIASEM]]<=5),1,0)","v":1},{"$f":"IF(AND(tbl_ORIGINAL[[#This Row],[Festivo]]=\"No Festivo\",tbl_ORIGINAL[[#This Row],[DIASEM]]<=4),1,0)","v":1},{"$f":"IF(AND(tbl_ORIGINAL[[#This Row],[Festivo]]=\"No Festivo\",OR(tbl_ORIGINAL[[#This Row],[DIASEM]]=5,tbl_ORIGINAL[[#This Row],[DIASEM]]=6)),1,0)","v":0}]
["2019-07-18","No festivo",4,{"$f":"IF(AND(tbl_ORIGINAL[[#This Row],[Festivo]]=\"No Festivo\",tbl_ORIGINAL[[#This Row],[DIASEM]]<=5),1,0)","v":1},{"$f":"IF(AND(tbl_ORIGINAL[[#This Row],[Festivo]]=\"No Festivo\",tbl_ORIGINAL[[#This Row],[DIASEM]]<=4),1,0)","v":1},{"$f":"IF(AND(tbl_ORIGINAL[[#This Row],[Festivo]]=\"No Festivo\",OR(tbl_ORIGINAL[[#This Row],[DIASEM]]=5,tbl_ORIGINAL[[#This Row],[DIASEM]]=6)),1,0)","v":0}]
["2019-07-19","No festivo",5,{"$f":"IF(AND(tbl_ORIGINAL[[#This Row],[Festivo]]=\"No Festivo\",tbl_ORIGINAL[[#This Row],[DIASEM]]<=5),1,0)","v":1},{"$f":"IF(AND(tbl_ORIGINAL[[#This Row],[Festivo]]=\"No Festivo\",tbl_ORIGINAL[[#This Row],[DIASEM]]<=4),1,0)","v":0},{"$f":"IF(AND(tbl_ORIGINAL[[#This Row],[Festivo]]=\"No Festivo\",OR(tbl_ORIGINAL[[#This Row],[DIASEM]]=5,tbl_ORIGINAL[[#This Row],[DIASEM]]=6)),1,0)","v":1}]
["2019-07-20","Festivo",6,{"$f":"IF(AND(tbl_ORIGINAL[[#This Row],[Festivo]]=\"No Festivo\",tbl_ORIGINAL[[#This Row],[DIASEM]]<=5),1,0)","v":0},{"$f":"IF(AND(tbl_ORIGINAL[[#This Row],[Festivo]]=\"No Festivo\",tbl_ORIGINAL[[#This Row],[DIASEM]]<=4),1,0)","v":0},{"$f":"IF(AND(tbl_ORIGINAL[[#This Row],[Festivo]]=\"No Festivo\",OR(tbl_ORIGINAL[[#This Row],[DIASEM]]=5,tbl_ORIGINAL[[#This Row],[DIASEM]]=6)),1,0)","v":0}]
["2019-07-21","No festivo",7,{"$f":"IF(AND(tbl_ORIGINAL[[#This Row],[Festivo]]=\"No Festivo\",tbl_ORIGINAL[[#This Row],[DIASEM]]<=5),1,0)","v":0},{"$f":"IF(AND(tbl_ORIGINAL[[#This Row],[Festivo]]=\"No Festivo\",tbl_ORIGINAL[[#This Row],[DIASEM]]<=4),1,0)","v":0},{"$f":"IF(AND(tbl_ORIGINAL[[#This Row],[Festivo]]=\"No Festivo\",OR(tbl_ORIGINAL[[#This Row],[DIASEM]]=5,tbl_ORIGINAL[[#This Row],[DIASEM]]=6)),1,0)","v":0}]
["2019-07-22","No festivo",1,{"$f":"IF(AND(tbl_ORIGINAL[[#This Row],[Festivo]]=\"No Festivo\",tbl_ORIGINAL[[#This Row],[DIASEM]]<=5),1,0)","v":1},{"$f":"IF(AND(tbl_ORIGINAL[[#This Row],[Festivo]]=\"No Festivo\",tbl_ORIGINAL[[#This Row],[DIASEM]]<=4),1,0)","v":1},{"$f":"IF(AND(tbl_ORIGINAL[[#This Row],[Festivo]]=\"No Festivo\",OR(tbl_ORIGINAL[[#This Row],[DIASEM]]=5,tbl_ORIGINAL[[#This Row],[DIASEM]]=6)),1,0)","v":0}]
["2019-07-23","No festivo",2,{"$f":"IF(AND(tbl_ORIGINAL[[#This Row],[Festivo]]=\"No Festivo\",tbl_ORIGINAL[[#This Row],[DIASEM]]<=5),1,0)","v":1},{"$f":"IF(AND(tbl_ORIGINAL[[#This Row],[Festivo]]=\"No Festivo\",tbl_ORIGINAL[[#This Row],[DIASEM]]<=4),1,0)","v":1},{"$f":"IF(AND(tbl_ORIGINAL[[#This Row],[Festivo]]=\"No Festivo\",OR(tbl_ORIGINAL[[#This Row],[DIASEM]]=5,tbl_ORIGINAL[[#This Row],[DIASEM]]=6)),1,0)","v":0}]
["2019-07-24","No festivo",3,{"$f":"IF(AND(tbl_ORIGINAL[[#This Row],[Festivo]]=\"No Festivo\",tbl_ORIGINAL[[#This Row],[DIASEM]]<=5),1,0)","v":1},{"$f":"IF(AND(tbl_ORIGINAL[[#This Row],[Festivo]]=\"No Festivo\",tbl_ORIGINAL[[#This Row],[DIASEM]]<=4),1,0)","v":1},{"$f":"IF(AND(tbl_ORIGINAL[[#This Row],[Festivo]]=\"No Festivo\",OR(tbl_ORIGINAL[[#This Row],[DIASEM]]=5,tbl_ORIGINAL[[#This Row],[DIASEM]]=6)),1,0)","v":0}]
["2019-07-25","No festivo",4,{"$f":"IF(AND(tbl_ORIGINAL[[#This Row],[Festivo]]=\"No Festivo\",tbl_ORIGINAL[[#This Row],[DIASEM]]<=5),1,0)","v":1},{"$f":"IF(AND(tbl_ORIGINAL[[#This Row],[Festivo]]=\"No Festivo\",tbl_ORIGINAL[[#This Row],[DIASEM]]<=4),1,0)","v":1},{"$f":"IF(AND(tbl_ORIGINAL[[#This Row],[Festivo]]=\"No Festivo\",OR(tbl_ORIGINAL[[#This Row],[DIASEM]]=5,tbl_ORIGINAL[[#This Row],[DIASEM]]=6)),1,0)","v":0}]
["2019-07-26","No festivo",5,{"$f":"IF(AND(tbl_ORIGINAL[[#This Row],[Festivo]]=\"No Festivo\",tbl_ORIGINAL[[#This Row],[DIASEM]]<=5),1,0)","v":1},{"$f":"IF(AND(tbl_ORIGINAL[[#This Row],[Festivo]]=\"No Festivo\",tbl_ORIGINAL[[#This Row],[DIASEM]]<=4),1,0)","v":0},{"$f":"IF(AND(tbl_ORIGINAL[[#This Row],[Festivo]]=\"No Festivo\",OR(tbl_ORIGINAL[[#This Row],[DIASEM]]=5,tbl_ORIGINAL[[#This Row],[DIASEM]]=6)),1,0)","v":1}]
["2019-07-27","No festivo",6,{"$f":"IF(AND(tbl_ORIGINAL[[#This Row],[Festivo]]=\"No Festivo\",tbl_ORIGINAL[[#This Row],[DIASEM]]<=5),1,0)","v":0},{"$f":"IF(AND(tbl_ORIGINAL[[#This Row],[Festivo]]=\"No Festivo\",tbl_ORIGINAL[[#This Row],[DIASEM]]<=4),1,0)","v":0},{"$f":"IF(AND(tbl_ORIGINAL[[#This Row],[Festivo]]=\"No Festivo\",OR(tbl_ORIGINAL[[#This Row],[DIASEM]]=5,tbl_ORIGINAL[[#This Row],[DIASEM]]=6)),1,0)","v":1}]
["2019-07-28","No festivo",7,{"$f":"IF(AND(tbl_ORIGINAL[[#This Row],[Festivo]]=\"No Festivo\",tbl_ORIGINAL[[#This Row],[DIASEM]]<=5),1,0)","v":0},{"$f":"IF(AND(tbl_ORIGINAL[[#This Row],[Festivo]]=\"No Festivo\",tbl_ORIGINAL[[#This Row],[DIASEM]]<=4),1,0)","v":0},{"$f":"IF(AND(tbl_ORIGINAL[[#This Row],[Festivo]]=\"No Festivo\",OR(tbl_ORIGINAL[[#This Row],[DIASEM]]=5,tbl_ORIGINAL[[#This Row],[DIASEM]]=6)),1,0)","v":0}]
["2019-07-29","No festivo",1,{"$f":"IF(AND(tbl_ORIGINAL[[#This Row],[Festivo]]=\"No Festivo\",tbl_ORIGINAL[[#This Row],[DIASEM]]<=5),1,0)","v":1},{"$f":"IF(AND(tbl_ORIGINAL[[#This Row],[Festivo]]=\"No Festivo\",tbl_ORIGINAL[[#This Row],[DIASEM]]<=4),1,0)","v":1},{"$f":"IF(AND(tbl_ORIGINAL[[#This Row],[Festivo]]=\"No Festivo\",OR(tbl_ORIGINAL[[#This Row],[DIASEM]]=5,tbl_ORIGINAL[[#This Row],[DIASEM]]=6)),1,0)","v":0}]
["2019-07-30","No festivo",2,{"$f":"IF(AND(tbl_ORIGINAL[[#This Row],[Festivo]]=\"No Festivo\",tbl_ORIGINAL[[#This Row],[DIASEM]]<=5),1,0)","v":1},{"$f":"IF(AND(tbl_ORIGINAL[[#This Row],[Festivo]]=\"No Festivo\",tbl_ORIGINAL[[#This Row],[DIASEM]]<=4),1,0)","v":1},{"$f":"IF(AND(tbl_ORIGINAL[[#This Row],[Festivo]]=\"No Festivo\",OR(tbl_ORIGINAL[[#This Row],[DIASEM]]=5,tbl_ORIGINAL[[#This Row],[DIASEM]]=6)),1,0)","v":0}]
["2019-07-31","No festivo",3,{"$f":"IF(AND(tbl_ORIGINAL[[#This Row],[Festivo]]=\"No Festivo\",tbl_ORIGINAL[[#This Row],[DIASEM]]<=5),1,0)","v":1},{"$f":"IF(AND(tbl_ORIGINAL[[#This Row],[Festivo]]=\"No Festivo\",tbl_ORIGINAL[[#This Row],[DIASEM]]<=4),1,0)","v":1},{"$f":"IF(AND(tbl_ORIGINAL[[#This Row],[Festivo]]=\"No Festivo\",OR(tbl_ORIGINAL[[#This Row],[DIASEM]]=5,tbl_ORIGINAL[[#This Row],[DIASEM]]=6)),1,0)","v":0}]
["2019-08-01","No festivo",4,{"$f":"IF(AND(tbl_ORIGINAL[[#This Row],[Festivo]]=\"No Festivo\",tbl_ORIGINAL[[#This Row],[DIASEM]]<=5),1,0)","v":1},{"$f":"IF(AND(tbl_ORIGINAL[[#This Row],[Festivo]]=\"No Festivo\",tbl_ORIGINAL[[#This Row],[DIASEM]]<=4),1,0)","v":1},{"$f":"IF(AND(tbl_ORIGINAL[[#This Row],[Festivo]]=\"No Festivo\",OR(tbl_ORIGINAL[[#This Row],[DIASEM]]=5,tbl_ORIGINAL[[#This Row],[DIASEM]]=6)),1,0)","v":0}]
["2019-08-02","No festivo",5,{"$f":"IF(AND(tbl_ORIGINAL[[#This Row],[Festivo]]=\"No Festivo\",tbl_ORIGINAL[[#This Row],[DIASEM]]<=5),1,0)","v":1},{"$f":"IF(AND(tbl_ORIGINAL[[#This Row],[Festivo]]=\"No Festivo\",tbl_ORIGINAL[[#This Row],[DIASEM]]<=4),1,0)","v":0},{"$f":"IF(AND(tbl_ORIGINAL[[#This Row],[Festivo]]=\"No Festivo\",OR(tbl_ORIGINAL[[#This Row],[DIASEM]]=5,tbl_ORIGINAL[[#This Row],[DIASEM]]=6)),1,0)","v":1}]
["2019-08-03","No festivo",6,{"$f":"IF(AND(tbl_ORIGINAL[[#This Row],[Festivo]]=\"No Festivo\",tbl_ORIGINAL[[#This Row],[DIASEM]]<=5),1,0)","v":0},{"$f":"IF(AND(tbl_ORIGINAL[[#This Row],[Festivo]]=\"No Festivo\",tbl_ORIGINAL[[#This Row],[DIASEM]]<=4),1,0)","v":0},{"$f":"IF(AND(tbl_ORIGINAL[[#This Row],[Festivo]]=\"No Festivo\",OR(tbl_ORIGINAL[[#This Row],[DIASEM]]=5,tbl_ORIGINAL[[#This Row],[DIASEM]]=6)),1,0)","v":1}]
["2019-08-04","No festivo",7,{"$f":"IF(AND(tbl_ORIGINAL[[#This Row],[Festivo]]=\"No Festivo\",tbl_ORIGINAL[[#This Row],[DIASEM]]<=5),1,0)","v":0},{"$f":"IF(AND(tbl_ORIGINAL[[#This Row],[Festivo]]=\"No Festivo\",tbl_ORIGINAL[[#This Row],[DIASEM]]<=4),1,0)","v":0},{"$f":"IF(AND(tbl_ORIGINAL[[#This Row],[Festivo]]=\"No Festivo\",OR(tbl_ORIGINAL[[#This Row],[DIASEM]]=5,tbl_ORIGINAL[[#This Row],[DIASEM]]=6)),1,0)","v":0}]
["2019-08-05","No festivo",1,{"$f":"IF(AND(tbl_ORIGINAL[[#This Row],[Festivo]]=\"No Festivo\",tbl_ORIGINAL[[#This Row],[DIASEM]]<=5),1,0)","v":1},{"$f":"IF(AND(tbl_ORIGINAL[[#This Row],[Festivo]]=\"No Festivo\",tbl_ORIGINAL[[#This Row],[DIASEM]]<=4),1,0)","v":1},{"$f":"IF(AND(tbl_ORIGINAL[[#This Row],[Festivo]]=\"No Festivo\",OR(tbl_ORIGINAL[[#This Row],[DIASEM]]=5,tbl_ORIGINAL[[#This Row],[DIASEM]]=6)),1,0)","v":0}]
["2019-08-06","No festivo",2,{"$f":"IF(AND(tbl_ORIGINAL[[#This Row],[Festivo]]=\"No Festivo\",tbl_ORIGINAL[[#This Row],[DIASEM]]<=5),1,0)","v":1},{"$f":"IF(AND(tbl_ORIGINAL[[#This Row],[Festivo]]=\"No Festivo\",tbl_ORIGINAL[[#This Row],[DIASEM]]<=4),1,0)","v":1},{"$f":"IF(AND(tbl_ORIGINAL[[#This Row],[Festivo]]=\"No Festivo\",OR(tbl_ORIGINAL[[#This Row],[DIASEM]]=5,tbl_ORIGINAL[[#This Row],[DIASEM]]=6)),1,0)","v":0}]
["2019-08-07","Festivo",3,{"$f":"IF(AND(tbl_ORIGINAL[[#This Row],[Festivo]]=\"No Festivo\",tbl_ORIGINAL[[#This Row],[DIASEM]]<=5),1,0)","v":0},{"$f":"IF(AND(tbl_ORIGINAL[[#This Row],[Festivo]]=\"No Festivo\",tbl_ORIGINAL[[#This Row],[DIASEM]]<=4),1,0)","v":0},{"$f":"IF(AND(tbl_ORIGINAL[[#This Row],[Festivo]]=\"No Festivo\",OR(tbl_ORIGINAL[[#This Row],[DIASEM]]=5,tbl_ORIGINAL[[#This Row],[DIASEM]]=6)),1,0)","v":0}]
["2019-08-08","No festivo",4,{"$f":"IF(AND(tbl_ORIGINAL[[#This Row],[Festivo]]=\"No Festivo\",tbl_ORIGINAL[[#This Row],[DIASEM]]<=5),1,0)","v":1},{"$f":"IF(AND(tbl_ORIGINAL[[#This Row],[Festivo]]=\"No Festivo\",tbl_ORIGINAL[[#This Row],[DIASEM]]<=4),1,0)","v":1},{"$f":"IF(AND(tbl_ORIGINAL[[#This Row],[Festivo]]=\"No Festivo\",OR(tbl_ORIGINAL[[#This Row],[DIASEM]]=5,tbl_ORIGINAL[[#This Row],[DIASEM]]=6)),1,0)","v":0}]
["2019-08-09","No festivo",5,{"$f":"IF(AND(tbl_ORIGINAL[[#This Row],[Festivo]]=\"No Festivo\",tbl_ORIGINAL[[#This Row],[DIASEM]]<=5),1,0)","v":1},{"$f":"IF(AND(tbl_ORIGINAL[[#This Row],[Festivo]]=\"No Festivo\",tbl_ORIGINAL[[#This Row],[DIASEM]]<=4),1,0)","v":0},{"$f":"IF(AND(tbl_ORIGINAL[[#This Row],[Festivo]]=\"No Festivo\",OR(tbl_ORIGINAL[[#This Row],[DIASEM]]=5,tbl_ORIGINAL[[#This Row],[DIASEM]]=6)),1,0)","v":1}]
["2019-08-10","No festivo",6,{"$f":"IF(AND(tbl_ORIGINAL[[#This Row],[Festivo]]=\"No Festivo\",tbl_ORIGINAL[[#This Row],[DIASEM]]<=5),1,0)","v":0},{"$f":"IF(AND(tbl_ORIGINAL[[#This Row],[Festivo]]=\"No Festivo\",tbl_ORIGINAL[[#This Row],[DIASEM]]<=4),1,0)","v":0},{"$f":"IF(AND(tbl_ORIGINAL[[#This Row],[Festivo]]=\"No Festivo\",OR(tbl_ORIGINAL[[#This Row],[DIASEM]]=5,tbl_ORIGINAL[[#This Row],[DIASEM]]=6)),1,0)","v":1}]
["2019-08-11","No festivo",7,{"$f":"IF(AND(tbl_ORIGINAL[[#This Row],[Festivo]]=\"No Festivo\",tbl_ORIGINAL[[#This Row],[DIASEM]]<=5),1,0)","v":0},{"$f":"IF(AND(tbl_ORIGINAL[[#This Row],[Festivo]]=\"No Festivo\",tbl_ORIGINAL[[#This Row],[DIASEM]]<=4),1,0)","v":0},{"$f":"IF(AND(tbl_ORIGINAL[[#This Row],[Festivo]]=\"No Festivo\",OR(tbl_ORIGINAL[[#This Row],[DIASEM]]=5,tbl_ORIGINAL[[#This Row],[DIASEM]]=6)),1,0)","v":0}]
["2019-08-12","No festivo",1,{"$f":"IF(AND(tbl_ORIGINAL[[#This Row],[Festivo]]=\"No Festivo\",tbl_ORIGINAL[[#This Row],[DIASEM]]<=5),1,0)","v":1},{"$f":"IF(AND(tbl_ORIGINAL[[#This Row],[Festivo]]=\"No Festivo\",tbl_ORIGINAL[[#This Row],[DIASEM]]<=4),1,0)","v":1},{"$f":"IF(AND(tbl_ORIGINAL[[#This Row],[Festivo]]=\"No Festivo\",OR(tbl_ORIGINAL[[#This Row],[DIASEM]]=5,tbl_ORIGINAL[[#This Row],[DIASEM]]=6)),1,0)","v":0}]
["2019-08-13","No festivo",2,{"$f":"IF(AND(tbl_ORIGINAL[[#This Row],[Festivo]]=\"No Festivo\",tbl_ORIGINAL[[#This Row],[DIASEM]]<=5),1,0)","v":1},{"$f":"IF(AND(tbl_ORIGINAL[[#This Row],[Festivo]]=\"No Festivo\",tbl_ORIGINAL[[#This Row],[DIASEM]]<=4),1,0)","v":1},{"$f":"IF(AND(tbl_ORIGINAL[[#This Row],[Festivo]]=\"No Festivo\",OR(tbl_ORIGINAL[[#This Row],[DIASEM]]=5,tbl_ORIGINAL[[#This Row],[DIASEM]]=6)),1,0)","v":0}]
["2019-08-14","No festivo",3,{"$f":"IF(AND(tbl_ORIGINAL[[#This Row],[Festivo]]=\"No Festivo\",tbl_ORIGINAL[[#This Row],[DIASEM]]<=5),1,0)","v":1},{"$f":"IF(AND(tbl_ORIGINAL[[#This Row],[Festivo]]=\"No Festivo\",tbl_ORIGINAL[[#This Row],[DIASEM]]<=4),1,0)","v":1},{"$f":"IF(AND(tbl_ORIGINAL[[#This Row],[Festivo]]=\"No Festivo\",OR(tbl_ORIGINAL[[#This Row],[DIASEM]]=5,tbl_ORIGINAL[[#This Row],[DIASEM]]=6)),1,0)","v":0}]
["2019-08-15","No festivo",4,{"$f":"IF(AND(tbl_ORIGINAL[[#This Row],[Festivo]]=\"No Festivo\",tbl_ORIGINAL[[#This Row],[DIASEM]]<=5),1,0)","v":1},{"$f":"IF(AND(tbl_ORIGINAL[[#This Row],[Festivo]]=\"No Festivo\",tbl_ORIGINAL[[#This Row],[DIASEM]]<=4),1,0)","v":1},{"$f":"IF(AND(tbl_ORIGINAL[[#This Row],[Festivo]]=\"No Festivo\",OR(tbl_ORIGINAL[[#This Row],[DIASEM]]=5,tbl_ORIGINAL[[#This Row],[DIASEM]]=6)),1,0)","v":0}]
["2019-08-16","No festivo",5,{"$f":"IF(AND(tbl_ORIGINAL[[#This Row],[Festivo]]=\"No Festivo\",tbl_ORIGINAL[[#This Row],[DIASEM]]<=5),1,0)","v":1},{"$f":"IF(AND(tbl_ORIGINAL[[#This Row],[Festivo]]=\"No Festivo\",tbl_ORIGINAL[[#This Row],[DIASEM]]<=4),1,0)","v":0},{"$f":"IF(AND(tbl_ORIGINAL[[#This Row],[Festivo]]=\"No Festivo\",OR(tbl_ORIGINAL[[#This Row],[DIASEM]]=5,tbl_ORIGINAL[[#This Row],[DIASEM]]=6)),1,0)","v":1}]
["2019-08-17","No festivo",6,{"$f":"IF(AND(tbl_ORIGINAL[[#This Row],[Festivo]]=\"No Festivo\",tbl_ORIGINAL[[#This Row],[DIASEM]]<=5),1,0)","v":0},{"$f":"IF(AND(tbl_ORIGINAL[[#This Row],[Festivo]]=\"No Festivo\",tbl_ORIGINAL[[#This Row],[DIASEM]]<=4),1,0)","v":0},{"$f":"IF(AND(tbl_ORIGINAL[[#This Row],[Festivo]]=\"No Festivo\",OR(tbl_ORIGINAL[[#This Row],[DIASEM]]=5,tbl_ORIGINAL[[#This Row],[DIASEM]]=6)),1,0)","v":1}]
["2019-08-18","No festivo",7,{"$f":"IF(AND(tbl_ORIGINAL[[#This Row],[Festivo]]=\"No Festivo\",tbl_ORIGINAL[[#This Row],[DIASEM]]<=5),1,0)","v":0},{"$f":"IF(AND(tbl_ORIGINAL[[#This Row],[Festivo]]=\"No Festivo\",tbl_ORIGINAL[[#This Row],[DIASEM]]<=4),1,0)","v":0},{"$f":"IF(AND(tbl_ORIGINAL[[#This Row],[Festivo]]=\"No Festivo\",OR(tbl_ORIGINAL[[#This Row],[DIASEM]]=5,tbl_ORIGINAL[[#This Row],[DIASEM]]=6)),1,0)","v":0}]
["2019-08-19","Festivo",1,{"$f":"IF(AND(tbl_ORIGINAL[[#This Row],[Festivo]]=\"No Festivo\",tbl_ORIGINAL[[#This Row],[DIASEM]]<=5),1,0)","v":0},{"$f":"IF(AND(tbl_ORIGINAL[[#This Row],[Festivo]]=\"No Festivo\",tbl_ORIGINAL[[#This Row],[DIASEM]]<=4),1,0)","v":0},{"$f":"IF(AND(tbl_ORIGINAL[[#This Row],[Festivo]]=\"No Festivo\",OR(tbl_ORIGINAL[[#This Row],[DIASEM]]=5,tbl_ORIGINAL[[#This Row],[DIASEM]]=6)),1,0)","v":0}]
["2019-08-20","No festivo",2,{"$f":"IF(AND(tbl_ORIGINAL[[#This Row],[Festivo]]=\"No Festivo\",tbl_ORIGINAL[[#This Row],[DIASEM]]<=5),1,0)","v":1},{"$f":"IF(AND(tbl_ORIGINAL[[#This Row],[Festivo]]=\"No Festivo\",tbl_ORIGINAL[[#This Row],[DIASEM]]<=4),1,0)","v":1},{"$f":"IF(AND(tbl_ORIGINAL[[#This Row],[Festivo]]=\"No Festivo\",OR(tbl_ORIGINAL[[#This Row],[DIASEM]]=5,tbl_ORIGINAL[[#This Row],[DIASEM]]=6)),1,0)","v":0}]
["2019-08-21","No festivo",3,{"$f":"IF(AND(tbl_ORIGINAL[[#This Row],[Festivo]]=\"No Festivo\",tbl_ORIGINAL[[#This Row],[DIASEM]]<=5),1,0)","v":1},{"$f":"IF(AND(tbl_ORIGINAL[[#This Row],[Festivo]]=\"No Festivo\",tbl_ORIGINAL[[#This Row],[DIASEM]]<=4),1,0)","v":1},{"$f":"IF(AND(tbl_ORIGINAL[[#This Row],[Festivo]]=\"No Festivo\",OR(tbl_ORIGINAL[[#This Row],[DIASEM]]=5,tbl_ORIGINAL[[#This Row],[DIASEM]]=6)),1,0)","v":0}]
["2019-08-22","No festivo",4,{"$f":"IF(AND(tbl_ORIGINAL[[#This Row],[Festivo]]=\"No Festivo\",tbl_ORIGINAL[[#This Row],[DIASEM]]<=5),1,0)","v":1},{"$f":"IF(AND(tbl_ORIGINAL[[#This Row],[Festivo]]=\"No Festivo\",tbl_ORIGINAL[[#This Row],[DIASEM]]<=4),1,0)","v":1},{"$f":"IF(AND(tbl_ORIGINAL[[#This Row],[Festivo]]=\"No Festivo\",OR(tbl_ORIGINAL[[#This Row],[DIASEM]]=5,tbl_ORIGINAL[[#This Row],[DIASEM]]=6)),1,0)","v":0}]
["2019-08-23","No festivo",5,{"$f":"IF(AND(tbl_ORIGINAL[[#This Row],[Festivo]]=\"No Festivo\",tbl_ORIGINAL[[#This Row],[DIASEM]]<=5),1,0)","v":1},{"$f":"IF(AND(tbl_ORIGINAL[[#This Row],[Festivo]]=\"No Festivo\",tbl_ORIGINAL[[#This Row],[DIASEM]]<=4),1,0)","v":0},{"$f":"IF(AND(tbl_ORIGINAL[[#This Row],[Festivo]]=\"No Festivo\",OR(tbl_ORIGINAL[[#This Row],[DIASEM]]=5,tbl_ORIGINAL[[#This Row],[DIASEM]]=6)),1,0)","v":1}]
["2019-08-24","No festivo",6,{"$f":"IF(AND(tbl_ORIGINAL[[#This Row],[Festivo]]=\"No Festivo\",tbl_ORIGINAL[[#This Row],[DIASEM]]<=5),1,0)","v":0},{"$f":"IF(AND(tbl_ORIGINAL[[#This Row],[Festivo]]=\"No Festivo\",tbl_ORIGINAL[[#This Row],[DIASEM]]<=4),1,0)","v":0},{"$f":"IF(AND(tbl_ORIGINAL[[#This Row],[Festivo]]=\"No Festivo\",OR(tbl_ORIGINAL[[#This Row],[DIASEM]]=5,tbl_ORIGINAL[[#This Row],[DIASEM]]=6)),1,0)","v":1}]
["2019-08-25","No festivo",7,{"$f":"IF(AND(tbl_ORIGINAL[[#This Row],[Festivo]]=\"No Festivo\",tbl_ORIGINAL[[#This Row],[DIASEM]]<=5),1,0)","v":0},{"$f":"IF(AND(tbl_ORIGINAL[[#This Row],[Festivo]]=\"No Festivo\",tbl_ORIGINAL[[#This Row],[DIASEM]]<=4),1,0)","v":0},{"$f":"IF(AND(tbl_ORIGINAL[[#This Row],[Festivo]]=\"No Festivo\",OR(tbl_ORIGINAL[[#This Row],[DIASEM]]=5,tbl_ORIGINAL[[#This Row],[DIASEM]]=6)),1,0)","v":0}]
["2019-08-26","No festivo",1,{"$f":"IF(AND(tbl_ORIGINAL[[#This Row],[Festivo]]=\"No Festivo\",tbl_ORIGINAL[[#This Row],[DIASEM]]<=5),1,0)","v":1},{"$f":"IF(AND(tbl_ORIGINAL[[#This Row],[Festivo]]=\"No Festivo\",tbl_ORIGINAL[[#This Row],[DIASEM]]<=4),1,0)","v":1},{"$f":"IF(AND(tbl_ORIGINAL[[#This Row],[Festivo]]=\"No Festivo\",OR(tbl_ORIGINAL[[#This Row],[DIASEM]]=5,tbl_ORIGINAL[[#This Row],[DIASEM]]=6)),1,0)","v":0}]
["2019-08-27","No festivo",2,{"$f":"IF(AND(tbl_ORIGINAL[[#This Row],[Festivo]]=\"No Festivo\",tbl_ORIGINAL[[#This Row],[DIASEM]]<=5),1,0)","v":1},{"$f":"IF(AND(tbl_ORIGINAL[[#This Row],[Festivo]]=\"No Festivo\",tbl_ORIGINAL[[#This Row],[DIASEM]]<=4),1,0)","v":1},{"$f":"IF(AND(tbl_ORIGINAL[[#This Row],[Festivo]]=\"No Festivo\",OR(tbl_ORIGINAL[[#This Row],[DIASEM]]=5,tbl_ORIGINAL[[#This Row],[DIASEM]]=6)),1,0)","v":0}]
["2019-08-28","No festivo",3,{"$f":"IF(AND(tbl_ORIGINAL[[#This Row],[Festivo]]=\"No Festivo\",tbl_ORIGINAL[[#This Row],[DIASEM]]<=5),1,0)","v":1},{"$f":"IF(AND(tbl_ORIGINAL[[#This Row],[Festivo]]=\"No Festivo\",tbl_ORIGINAL[[#This Row],[DIASEM]]<=4),1,0)","v":1},{"$f":"IF(AND(tbl_ORIGINAL[[#This Row],[Festivo]]=\"No Festivo\",OR(tbl_ORIGINAL[[#This Row],[DIASEM]]=5,tbl_ORIGINAL[[#This Row],[DIASEM]]=6)),1,0)","v":0}]
["2019-08-29","No festivo",4,{"$f":"IF(AND(tbl_ORIGINAL[[#This Row],[Festivo]]=\"No Festivo\",tbl_ORIGINAL[[#This Row],[DIASEM]]<=5),1,0)","v":1},{"$f":"IF(AND(tbl_ORIGINAL[[#This Row],[Festivo]]=\"No Festivo\",tbl_ORIGINAL[[#This Row],[DIASEM]]<=4),1,0)","v":1},{"$f":"IF(AND(tbl_ORIGINAL[[#This Row],[Festivo]]=\"No Festivo\",OR(tbl_ORIGINAL[[#This Row],[DIASEM]]=5,tbl_ORIGINAL[[#This Row],[DIASEM]]=6)),1,0)","v":0}]
["2019-08-30","No festivo",5,{"$f":"IF(AND(tbl_ORIGINAL[[#This Row],[Festivo]]=\"No Festivo\",tbl_ORIGINAL[[#This Row],[DIASEM]]<=5),1,0)","v":1},{"$f":"IF(AND(tbl_ORIGINAL[[#This Row],[Festivo]]=\"No Festivo\",tbl_ORIGINAL[[#This Row],[DIASEM]]<=4),1,0)","v":0},{"$f":"IF(AND(tbl_ORIGINAL[[#This Row],[Festivo]]=\"No Festivo\",OR(tbl_ORIGINAL[[#This Row],[DIASEM]]=5,tbl_ORIGINAL[[#This Row],[DIASEM]]=6)),1,0)","v":1}]
["2019-08-31","No festivo",6,{"$f":"IF(AND(tbl_ORIGINAL[[#This Row],[Festivo]]=\"No Festivo\",tbl_ORIGINAL[[#This Row],[DIASEM]]<=5),1,0)","v":0},{"$f":"IF(AND(tbl_ORIGINAL[[#This Row],[Festivo]]=\"No Festivo\",tbl_ORIGINAL[[#This Row],[DIASEM]]<=4),1,0)","v":0},{"$f":"IF(AND(tbl_ORIGINAL[[#This Row],[Festivo]]=\"No Festivo\",OR(tbl_ORIGINAL[[#This Row],[DIASEM]]=5,tbl_ORIGINAL[[#This Row],[DIASEM]]=6)),1,0)","v":1}]
["2019-09-01","No festivo",7,{"$f":"IF(AND(tbl_ORIGINAL[[#This Row],[Festivo]]=\"No Festivo\",tbl_ORIGINAL[[#This Row],[DIASEM]]<=5),1,0)","v":0},{"$f":"IF(AND(tbl_ORIGINAL[[#This Row],[Festivo]]=\"No Festivo\",tbl_ORIGINAL[[#This Row],[DIASEM]]<=4),1,0)","v":0},{"$f":"IF(AND(tbl_ORIGINAL[[#This Row],[Festivo]]=\"No Festivo\",OR(tbl_ORIGINAL[[#This Row],[DIASEM]]=5,tbl_ORIGINAL[[#This Row],[DIASEM]]=6)),1,0)","v":0}]
["2019-09-02","No festivo",1,{"$f":"IF(AND(tbl_ORIGINAL[[#This Row],[Festivo]]=\"No Festivo\",tbl_ORIGINAL[[#This Row],[DIASEM]]<=5),1,0)","v":1},{"$f":"IF(AND(tbl_ORIGINAL[[#This Row],[Festivo]]=\"No Festivo\",tbl_ORIGINAL[[#This Row],[DIASEM]]<=4),1,0)","v":1},{"$f":"IF(AND(tbl_ORIGINAL[[#This Row],[Festivo]]=\"No Festivo\",OR(tbl_ORIGINAL[[#This Row],[DIASEM]]=5,tbl_ORIGINAL[[#This Row],[DIASEM]]=6)),1,0)","v":0}]
["2019-09-03","No festivo",2,{"$f":"IF(AND(tbl_ORIGINAL[[#This Row],[Festivo]]=\"No Festivo\",tbl_ORIGINAL[[#This Row],[DIASEM]]<=5),1,0)","v":1},{"$f":"IF(AND(tbl_ORIGINAL[[#This Row],[Festivo]]=\"No Festivo\",tbl_ORIGINAL[[#This Row],[DIASEM]]<=4),1,0)","v":1},{"$f":"IF(AND(tbl_ORIGINAL[[#This Row],[Festivo]]=\"No Festivo\",OR(tbl_ORIGINAL[[#This Row],[DIASEM]]=5,tbl_ORIGINAL[[#This Row],[DIASEM]]=6)),1,0)","v":0}]
["2019-09-04","No festivo",3,{"$f":"IF(AND(tbl_ORIGINAL[[#This Row],[Festivo]]=\"No Festivo\",tbl_ORIGINAL[[#This Row],[DIASEM]]<=5),1,0)","v":1},{"$f":"IF(AND(tbl_ORIGINAL[[#This Row],[Festivo]]=\"No Festivo\",tbl_ORIGINAL[[#This Row],[DIASEM]]<=4),1,0)","v":1},{"$f":"IF(AND(tbl_ORIGINAL[[#This Row],[Festivo]]=\"No Festivo\",OR(tbl_ORIGINAL[[#This Row],[DIASEM]]=5,tbl_ORIGINAL[[#This Row],[DIASEM]]=6)),1,0)","v":0}]
["2019-09-05","No festivo",4,{"$f":"IF(AND(tbl_ORIGINAL[[#This Row],[Festivo]]=\"No Festivo\",tbl_ORIGINAL[[#This Row],[DIASEM]]<=5),1,0)","v":1},{"$f":"IF(AND(tbl_ORIGINAL[[#This Row],[Festivo]]=\"No Festivo\",tbl_ORIGINAL[[#This Row],[DIASEM]]<=4),1,0)","v":1},{"$f":"IF(AND(tbl_ORIGINAL[[#This Row],[Festivo]]=\"No Festivo\",OR(tbl_ORIGINAL[[#This Row],[DIASEM]]=5,tbl_ORIGINAL[[#This Row],[DIASEM]]=6)),1,0)","v":0}]
["2019-09-06","No festivo",5,{"$f":"IF(AND(tbl_ORIGINAL[[#This Row],[Festivo]]=\"No Festivo\",tbl_ORIGINAL[[#This Row],[DIASEM]]<=5),1,0)","v":1},{"$f":"IF(AND(tbl_ORIGINAL[[#This Row],[Festivo]]=\"No Festivo\",tbl_ORIGINAL[[#This Row],[DIASEM]]<=4),1,0)","v":0},{"$f":"IF(AND(tbl_ORIGINAL[[#This Row],[Festivo]]=\"No Festivo\",OR(tbl_ORIGINAL[[#This Row],[DIASEM]]=5,tbl_ORIGINAL[[#This Row],[DIASEM]]=6)),1,0)","v":1}]
["2019-09-07","No festivo",6,{"$f":"IF(AND(tbl_ORIGINAL[[#This Row],[Festivo]]=\"No Festivo\",tbl_ORIGINAL[[#This Row],[DIASEM]]<=5),1,0)","v":0},{"$f":"IF(AND(tbl_ORIGINAL[[#This Row],[Festivo]]=\"No Festivo\",tbl_ORIGINAL[[#This Row],[DIASEM]]<=4),1,0)","v":0},{"$f":"IF(AND(tbl_ORIGINAL[[#This Row],[Festivo]]=\"No Festivo\",OR(tbl_ORIGINAL[[#This Row],[DIASEM]]=5,tbl_ORIGINAL[[#This Row],[DIASEM]]=6)),1,0)","v":1}]
["2019-09-08","No festivo",7,{"$f":"IF(AND(tbl_ORIGINAL[[#This Row],[Festivo]]=\"No Festivo\",tbl_ORIGINAL[[#This Row],[DIASEM]]<=5),1,0)","v":0},{"$f":"IF(AND(tbl_ORIGINAL[[#This Row],[Festivo]]=\"No Festivo\",tbl_ORIGINAL[[#This Row],[DIASEM]]<=4),1,0)","v":0},{"$f":"IF(AND(tbl_ORIGINAL[[#This Row],[Festivo]]=\"No Festivo\",OR(tbl_ORIGINAL[[#This Row],[DIASEM]]=5,tbl_ORIGINAL[[#This Row],[DIASEM]]=6)),1,0)","v":0}]
["2019-09-09","No festivo",1,{"$f":"IF(AND(tbl_ORIGINAL[[#This Row],[Festivo]]=\"No Festivo\",tbl_ORIGINAL[[#This Row],[DIASEM]]<=5),1,0)","v":1},{"$f":"IF(AND(tbl_ORIGINAL[[#This Row],[Festivo]]=\"No Festivo\",tbl_ORIGINAL[[#This Row],[DIASEM]]<=4),1,0)","v":1},{"$f":"IF(AND(tbl_ORIGINAL[[#This Row],[Festivo]]=\"No Festivo\",OR(tbl_ORIGINAL[[#This Row],[DIASEM]]=5,tbl_ORIGINAL[[#This Row],[DIASEM]]=6)),1,0)","v":0}]
["2019-09-10","No festivo",2,{"$f":"IF(AND(tbl_ORIGINAL[[#This Row],[Festivo]]=\"No Festivo\",tbl_ORIGINAL[[#This Row],[DIASEM]]<=5),1,0)","v":1},{"$f":"IF(AND(tbl_ORIGINAL[[#This Row],[Festivo]]=\"No Festivo\",tbl_ORIGINAL[[#This Row],[DIASEM]]<=4),1,0)","v":1},{"$f":"IF(AND(tbl_ORIGINAL[[#This Row],[Festivo]]=\"No Festivo\",OR(tbl_ORIGINAL[[#This Row],[DIASEM]]=5,tbl_ORIGINAL[[#This Row],[DIASEM]]=6)),1,0)","v":0}]
["2019-09-11","No festivo",3,{"$f":"IF(AND(tbl_ORIGINAL[[#This Row],[Festivo]]=\"No Festivo\",tbl_ORIGINAL[[#This Row],[DIASEM]]<=5),1,0)","v":1},{"$f":"IF(AND(tbl_ORIGINAL[[#This Row],[Festivo]]=\"No Festivo\",tbl_ORIGINAL[[#This Row],[DIASEM]]<=4),1,0)","v":1},{"$f":"IF(AND(tbl_ORIGINAL[[#This Row],[Festivo]]=\"No Festivo\",OR(tbl_ORIGINAL[[#This Row],[DIASEM]]=5,tbl_ORIGINAL[[#This Row],[DIASEM]]=6)),1,0)","v":0}]
["2019-09-12","No festivo",4,{"$f":"IF(AND(tbl_ORIGINAL[[#This Row],[Festivo]]=\"No Festivo\",tbl_ORIGINAL[[#This Row],[DIASEM]]<=5),1,0)","v":1},{"$f":"IF(AND(tbl_ORIGINAL[[#This Row],[Festivo]]=\"No Festivo\",tbl_ORIGINAL[[#This Row],[DIASEM]]<=4),1,0)","v":1},{"$f":"IF(AND(tbl_ORIGINAL[[#This Row],[Festivo]]=\"No Festivo\",OR(tbl_ORIGINAL[[#This Row],[DIASEM]]=5,tbl_ORIGINAL[[#This Row],[DIASEM]]=6)),1,0)","v":0}]
["2019-09-13","No festivo",5,{"$f":"IF(AND(tbl_ORIGINAL[[#This Row],[Festivo]]=\"No Festivo\",tbl_ORIGINAL[[#This Row],[DIASEM]]<=5),1,0)","v":1},{"$f":"IF(AND(tbl_ORIGINAL[[#This Row],[Festivo]]=\"No Festivo\",tbl_ORIGINAL[[#This Row],[DIASEM]]<=4),1,0)","v":0},{"$f":"IF(AND(tbl_ORIGINAL[[#This Row],[Festivo]]=\"No Festivo\",OR(tbl_ORIGINAL[[#This Row],[DIASEM]]=5,tbl_ORIGINAL[[#This Row],[DIASEM]]=6)),1,0)","v":1}]
["2019-09-14","No festivo",6,{"$f":"IF(AND(tbl_ORIGINAL[[#This Row],[Festivo]]=\"No Festivo\",tbl_ORIGINAL[[#This Row],[DIASEM]]<=5),1,0)","v":0},{"$f":"IF(AND(tbl_ORIGINAL[[#This Row],[Festivo]]=\"No Festivo\",tbl_ORIGINAL[[#This Row],[DIASEM]]<=4),1,0)","v":0},{"$f":"IF(AND(tbl_ORIGINAL[[#This Row],[Festivo]]=\"No Festivo\",OR(tbl_ORIGINAL[[#This Row],[DIASEM]]=5,tbl_ORIGINAL[[#This Row],[DIASEM]]=6)),1,0)","v":1}]
["2019-09-15","No festivo",{"$f":"WEEKDAY(A260,2)","v":7},{"$f":"IF(AND(tbl_ORIGINAL[[#This Row],[Festivo]]=\"No Festivo\",tbl_ORIGINAL[[#This Row],[DIASEM]]<=5),1,0)","v":0},{"$f":"IF(AND(tbl_ORIGINAL[[#This Row],[Festivo]]=\"No Festivo\",tbl_ORIGINAL[[#This Row],[DIASEM]]<=4),1,0)","v":0},{"$f":"IF(AND(tbl_ORIGINAL[[#This Row],[Festivo]]=\"No Festivo\",OR(tbl_ORIGINAL[[#This Row],[DIASEM]]=5,tbl_ORIGINAL[[#This Row],[DIASEM]]=6)),1,0)","v":0}]
["2019-09-16","No festivo",1,{"$f":"IF(AND(tbl_ORIGINAL[[#This Row],[Festivo]]=\"No Festivo\",tbl_ORIGINAL[[#This Row],[DIASEM]]<=5),1,0)","v":1},{"$f":"IF(AND(tbl_ORIGINAL[[#This Row],[Festivo]]=\"No Festivo\",tbl_ORIGINAL[[#This Row],[DIASEM]]<=4),1,0)","v":1},{"$f":"IF(AND(tbl_ORIGINAL[[#This Row],[Festivo]]=\"No Festivo\",OR(tbl_ORIGINAL[[#This Row],[DIASEM]]=5,tbl_ORIGINAL[[#This Row],[DIASEM]]=6)),1,0)","v":0}]
["2019-09-17","No festivo",2,{"$f":"IF(AND(tbl_ORIGINAL[[#This Row],[Festivo]]=\"No Festivo\",tbl_ORIGINAL[[#This Row],[DIASEM]]<=5),1,0)","v":1},{"$f":"IF(AND(tbl_ORIGINAL[[#This Row],[Festivo]]=\"No Festivo\",tbl_ORIGINAL[[#This Row],[DIASEM]]<=4),1,0)","v":1},{"$f":"IF(AND(tbl_ORIGINAL[[#This Row],[Festivo]]=\"No Festivo\",OR(tbl_ORIGINAL[[#This Row],[DIASEM]]=5,tbl_ORIGINAL[[#This Row],[DIASEM]]=6)),1,0)","v":0}]
["2019-09-18","No festivo",3,{"$f":"IF(AND(tbl_ORIGINAL[[#This Row],[Festivo]]=\"No Festivo\",tbl_ORIGINAL[[#This Row],[DIASEM]]<=5),1,0)","v":1},{"$f":"IF(AND(tbl_ORIGINAL[[#This Row],[Festivo]]=\"No Festivo\",tbl_ORIGINAL[[#This Row],[DIASEM]]<=4),1,0)","v":1},{"$f":"IF(AND(tbl_ORIGINAL[[#This Row],[Festivo]]=\"No Festivo\",OR(tbl_ORIGINAL[[#This Row],[DIASEM]]=5,tbl_ORIGINAL[[#This Row],[DIASEM]]=6)),1,0)","v":0}]
["2019-09-19","No festivo",4,{"$f":"IF(AND(tbl_ORIGINAL[[#This Row],[Festivo]]=\"No Festivo\",tbl_ORIGINAL[[#This Row],[DIASEM]]<=5),1,0)","v":1},{"$f":"IF(AND(tbl_ORIGINAL[[#This Row],[Festivo]]=\"No Festivo\",tbl_ORIGINAL[[#This Row],[DIASEM]]<=4),1,0)","v":1},{"$f":"IF(AND(tbl_ORIGINAL[[#This Row],[Festivo]]=\"No Festivo\",OR(tbl_ORIGINAL[[#This Row],[DIASEM]]=5,tbl_ORIGINAL[[#This Row],[DIASEM]]=6)),1,0)","v":0}]
["2019-09-20","No festivo",5,{"$f":"IF(AND(tbl_ORIGINAL[[#This Row],[Festivo]]=\"No Festivo\",tbl_ORIGINAL[[#This Row],[DIASEM]]<=5),1,0)","v":1},{"$f":"IF(AND(tbl_ORIGINAL[[#This Row],[Festivo]]=\"No Festivo\",tbl_ORIGINAL[[#This Row],[DIASEM]]<=4),1,0)","v":0},{"$f":"IF(AND(tbl_ORIGINAL[[#This Row],[Festivo]]=\"No Festivo\",OR(tbl_ORIGINAL[[#This Row],[DIASEM]]=5,tbl_ORIGINAL[[#This Row],[DIASEM]]=6)),1,0)","v":1}]
["2019-09-21","No festivo",6,{"$f":"IF(AND(tbl_ORIGINAL[[#This Row],[Festivo]]=\"No Festivo\",tbl_ORIGINAL[[#This Row],[DIASEM]]<=5),1,0)","v":0},{"$f":"IF(AND(tbl_ORIGINAL[[#This Row],[Festivo]]=\"No Festivo\",tbl_ORIGINAL[[#This Row],[DIASEM]]<=4),1,0)","v":0},{"$f":"IF(AND(tbl_ORIGINAL[[#This Row],[Festivo]]=\"No Festivo\",OR(tbl_ORIGINAL[[#This Row],[DIASEM]]=5,tbl_ORIGINAL[[#This Row],[DIASEM]]=6)),1,0)","v":1}]
["2019-09-22","No festivo",7,{"$f":"IF(AND(tbl_ORIGINAL[[#This Row],[Festivo]]=\"No Festivo\",tbl_ORIGINAL[[#This Row],[DIASEM]]<=5),1,0)","v":0},{"$f":"IF(AND(tbl_ORIGINAL[[#This Row],[Festivo]]=\"No Festivo\",tbl_ORIGINAL[[#This Row],[DIASEM]]<=4),1,0)","v":0},{"$f":"IF(AND(tbl_ORIGINAL[[#This Row],[Festivo]]=\"No Festivo\",OR(tbl_ORIGINAL[[#This Row],[DIASEM]]=5,tbl_ORIGINAL[[#This Row],[DIASEM]]=6)),1,0)","v":0}]
["2019-09-23","No festivo",1,{"$f":"IF(AND(tbl_ORIGINAL[[#This Row],[Festivo]]=\"No Festivo\",tbl_ORIGINAL[[#This Row],[DIASEM]]<=5),1,0)","v":1},{"$f":"IF(AND(tbl_ORIGINAL[[#This Row],[Festivo]]=\"No Festivo\",tbl_ORIGINAL[[#This Row],[DIASEM]]<=4),1,0)","v":1},{"$f":"IF(AND(tbl_ORIGINAL[[#This Row],[Festivo]]=\"No Festivo\",OR(tbl_ORIGINAL[[#This Row],[DIASEM]]=5,tbl_ORIGINAL[[#This Row],[DIASEM]]=6)),1,0)","v":0}]
["2019-09-24","No festivo",2,{"$f":"IF(AND(tbl_ORIGINAL[[#This Row],[Festivo]]=\"No Festivo\",tbl_ORIGINAL[[#This Row],[DIASEM]]<=5),1,0)","v":1},{"$f":"IF(AND(tbl_ORIGINAL[[#This Row],[Festivo]]=\"No Festivo\",tbl_ORIGINAL[[#This Row],[DIASEM]]<=4),1,0)","v":1},{"$f":"IF(AND(tbl_ORIGINAL[[#This Row],[Festivo]]=\"No Festivo\",OR(tbl_ORIGINAL[[#This Row],[DIASEM]]=5,tbl_ORIGINAL[[#This Row],[DIASEM]]=6)),1,0)","v":0}]
["2019-09-25","No festivo",3,{"$f":"IF(AND(tbl_ORIGINAL[[#This Row],[Festivo]]=\"No Festivo\",tbl_ORIGINAL[[#This Row],[DIASEM]]<=5),1,0)","v":1},{"$f":"IF(AND(tbl_ORIGINAL[[#This Row],[Festivo]]=\"No Festivo\",tbl_ORIGINAL[[#This Row],[DIASEM]]<=4),1,0)","v":1},{"$f":"IF(AND(tbl_ORIGINAL[[#This Row],[Festivo]]=\"No Festivo\",OR(tbl_ORIGINAL[[#This Row],[DIASEM]]=5,tbl_ORIGINAL[[#This Row],[DIASEM]]=6)),1,0)","v":0}]
["2019-09-26","No festivo",4,{"$f":"IF(AND(tbl_ORIGINAL[[#This Row],[Festivo]]=\"No Festivo\",tbl_ORIGINAL[[#This Row],[DIASEM]]<=5),1,0)","v":1},{"$f":"IF(AND(tbl_ORIGINAL[[#This Row],[Festivo]]=\"No Festivo\",tbl_ORIGINAL[[#This Row],[DIASEM]]<=4),1,0)","v":1},{"$f":"IF(AND(tbl_ORIGINAL[[#This Row],[Festivo]]=\"No Festivo\",OR(tbl_ORIGINAL[[#This Row],[DIASEM]]=5,tbl_ORIGINAL[[#This Row],[DIASEM]]=6)),1,0)","v":0}]
["2019-09-27","No festivo",5,{"$f":"IF(AND(tbl_ORIGINAL[[#This Row],[Festivo]]=\"No Festivo\",tbl_ORIGINAL[[#This Row],[DIASEM]]<=5),1,0)","v":1},{"$f":"IF(AND(tbl_ORIGINAL[[#This Row],[Festivo]]=\"No Festivo\",tbl_ORIGINAL[[#This Row],[DIASEM]]<=4),1,0)","v":0},{"$f":"IF(AND(tbl_ORIGINAL[[#This Row],[Festivo]]=\"No Festivo\",OR(tbl_ORIGINAL[[#This Row],[DIASEM]]=5,tbl_ORIGINAL[[#This Row],[DIASEM]]=6)),1,0)","v":1}]
["2019-09-28","No festivo",6,{"$f":"IF(AND(tbl_ORIGINAL[[#This Row],[Festivo]]=\"No Festivo\",tbl_ORIGINAL[[#This Row],[DIASEM]]<=5),1,0)","v":0},{"$f":"IF(AND(tbl_ORIGINAL[[#This Row],[Festivo]]=\"No Festivo\",tbl_ORIGINAL[[#This Row],[DIASEM]]<=4),1,0)","v":0},{"$f":"IF(AND(tbl_ORIGINAL[[#This Row],[Festivo]]=\"No Festivo\",OR(tbl_ORIGINAL[[#This Row],[DIASEM]]=5,tbl_ORIGINAL[[#This Row],[DIASEM]]=6)),1,0)","v":1}]
["2019-09-29","No festivo",7,{"$f":"IF(AND(tbl_ORIGINAL[[#This Row],[Festivo]]=\"No Festivo\",tbl_ORIGINAL[[#This Row],[DIASEM]]<=5),1,0)","v":0},{"$f":"IF(AND(tbl_ORIGINAL[[#This Row],[Festivo]]=\"No Festivo\",tbl_ORIGINAL[[#This Row],[DIASEM]]<=4),1,0)","v":0},{"$f":"IF(AND(tbl_ORIGINAL[[#This Row],[Festivo]]=\"No Festivo\",OR(tbl_ORIGINAL[[#This Row],[DIASEM]]=5,tbl_ORIGINAL[[#This Row],[DIASEM]]=6)),1,0)","v":0}]
["2019-09-30","No festivo",1,{"$f":"IF(AND(tbl_ORIGINAL[[#This Row],[Festivo]]=\"No Festivo\",tbl_ORIGINAL[[#This Row],[DIASEM]]<=5),1,0)","v":1},{"$f":"IF(AND(tbl_ORIGINAL[[#This Row],[Festivo]]=\"No Festivo\",tbl_ORIGINAL[[#This Row],[DIASEM]]<=4),1,0)","v":1},{"$f":"IF(AND(tbl_ORIGINAL[[#This Row],[Festivo]]=\"No Festivo\",OR(tbl_ORIGINAL[[#This Row],[DIASEM]]=5,tbl_ORIGINAL[[#This Row],[DIASEM]]=6)),1,0)","v":0}]
["2019-10-01","No festivo",2,{"$f":"IF(AND(tbl_ORIGINAL[[#This Row],[Festivo]]=\"No Festivo\",tbl_ORIGINAL[[#This Row],[DIASEM]]<=5),1,0)","v":1},{"$f":"IF(AND(tbl_ORIGINAL[[#This Row],[Festivo]]=\"No Festivo\",tbl_ORIGINAL[[#This Row],[DIASEM]]<=4),1,0)","v":1},{"$f":"IF(AND(tbl_ORIGINAL[[#This Row],[Festivo]]=\"No Festivo\",OR(tbl_ORIGINAL[[#This Row],[DIASEM]]=5,tbl_ORIGINAL[[#This Row],[DIASEM]]=6)),1,0)","v":0}]
["2019-10-02","No festivo",3,{"$f":"IF(AND(tbl_ORIGINAL[[#This Row],[Festivo]]=\"No Festivo\",tbl_ORIGINAL[[#This Row],[DIASEM]]<=5),1,0)","v":1},{"$f":"IF(AND(tbl_ORIGINAL[[#This Row],[Festivo]]=\"No Festivo\",tbl_ORIGINAL[[#This Row],[DIASEM]]<=4),1,0)","v":1},{"$f":"IF(AND(tbl_ORIGINAL[[#This Row],[Festivo]]=\"No Festivo\",OR(tbl_ORIGINAL[[#This Row],[DIASEM]]=5,tbl_ORIGINAL[[#This Row],[DIASEM]]=6)),1,0)","v":0}]
["2019-10-03","No festivo",4,{"$f":"IF(AND(tbl_ORIGINAL[[#This Row],[Festivo]]=\"No Festivo\",tbl_ORIGINAL[[#This Row],[DIASEM]]<=5),1,0)","v":1},{"$f":"IF(AND(tbl_ORIGINAL[[#This Row],[Festivo]]=\"No Festivo\",tbl_ORIGINAL[[#This Row],[DIASEM]]<=4),1,0)","v":1},{"$f":"IF(AND(tbl_ORIGINAL[[#This Row],[Festivo]]=\"No Festivo\",OR(tbl_ORIGINAL[[#This Row],[DIASEM]]=5,tbl_ORIGINAL[[#This Row],[DIASEM]]=6)),1,0)","v":0}]
["2019-10-04","No festivo",5,{"$f":"IF(AND(tbl_ORIGINAL[[#This Row],[Festivo]]=\"No Festivo\",tbl_ORIGINAL[[#This Row],[DIASEM]]<=5),1,0)","v":1},{"$f":"IF(AND(tbl_ORIGINAL[[#This Row],[Festivo]]=\"No Festivo\",tbl_ORIGINAL[[#This Row],[DIASEM]]<=4),1,0)","v":0},{"$f":"IF(AND(tbl_ORIGINAL[[#This Row],[Festivo]]=\"No Festivo\",OR(tbl_ORIGINAL[[#This Row],[DIASEM]]=5,tbl_ORIGINAL[[#This Row],[DIASEM]]=6)),1,0)","v":1}]
["2019-10-05","No festivo",6,{"$f":"IF(AND(tbl_ORIGINAL[[#This Row],[Festivo]]=\"No Festivo\",tbl_ORIGINAL[[#This Row],[DIASEM]]<=5),1,0)","v":0},{"$f":"IF(AND(tbl_ORIGINAL[[#This Row],[Festivo]]=\"No Festivo\",tbl_ORIGINAL[[#This Row],[DIASEM]]<=4),1,0)","v":0},{"$f":"IF(AND(tbl_ORIGINAL[[#This Row],[Festivo]]=\"No Festivo\",OR(tbl_ORIGINAL[[#This Row],[DIASEM]]=5,tbl_ORIGINAL[[#This Row],[DIASEM]]=6)),1,0)","v":1}]
["2019-10-06","No festivo",7,{"$f":"IF(AND(tbl_ORIGINAL[[#This Row],[Festivo]]=\"No Festivo\",tbl_ORIGINAL[[#This Row],[DIASEM]]<=5),1,0)","v":0},{"$f":"IF(AND(tbl_ORIGINAL[[#This Row],[Festivo]]=\"No Festivo\",tbl_ORIGINAL[[#This Row],[DIASEM]]<=4),1,0)","v":0},{"$f":"IF(AND(tbl_ORIGINAL[[#This Row],[Festivo]]=\"No Festivo\",OR(tbl_ORIGINAL[[#This Row],[DIASEM]]=5,tbl_ORIGINAL[[#This Row],[DIASEM]]=6)),1,0)","v":0}]
["2019-10-07","No festivo",1,{"$f":"IF(AND(tbl_ORIGINAL[[#This Row],[Festivo]]=\"No Festivo\",tbl_ORIGINAL[[#This Row],[DIASEM]]<=5),1,0)","v":1},{"$f":"IF(AND(tbl_ORIGINAL[[#This Row],[Festivo]]=\"No Festivo\",tbl_ORIGINAL[[#This Row],[DIASEM]]<=4),1,0)","v":1},{"$f":"IF(AND(tbl_ORIGINAL[[#This Row],[Festivo]]=\"No Festivo\",OR(tbl_ORIGINAL[[#This Row],[DIASEM]]=5,tbl_ORIGINAL[[#This Row],[DIASEM]]=6)),1,0)","v":0}]
["2019-10-08","No festivo",2,{"$f":"IF(AND(tbl_ORIGINAL[[#This Row],[Festivo]]=\"No Festivo\",tbl_ORIGINAL[[#This Row],[DIASEM]]<=5),1,0)","v":1},{"$f":"IF(AND(tbl_ORIGINAL[[#This Row],[Festivo]]=\"No Festivo\",tbl_ORIGINAL[[#This Row],[DIASEM]]<=4),1,0)","v":1},{"$f":"IF(AND(tbl_ORIGINAL[[#This Row],[Festivo]]=\"No Festivo\",OR(tbl_ORIGINAL[[#This Row],[DIASEM]]=5,tbl_ORIGINAL[[#This Row],[DIASEM]]=6)),1,0)","v":0}]
["2019-10-09","No festivo",3,{"$f":"IF(AND(tbl_ORIGINAL[[#This Row],[Festivo]]=\"No Festivo\",tbl_ORIGINAL[[#This Row],[DIASEM]]<=5),1,0)","v":1},{"$f":"IF(AND(tbl_ORIGINAL[[#This Row],[Festivo]]=\"No Festivo\",tbl_ORIGINAL[[#This Row],[DIASEM]]<=4),1,0)","v":1},{"$f":"IF(AND(tbl_ORIGINAL[[#This Row],[Festivo]]=\"No Festivo\",OR(tbl_ORIGINAL[[#This Row],[DIASEM]]=5,tbl_ORIGINAL[[#This Row],[DIASEM]]=6)),1,0)","v":0}]
["2019-10-10","No festivo",4,{"$f":"IF(AND(tbl_ORIGINAL[[#This Row],[Festivo]]=\"No Festivo\",tbl_ORIGINAL[[#This Row],[DIASEM]]<=5),1,0)","v":1},{"$f":"IF(AND(tbl_ORIGINAL[[#This Row],[Festivo]]=\"No Festivo\",tbl_ORIGINAL[[#This Row],[DIASEM]]<=4),1,0)","v":1},{"$f":"IF(AND(tbl_ORIGINAL[[#This Row],[Festivo]]=\"No Festivo\",OR(tbl_ORIGINAL[[#This Row],[DIASEM]]=5,tbl_ORIGINAL[[#This Row],[DIASEM]]=6)),1,0)","v":0}]
["2019-10-11","No festivo",5,{"$f":"IF(AND(tbl_ORIGINAL[[#This Row],[Festivo]]=\"No Festivo\",tbl_ORIGINAL[[#This Row],[DIASEM]]<=5),1,0)","v":1},{"$f":"IF(AND(tbl_ORIGINAL[[#This Row],[Festivo]]=\"No Festivo\",tbl_ORIGINAL[[#This Row],[DIASEM]]<=4),1,0)","v":0},{"$f":"IF(AND(tbl_ORIGINAL[[#This Row],[Festivo]]=\"No Festivo\",OR(tbl_ORIGINAL[[#This Row],[DIASEM]]=5,tbl_ORIGINAL[[#This Row],[DIASEM]]=6)),1,0)","v":1}]
["2019-10-12","No festivo",6,{"$f":"IF(AND(tbl_ORIGINAL[[#This Row],[Festivo]]=\"No Festivo\",tbl_ORIGINAL[[#This Row],[DIASEM]]<=5),1,0)","v":0},{"$f":"IF(AND(tbl_ORIGINAL[[#This Row],[Festivo]]=\"No Festivo\",tbl_ORIGINAL[[#This Row],[DIASEM]]<=4),1,0)","v":0},{"$f":"IF(AND(tbl_ORIGINAL[[#This Row],[Festivo]]=\"No Festivo\",OR(tbl_ORIGINAL[[#This Row],[DIASEM]]=5,tbl_ORIGINAL[[#This Row],[DIASEM]]=6)),1,0)","v":1}]
["2019-10-13","No festivo",7,{"$f":"IF(AND(tbl_ORIGINAL[[#This Row],[Festivo]]=\"No Festivo\",tbl_ORIGINAL[[#This Row],[DIASEM]]<=5),1,0)","v":0},{"$f":"IF(AND(tbl_ORIGINAL[[#This Row],[Festivo]]=\"No Festivo\",tbl_ORIGINAL[[#This Row],[DIASEM]]<=4),1,0)","v":0},{"$f":"IF(AND(tbl_ORIGINAL[[#This Row],[Festivo]]=\"No Festivo\",OR(tbl_ORIGINAL[[#This Row],[DIASEM]]=5,tbl_ORIGINAL[[#This Row],[DIASEM]]=6)),1,0)","v":0}]
["2019-10-14","Festivo",1,{"$f":"IF(AND(tbl_ORIGINAL[[#This Row],[Festivo]]=\"No Festivo\",tbl_ORIGINAL[[#This Row],[DIASEM]]<=5),1,0)","v":0},{"$f":"IF(AND(tbl_ORIGINAL[[#This Row],[Festivo]]=\"No Festivo\",tbl_ORIGINAL[[#This Row],[DIASEM]]<=4),1,0)","v":0},{"$f":"IF(AND(tbl_ORIGINAL[[#This Row],[Festivo]]=\"No Festivo\",OR(tbl_ORIGINAL[[#This Row],[DIASEM]]=5,tbl_ORIGINAL[[#This Row],[DIASEM]]=6)),1,0)","v":0}]
["2019-10-15","No festivo",2,{"$f":"IF(AND(tbl_ORIGINAL[[#This Row],[Festivo]]=\"No Festivo\",tbl_ORIGINAL[[#This Row],[DIASEM]]<=5),1,0)","v":1},{"$f":"IF(AND(tbl_ORIGINAL[[#This Row],[Festivo]]=\"No Festivo\",tbl_ORIGINAL[[#This Row],[DIASEM]]<=4),1,0)","v":1},{"$f":"IF(AND(tbl_ORIGINAL[[#This Row],[Festivo]]=\"No Festivo\",OR(tbl_ORIGINAL[[#This Row],[DIASEM]]=5,tbl_ORIGINAL[[#This Row],[DIASEM]]=6)),1,0)","v":0}]
["2019-10-16","No festivo",3,{"$f":"IF(AND(tbl_ORIGINAL[[#This Row],[Festivo]]=\"No Festivo\",tbl_ORIGINAL[[#This Row],[DIASEM]]<=5),1,0)","v":1},{"$f":"IF(AND(tbl_ORIGINAL[[#This Row],[Festivo]]=\"No Festivo\",tbl_ORIGINAL[[#This Row],[DIASEM]]<=4),1,0)","v":1},{"$f":"IF(AND(tbl_ORIGINAL[[#This Row],[Festivo]]=\"No Festivo\",OR(tbl_ORIGINAL[[#This Row],[DIASEM]]=5,tbl_ORIGINAL[[#This Row],[DIASEM]]=6)),1,0)","v":0}]
["2019-10-17","No festivo",4,{"$f":"IF(AND(tbl_ORIGINAL[[#This Row],[Festivo]]=\"No Festivo\",tbl_ORIGINAL[[#This Row],[DIASEM]]<=5),1,0)","v":1},{"$f":"IF(AND(tbl_ORIGINAL[[#This Row],[Festivo]]=\"No Festivo\",tbl_ORIGINAL[[#This Row],[DIASEM]]<=4),1,0)","v":1},{"$f":"IF(AND(tbl_ORIGINAL[[#This Row],[Festivo]]=\"No Festivo\",OR(tbl_ORIGINAL[[#This Row],[DIASEM]]=5,tbl_ORIGINAL[[#This Row],[DIASEM]]=6)),1,0)","v":0}]
["2019-10-18","No festivo",5,{"$f":"IF(AND(tbl_ORIGINAL[[#This Row],[Festivo]]=\"No Festivo\",tbl_ORIGINAL[[#This Row],[DIASEM]]<=5),1,0)","v":1},{"$f":"IF(AND(tbl_ORIGINAL[[#This Row],[Festivo]]=\"No Festivo\",tbl_ORIGINAL[[#This Row],[DIASEM]]<=4),1,0)","v":0},{"$f":"IF(AND(tbl_ORIGINAL[[#This Row],[Festivo]]=\"No Festivo\",OR(tbl_ORIGINAL[[#This Row],[DIASEM]]=5,tbl_ORIGINAL[[#This Row],[DIASEM]]=6)),1,0)","v":1}]
["2019-10-19","No festivo",6,{"$f":"IF(AND(tbl_ORIGINAL[[#This Row],[Festivo]]=\"No Festivo\",tbl_ORIGINAL[[#This Row],[DIASEM]]<=5),1,0)","v":0},{"$f":"IF(AND(tbl_ORIGINAL[[#This Row],[Festivo]]=\"No Festivo\",tbl_ORIGINAL[[#This Row],[DIASEM]]<=4),1,0)","v":0},{"$f":"IF(AND(tbl_ORIGINAL[[#This Row],[Festivo]]=\"No Festivo\",OR(tbl_ORIGINAL[[#This Row],[DIASEM]]=5,tbl_ORIGINAL[[#This Row],[DIASEM]]=6)),1,0)","v":1}]
["2019-10-20","No festivo",7,{"$f":"IF(AND(tbl_ORIGINAL[[#This Row],[Festivo]]=\"No Festivo\",tbl_ORIGINAL[[#This Row],[DIASEM]]<=5),1,0)","v":0},{"$f":"IF(AND(tbl_ORIGINAL[[#This Row],[Festivo]]=\"No Festivo\",tbl_ORIGINAL[[#This Row],[DIASEM]]<=4),1,0)","v":0},{"$f":"IF(AND(tbl_ORIGINAL[[#This Row],[Festivo]]=\"No Festivo\",OR(tbl_ORIGINAL[[#This Row],[DIASEM]]=5,tbl_ORIGINAL[[#This Row],[DIASEM]]=6)),1,0)","v":0}]
["2019-10-21","No festivo",1,{"$f":"IF(AND(tbl_ORIGINAL[[#This Row],[Festivo]]=\"No Festivo\",tbl_ORIGINAL[[#This Row],[DIASEM]]<=5),1,0)","v":1},{"$f":"IF(AND(tbl_ORIGINAL[[#This Row],[Festivo]]=\"No Festivo\",tbl_ORIGINAL[[#This Row],[DIASEM]]<=4),1,0)","v":1},{"$f":"IF(AND(tbl_ORIGINAL[[#This Row],[Festivo]]=\"No Festivo\",OR(tbl_ORIGINAL[[#This Row],[DIASEM]]=5,tbl_ORIGINAL[[#This Row],[DIASEM]]=6)),1,0)","v":0}]
["2019-10-22","No festivo",2,{"$f":"IF(AND(tbl_ORIGINAL[[#This Row],[Festivo]]=\"No Festivo\",tbl_ORIGINAL[[#This Row],[DIASEM]]<=5),1,0)","v":1},{"$f":"IF(AND(tbl_ORIGINAL[[#This Row],[Festivo]]=\"No Festivo\",tbl_ORIGINAL[[#This Row],[DIASEM]]<=4),1,0)","v":1},{"$f":"IF(AND(tbl_ORIGINAL[[#This Row],[Festivo]]=\"No Festivo\",OR(tbl_ORIGINAL[[#This Row],[DIASEM]]=5,tbl_ORIGINAL[[#This Row],[DIASEM]]=6)),1,0)","v":0}]
["2019-10-23","No festivo",3,{"$f":"IF(AND(tbl_ORIGINAL[[#This Row],[Festivo]]=\"No Festivo\",tbl_ORIGINAL[[#This Row],[DIASEM]]<=5),1,0)","v":1},{"$f":"IF(AND(tbl_ORIGINAL[[#This Row],[Festivo]]=\"No Festivo\",tbl_ORIGINAL[[#This Row],[DIASEM]]<=4),1,0)","v":1},{"$f":"IF(AND(tbl_ORIGINAL[[#This Row],[Festivo]]=\"No Festivo\",OR(tbl_ORIGINAL[[#This Row],[DIASEM]]=5,tbl_ORIGINAL[[#This Row],[DIASEM]]=6)),1,0)","v":0}]
["2019-10-24","No festivo",4,{"$f":"IF(AND(tbl_ORIGINAL[[#This Row],[Festivo]]=\"No Festivo\",tbl_ORIGINAL[[#This Row],[DIASEM]]<=5),1,0)","v":1},{"$f":"IF(AND(tbl_ORIGINAL[[#This Row],[Festivo]]=\"No Festivo\",tbl_ORIGINAL[[#This Row],[DIASEM]]<=4),1,0)","v":1},{"$f":"IF(AND(tbl_ORIGINAL[[#This Row],[Festivo]]=\"No Festivo\",OR(tbl_ORIGINAL[[#This Row],[DIASEM]]=5,tbl_ORIGINAL[[#This Row],[DIASEM]]=6)),1,0)","v":0}]
["2019-10-25","No festivo",5,{"$f":"IF(AND(tbl_ORIGINAL[[#This Row],[Festivo]]=\"No Festivo\",tbl_ORIGINAL[[#This Row],[DIASEM]]<=5),1,0)","v":1},{"$f":"IF(AND(tbl_ORIGINAL[[#This Row],[Festivo]]=\"No Festivo\",tbl_ORIGINAL[[#This Row],[DIASEM]]<=4),1,0)","v":0},{"$f":"IF(AND(tbl_ORIGINAL[[#This Row],[Festivo]]=\"No Festivo\",OR(tbl_ORIGINAL[[#This Row],[DIASEM]]=5,tbl_ORIGINAL[[#This Row],[DIASEM]]=6)),1,0)","v":1}]
["2019-10-26","No festivo",6,{"$f":"IF(AND(tbl_ORIGINAL[[#This Row],[Festivo]]=\"No Festivo\",tbl_ORIGINAL[[#This Row],[DIASEM]]<=5),1,0)","v":0},{"$f":"IF(AND(tbl_ORIGINAL[[#This Row],[Festivo]]=\"No Festivo\",tbl_ORIGINAL[[#This Row],[DIASEM]]<=4),1,0)","v":0},{"$f":"IF(AND(tbl_ORIGINAL[[#This Row],[Festivo]]=\"No Festivo\",OR(tbl_ORIGINAL[[#This Row],[DIASEM]]=5,tbl_ORIGINAL[[#This Row],[DIASEM]]=6)),1,0)","v":1}]
["2019-10-27","No festivo",7,{"$f":"IF(AND(tbl_ORIGINAL[[#This Row],[Festivo]]=\"No Festivo\",tbl_ORIGINAL[[#This Row],[DIASEM]]<=5),1,0)","v":0},{"$f":"IF(AND(tbl_ORIGINAL[[#This Row],[Festivo]]=\"No Festivo\",tbl_ORIGINAL[[#This Row],[DIASEM]]<=4),1,0)","v":0},{"$f":"IF(AND(tbl_ORIGINAL[[#This Row],[Festivo]]=\"No Festivo\",OR(tbl_ORIGINAL[[#This Row],[DIASEM]]=5,tbl_ORIGINAL[[#This Row],[DIASEM]]=6)),1,0)","v":0}]
["2019-10-28","No festivo",1,{"$f":"IF(AND(tbl_ORIGINAL[[#This Row],[Festivo]]=\"No Festivo\",tbl_ORIGINAL[[#This Row],[DIASEM]]<=5),1,0)","v":1},{"$f":"IF(AND(tbl_ORIGINAL[[#This Row],[Festivo]]=\"No Festivo\",tbl_ORIGINAL[[#This Row],[DIASEM]]<=4),1,0)","v":1},{"$f":"IF(AND(tbl_ORIGINAL[[#This Row],[Festivo]]=\"No Festivo\",OR(tbl_ORIGINAL[[#This Row],[DIASEM]]=5,tbl_ORIGINAL[[#This Row],[DIASEM]]=6)),1,0)","v":0}]
["2019-10-29","No festivo",2,{"$f":"IF(AND(tbl_ORIGINAL[[#This Row],[Festivo]]=\"No Festivo\",tbl_ORIGINAL[[#This Row],[DIASEM]]<=5),1,0)","v":1},{"$f":"IF(AND(tbl_ORIGINAL[[#This Row],[Festivo]]=\"No Festivo\",tbl_ORIGINAL[[#This Row],[DIASEM]]<=4),1,0)","v":1},{"$f":"IF(AND(tbl_ORIGINAL[[#This Row],[Festivo]]=\"No Festivo\",OR(tbl_ORIGINAL[[#This Row],[DIASEM]]=5,tbl_ORIGINAL[[#This Row],[DIASEM]]=6)),1,0)","v":0}]
["2019-10-30","No festivo",3,{"$f":"IF(AND(tbl_ORIGINAL[[#This Row],[Festivo]]=\"No Festivo\",tbl_ORIGINAL[[#This Row],[DIASEM]]<=5),1,0)","v":1},{"$f":"IF(AND(tbl_ORIGINAL[[#This Row],[Festivo]]=\"No Festivo\",tbl_ORIGINAL[[#This Row],[DIASEM]]<=4),1,0)","v":1},{"$f":"IF(AND(tbl_ORIGINAL[[#This Row],[Festivo]]=\"No Festivo\",OR(tbl_ORIGINAL[[#This Row],[DIASEM]]=5,tbl_ORIGINAL[[#This Row],[DIASEM]]=6)),1,0)","v":0}]
["2019-10-31","No festivo",4,{"$f":"IF(AND(tbl_ORIGINAL[[#This Row],[Festivo]]=\"No Festivo\",tbl_ORIGINAL[[#This Row],[DIASEM]]<=5),1,0)","v":1},{"$f":"IF(AND(tbl_ORIGINAL[[#This Row],[Festivo]]=\"No Festivo\",tbl_ORIGINAL[[#This Row],[DIASEM]]<=4),1,0)","v":1},{"$f":"IF(AND(tbl_ORIGINAL[[#This Row],[Festivo]]=\"No Festivo\",OR(tbl_ORIGINAL[[#This Row],[DIASEM]]=5,tbl_ORIGINAL[[#This Row],[DIASEM]]=6)),1,0)","v":0}]
["2019-11-01","No festivo",5,{"$f":"IF(AND(tbl_ORIGINAL[[#This Row],[Festivo]]=\"No Festivo\",tbl_ORIGINAL[[#This Row],[DIASEM]]<=5),1,0)","v":1},{"$f":"IF(AND(tbl_ORIGINAL[[#This Row],[Festivo]]=\"No Festivo\",tbl_ORIGINAL[[#This Row],[DIASEM]]<=4),1,0)","v":0},{"$f":"IF(AND(tbl_ORIGINAL[[#This Row],[Festivo]]=\"No Festivo\",OR(tbl_ORIGINAL[[#This Row],[DIASEM]]=5,tbl_ORIGINAL[[#This Row],[DIASEM]]=6)),1,0)","v":1}]
["2019-11-02","No festivo",6,{"$f":"IF(AND(tbl_ORIGINAL[[#This Row],[Festivo]]=\"No Festivo\",tbl_ORIGINAL[[#This Row],[DIASEM]]<=5),1,0)","v":0},{"$f":"IF(AND(tbl_ORIGINAL[[#This Row],[Festivo]]=\"No Festivo\",tbl_ORIGINAL[[#This Row],[DIASEM]]<=4),1,0)","v":0},{"$f":"IF(AND(tbl_ORIGINAL[[#This Row],[Festivo]]=\"No Festivo\",OR(tbl_ORIGINAL[[#This Row],[DIASEM]]=5,tbl_ORIGINAL[[#This Row],[DIASEM]]=6)),1,0)","v":1}]
["2019-11-03","No festivo",7,{"$f":"IF(AND(tbl_ORIGINAL[[#This Row],[Festivo]]=\"No Festivo\",tbl_ORIGINAL[[#This Row],[DIASEM]]<=5),1,0)","v":0},{"$f":"IF(AND(tbl_ORIGINAL[[#This Row],[Festivo]]=\"No Festivo\",tbl_ORIGINAL[[#This Row],[DIASEM]]<=4),1,0)","v":0},{"$f":"IF(AND(tbl_ORIGINAL[[#This Row],[Festivo]]=\"No Festivo\",OR(tbl_ORIGINAL[[#This Row],[DIASEM]]=5,tbl_ORIGINAL[[#This Row],[DIASEM]]=6)),1,0)","v":0}]
["2019-11-04","Festivo",1,{"$f":"IF(AND(tbl_ORIGINAL[[#This Row],[Festivo]]=\"No Festivo\",tbl_ORIGINAL[[#This Row],[DIASEM]]<=5),1,0)","v":0},{"$f":"IF(AND(tbl_ORIGINAL[[#This Row],[Festivo]]=\"No Festivo\",tbl_ORIGINAL[[#This Row],[DIASEM]]<=4),1,0)","v":0},{"$f":"IF(AND(tbl_ORIGINAL[[#This Row],[Festivo]]=\"No Festivo\",OR(tbl_ORIGINAL[[#This Row],[DIASEM]]=5,tbl_ORIGINAL[[#This Row],[DIASEM]]=6)),1,0)","v":0}]
["2019-11-05","No festivo",2,{"$f":"IF(AND(tbl_ORIGINAL[[#This Row],[Festivo]]=\"No Festivo\",tbl_ORIGINAL[[#This Row],[DIASEM]]<=5),1,0)","v":1},{"$f":"IF(AND(tbl_ORIGINAL[[#This Row],[Festivo]]=\"No Festivo\",tbl_ORIGINAL[[#This Row],[DIASEM]]<=4),1,0)","v":1},{"$f":"IF(AND(tbl_ORIGINAL[[#This Row],[Festivo]]=\"No Festivo\",OR(tbl_ORIGINAL[[#This Row],[DIASEM]]=5,tbl_ORIGINAL[[#This Row],[DIASEM]]=6)),1,0)","v":0}]
["2019-11-06","No festivo",3,{"$f":"IF(AND(tbl_ORIGINAL[[#This Row],[Festivo]]=\"No Festivo\",tbl_ORIGINAL[[#This Row],[DIASEM]]<=5),1,0)","v":1},{"$f":"IF(AND(tbl_ORIGINAL[[#This Row],[Festivo]]=\"No Festivo\",tbl_ORIGINAL[[#This Row],[DIASEM]]<=4),1,0)","v":1},{"$f":"IF(AND(tbl_ORIGINAL[[#This Row],[Festivo]]=\"No Festivo\",OR(tbl_ORIGINAL[[#This Row],[DIASEM]]=5,tbl_ORIGINAL[[#This Row],[DIASEM]]=6)),1,0)","v":0}]
["2019-11-07","No festivo",4,{"$f":"IF(AND(tbl_ORIGINAL[[#This Row],[Festivo]]=\"No Festivo\",tbl_ORIGINAL[[#This Row],[DIASEM]]<=5),1,0)","v":1},{"$f":"IF(AND(tbl_ORIGINAL[[#This Row],[Festivo]]=\"No Festivo\",tbl_ORIGINAL[[#This Row],[DIASEM]]<=4),1,0)","v":1},{"$f":"IF(AND(tbl_ORIGINAL[[#This Row],[Festivo]]=\"No Festivo\",OR(tbl_ORIGINAL[[#This Row],[DIASEM]]=5,tbl_ORIGINAL[[#This Row],[DIASEM]]=6)),1,0)","v":0}]
["2019-11-08","No festivo",5,{"$f":"IF(AND(tbl_ORIGINAL[[#This Row],[Festivo]]=\"No Festivo\",tbl_ORIGINAL[[#This Row],[DIASEM]]<=5),1,0)","v":1},{"$f":"IF(AND(tbl_ORIGINAL[[#This Row],[Festivo]]=\"No Festivo\",tbl_ORIGINAL[[#This Row],[DIASEM]]<=4),1,0)","v":0},{"$f":"IF(AND(tbl_ORIGINAL[[#This Row],[Festivo]]=\"No Festivo\",OR(tbl_ORIGINAL[[#This Row],[DIASEM]]=5,tbl_ORIGINAL[[#This Row],[DIASEM]]=6)),1,0)","v":1}]
["2019-11-09","No festivo",6,{"$f":"IF(AND(tbl_ORIGINAL[[#This Row],[Festivo]]=\"No Festivo\",tbl_ORIGINAL[[#This Row],[DIASEM]]<=5),1,0)","v":0},{"$f":"IF(AND(tbl_ORIGINAL[[#This Row],[Festivo]]=\"No Festivo\",tbl_ORIGINAL[[#This Row],[DIASEM]]<=4),1,0)","v":0},{"$f":"IF(AND(tbl_ORIGINAL[[#This Row],[Festivo]]=\"No Festivo\",OR(tbl_ORIGINAL[[#This Row],[DIASEM]]=5,tbl_ORIGINAL[[#This Row],[DIASEM]]=6)),1,0)","v":1}]
["2019-11-10","No festivo",7,{"$f":"IF(AND(tbl_ORIGINAL[[#This Row],[Festivo]]=\"No Festivo\",tbl_ORIGINAL[[#This Row],[DIASEM]]<=5),1,0)","v":0},{"$f":"IF(AND(tbl_ORIGINAL[[#This Row],[Festivo]]=\"No Festivo\",tbl_ORIGINAL[[#This Row],[DIASEM]]<=4),1,0)","v":0},{"$f":"IF(AND(tbl_ORIGINAL[[#This Row],[Festivo]]=\"No Festivo\",OR(tbl_ORIGINAL[[#This Row],[DIASEM]]=5,tbl_ORIGINAL[[#This Row],[DIASEM]]=6)),1,0)","v":0}]
["2019-11-11","Festivo",1,{"$f":"IF(AND(tbl_ORIGINAL[[#This Row],[Festivo]]=\"No Festivo\",tbl_ORIGINAL[[#This Row],[DIASEM]]<=5),1,0)","v":0},{"$f":"IF(AND(tbl_ORIGINAL[[#This Row],[Festivo]]=\"No Festivo\",tbl_ORIGINAL[[#This Row],[DIASEM]]<=4),1,0)","v":0},{"$f":"IF(AND(tbl_ORIGINAL[[#This Row],[Festivo]]=\"No Festivo\",OR(tbl_ORIGINAL[[#This Row],[DIASEM]]=5,tbl_ORIGINAL[[#This Row],[DIASEM]]=6)),1,0)","v":0}]
["2019-11-12","No festivo",2,{"$f":"IF(AND(tbl_ORIGINAL[[#This Row],[Festivo]]=\"No Festivo\",tbl_ORIGINAL[[#This Row],[DIASEM]]<=5),1,0)","v":1},{"$f":"IF(AND(tbl_ORIGINAL[[#This Row],[Festivo]]=\"No Festivo\",tbl_ORIGINAL[[#This Row],[DIASEM]]<=4),1,0)","v":1},{"$f":"IF(AND(tbl_ORIGINAL[[#This Row],[Festivo]]=\"No Festivo\",OR(tbl_ORIGINAL[[#This Row],[DIASEM]]=5,tbl_ORIGINAL[[#This Row],[DIASEM]]=6)),1,0)","v":0}]
["2019-11-13","No festivo",3,{"$f":"IF(AND(tbl_ORIGINAL[[#This Row],[Festivo]]=\"No Festivo\",tbl_ORIGINAL[[#This Row],[DIASEM]]<=5),1,0)","v":1},{"$f":"IF(AND(tbl_ORIGINAL[[#This Row],[Festivo]]=\"No Festivo\",tbl_ORIGINAL[[#This Row],[DIASEM]]<=4),1,0)","v":1},{"$f":"IF(AND(tbl_ORIGINAL[[#This Row],[Festivo]]=\"No Festivo\",OR(tbl_ORIGINAL[[#This Row],[DIASEM]]=5,tbl_ORIGINAL[[#This Row],[DIASEM]]=6)),1,0)","v":0}]
["2019-11-14","No festivo",4,{"$f":"IF(AND(tbl_ORIGINAL[[#This Row],[Festivo]]=\"No Festivo\",tbl_ORIGINAL[[#This Row],[DIASEM]]<=5),1,0)","v":1},{"$f":"IF(AND(tbl_ORIGINAL[[#This Row],[Festivo]]=\"No Festivo\",tbl_ORIGINAL[[#This Row],[DIASEM]]<=4),1,0)","v":1},{"$f":"IF(AND(tbl_ORIGINAL[[#This Row],[Festivo]]=\"No Festivo\",OR(tbl_ORIGINAL[[#This Row],[DIASEM]]=5,tbl_ORIGINAL[[#This Row],[DIASEM]]=6)),1,0)","v":0}]
["2019-11-15","No festivo",5,{"$f":"IF(AND(tbl_ORIGINAL[[#This Row],[Festivo]]=\"No Festivo\",tbl_ORIGINAL[[#This Row],[DIASEM]]<=5),1,0)","v":1},{"$f":"IF(AND(tbl_ORIGINAL[[#This Row],[Festivo]]=\"No Festivo\",tbl_ORIGINAL[[#This Row],[DIASEM]]<=4),1,0)","v":0},{"$f":"IF(AND(tbl_ORIGINAL[[#This Row],[Festivo]]=\"No Festivo\",OR(tbl_ORIGINAL[[#This Row],[DIASEM]]=5,tbl_ORIGINAL[[#This Row],[DIASEM]]=6)),1,0)","v":1}]
["2019-11-16","No festivo",6,{"$f":"IF(AND(tbl_ORIGINAL[[#This Row],[Festivo]]=\"No Festivo\",tbl_ORIGINAL[[#This Row],[DIASEM]]<=5),1,0)","v":0},{"$f":"IF(AND(tbl_ORIGINAL[[#This Row],[Festivo]]=\"No Festivo\",tbl_ORIGINAL[[#This Row],[DIASEM]]<=4),1,0)","v":0},{"$f":"IF(AND(tbl_ORIGINAL[[#This Row],[Festivo]]=\"No Festivo\",OR(tbl_ORIGINAL[[#This Row],[DIASEM]]=5,tbl_ORIGINAL[[#This Row],[DIASEM]]=6)),1,0)","v":1}]
["2019-11-17","No festivo",7,{"$f":"IF(AND(tbl_ORIGINAL[[#This Row],[Festivo]]=\"No Festivo\",tbl_ORIGINAL[[#This Row],[DIASEM]]<=5),1,0)","v":0},{"$f":"IF(AND(tbl_ORIGINAL[[#This Row],[Festivo]]=\"No Festivo\",tbl_ORIGINAL[[#This Row],[DIASEM]]<=4),1,0)","v":0},{"$f":"IF(AND(tbl_ORIGINAL[[#This Row],[Festivo]]=\"No Festivo\",OR(tbl_ORIGINAL[[#This Row],[DIASEM]]=5,tbl_ORIGINAL[[#This Row],[DIASEM]]=6)),1,0)","v":0}]
["2019-11-18","No festivo",{"$f":"WEEKDAY(A324,2)","v":1},{"$f":"IF(AND(tbl_ORIGINAL[[#This Row],[Festivo]]=\"No Festivo\",tbl_ORIGINAL[[#This Row],[DIASEM]]<=5),1,0)","v":1},{"$f":"IF(AND(tbl_ORIGINAL[[#This Row],[Festivo]]=\"No Festivo\",tbl_ORIGINAL[[#This Row],[DIASEM]]<=4),1,0)","v":1},{"$f":"IF(AND(tbl_ORIGINAL[[#This Row],[Festivo]]=\"No Festivo\",OR(tbl_ORIGINAL[[#This Row],[DIASEM]]=5,tbl_ORIGINAL[[#This Row],[DIASEM]]=6)),1,0)","v":0}]
["2019-11-19","No festivo",2,{"$f":"IF(AND(tbl_ORIGINAL[[#This Row],[Festivo]]=\"No Festivo\",tbl_ORIGINAL[[#This Row],[DIASEM]]<=5),1,0)","v":1},{"$f":"IF(AND(tbl_ORIGINAL[[#This Row],[Festivo]]=\"No Festivo\",tbl_ORIGINAL[[#This Row],[DIASEM]]<=4),1,0)","v":1},{"$f":"IF(AND(tbl_ORIGINAL[[#This Row],[Festivo]]=\"No Festivo\",OR(tbl_ORIGINAL[[#This Row],[DIASEM]]=5,tbl_ORIGINAL[[#This Row],[DIASEM]]=6)),1,0)","v":0}]
["2019-11-20","No festivo",3,{"$f":"IF(AND(tbl_ORIGINAL[[#This Row],[Festivo]]=\"No Festivo\",tbl_ORIGINAL[[#This Row],[DIASEM]]<=5),1,0)","v":1},{"$f":"IF(AND(tbl_ORIGINAL[[#This Row],[Festivo]]=\"No Festivo\",tbl_ORIGINAL[[#This Row],[DIASEM]]<=4),1,0)","v":1},{"$f":"IF(AND(tbl_ORIGINAL[[#This Row],[Festivo]]=\"No Festivo\",OR(tbl_ORIGINAL[[#This Row],[DIASEM]]=5,tbl_ORIGINAL[[#This Row],[DIASEM]]=6)),1,0)","v":0}]
["2019-11-21","No festivo",4,{"$f":"IF(AND(tbl_ORIGINAL[[#This Row],[Festivo]]=\"No Festivo\",tbl_ORIGINAL[[#This Row],[DIASEM]]<=5),1,0)","v":1},{"$f":"IF(AND(tbl_ORIGINAL[[#This Row],[Festivo]]=\"No Festivo\",tbl_ORIGINAL[[#This Row],[DIASEM]]<=4),1,0)","v":1},{"$f":"IF(AND(tbl_ORIGINAL[[#This Row],[Festivo]]=\"No Festivo\",OR(tbl_ORIGINAL[[#This Row],[DIASEM]]=5,tbl_ORIGINAL[[#This Row],[DIASEM]]=6)),1,0)","v":0}]
["2019-11-22","No festivo",5,{"$f":"IF(AND(tbl_ORIGINAL[[#This Row],[Festivo]]=\"No Festivo\",tbl_ORIGINAL[[#This Row],[DIASEM]]<=5),1,0)","v":1},{"$f":"IF(AND(tbl_ORIGINAL[[#This Row],[Festivo]]=\"No Festivo\",tbl_ORIGINAL[[#This Row],[DIASEM]]<=4),1,0)","v":0},{"$f":"IF(AND(tbl_ORIGINAL[[#This Row],[Festivo]]=\"No Festivo\",OR(tbl_ORIGINAL[[#This Row],[DIASEM]]=5,tbl_ORIGINAL[[#This Row],[DIASEM]]=6)),1,0)","v":1}]
["2019-11-23","No festivo",6,{"$f":"IF(AND(tbl_ORIGINAL[[#This Row],[Festivo]]=\"No Festivo\",tbl_ORIGINAL[[#This Row],[DIASEM]]<=5),1,0)","v":0},{"$f":"IF(AND(tbl_ORIGINAL[[#This Row],[Festivo]]=\"No Festivo\",tbl_ORIGINAL[[#This Row],[DIASEM]]<=4),1,0)","v":0},{"$f":"IF(AND(tbl_ORIGINAL[[#This Row],[Festivo]]=\"No Festivo\",OR(tbl_ORIGINAL[[#This Row],[DIASEM]]=5,tbl_ORIGINAL[[#This Row],[DIASEM]]=6)),1,0)","v":1}]
["2019-11-24","No festivo",7,{"$f":"IF(AND(tbl_ORIGINAL[[#This Row],[Festivo]]=\"No Festivo\",tbl_ORIGINAL[[#This Row],[DIASEM]]<=5),1,0)","v":0},{"$f":"IF(AND(tbl_ORIGINAL[[#This Row],[Festivo]]=\"No Festivo\",tbl_ORIGINAL[[#This Row],[DIASEM]]<=4),1,0)","v":0},{"$f":"IF(AND(tbl_ORIGINAL[[#This Row],[Festivo]]=\"No Festivo\",OR(tbl_ORIGINAL[[#This Row],[DIASEM]]=5,tbl_ORIGINAL[[#This Row],[DIASEM]]=6)),1,0)","v":0}]
["2019-11-25","No festivo",1,{"$f":"IF(AND(tbl_ORIGINAL[[#This Row],[Festivo]]=\"No Festivo\",tbl_ORIGINAL[[#This Row],[DIASEM]]<=5),1,0)","v":1},{"$f":"IF(AND(tbl_ORIGINAL[[#This Row],[Festivo]]=\"No Festivo\",tbl_ORIGINAL[[#This Row],[DIASEM]]<=4),1,0)","v":1},{"$f":"IF(AND(tbl_ORIGINAL[[#This Row],[Festivo]]=\"No Festivo\",OR(tbl_ORIGINAL[[#This Row],[DIASEM]]=5,tbl_ORIGINAL[[#This Row],[DIASEM]]=6)),1,0)","v":0}]
["2019-11-26","No festivo",2,{"$f":"IF(AND(tbl_ORIGINAL[[#This Row],[Festivo]]=\"No Festivo\",tbl_ORIGINAL[[#This Row],[DIASEM]]<=5),1,0)","v":1},{"$f":"IF(AND(tbl_ORIGINAL[[#This Row],[Festivo]]=\"No Festivo\",tbl_ORIGINAL[[#This Row],[DIASEM]]<=4),1,0)","v":1},{"$f":"IF(AND(tbl_ORIGINAL[[#This Row],[Festivo]]=\"No Festivo\",OR(tbl_ORIGINAL[[#This Row],[DIASEM]]=5,tbl_ORIGINAL[[#This Row],[DIASEM]]=6)),1,0)","v":0}]
["2019-11-27","No festivo",3,{"$f":"IF(AND(tbl_ORIGINAL[[#This Row],[Festivo]]=\"No Festivo\",tbl_ORIGINAL[[#This Row],[DIASEM]]<=5),1,0)","v":1},{"$f":"IF(AND(tbl_ORIGINAL[[#This Row],[Festivo]]=\"No Festivo\",tbl_ORIGINAL[[#This Row],[DIASEM]]<=4),1,0)","v":1},{"$f":"IF(AND(tbl_ORIGINAL[[#This Row],[Festivo]]=\"No Festivo\",OR(tbl_ORIGINAL[[#This Row],[DIASEM]]=5,tbl_ORIGINAL[[#This Row],[DIASEM]]=6)),1,0)","v":0}]
["2019-11-28","No festivo",4,{"$f":"IF(AND(tbl_ORIGINAL[[#This Row],[Festivo]]=\"No Festivo\",tbl_ORIGINAL[[#This Row],[DIASEM]]<=5),1,0)","v":1},{"$f":"IF(AND(tbl_ORIGINAL[[#This Row],[Festivo]]=\"No Festivo\",tbl_ORIGINAL[[#This Row],[DIASEM]]<=4),1,0)","v":1},{"$f":"IF(AND(tbl_ORIGINAL[[#This Row],[Festivo]]=\"No Festivo\",OR(tbl_ORIGINAL[[#This Row],[DIASEM]]=5,tbl_ORIGINAL[[#This Row],[DIASEM]]=6)),1,0)","v":0}]
["2019-11-29","No festivo",5,{"$f":"IF(AND(tbl_ORIGINAL[[#This Row],[Festivo]]=\"No Festivo\",tbl_ORIGINAL[[#This Row],[DIASEM]]<=5),1,0)","v":1},{"$f":"IF(AND(tbl_ORIGINAL[[#This Row],[Festivo]]=\"No Festivo\",tbl_ORIGINAL[[#This Row],[DIASEM]]<=4),1,0)","v":0},{"$f":"IF(AND(tbl_ORIGINAL[[#This Row],[Festivo]]=\"No Festivo\",OR(tbl_ORIGINAL[[#This Row],[DIASEM]]=5,tbl_ORIGINAL[[#This Row],[DIASEM]]=6)),1,0)","v":1}]
["2019-11-30","No festivo",6,{"$f":"IF(AND(tbl_ORIGINAL[[#This Row],[Festivo]]=\"No Festivo\",tbl_ORIGINAL[[#This Row],[DIASEM]]<=5),1,0)","v":0},{"$f":"IF(AND(tbl_ORIGINAL[[#This Row],[Festivo]]=\"No Festivo\",tbl_ORIGINAL[[#This Row],[DIASEM]]<=4),1,0)","v":0},{"$f":"IF(AND(tbl_ORIGINAL[[#This Row],[Festivo]]=\"No Festivo\",OR(tbl_ORIGINAL[[#This Row],[DIASEM]]=5,tbl_ORIGINAL[[#This Row],[DIASEM]]=6)),1,0)","v":1}]
["2019-12-01","No festivo",7,{"$f":"IF(AND(tbl_ORIGINAL[[#This Row],[Festivo]]=\"No Festivo\",tbl_ORIGINAL[[#This Row],[DIASEM]]<=5),1,0)","v":0},{"$f":"IF(AND(tbl_ORIGINAL[[#This Row],[Festivo]]=\"No Festivo\",tbl_ORIGINAL[[#This Row],[DIASEM]]<=4),1,0)","v":0},{"$f":"IF(AND(tbl_ORIGINAL[[#This Row],[Festivo]]=\"No Festivo\",OR(tbl_ORIGINAL[[#This Row],[DIASEM]]=5,tbl_ORIGINAL[[#This Row],[DIASEM]]=6)),1,0)","v":0}]
["2019-12-02","No festivo",1,{"$f":"IF(AND(tbl_ORIGINAL[[#This Row],[Festivo]]=\"No Festivo\",tbl_ORIGINAL[[#This Row],[DIASEM]]<=5),1,0)","v":1},{"$f":"IF(AND(tbl_ORIGINAL[[#This Row],[Festivo]]=\"No Festivo\",tbl_ORIGINAL[[#This Row],[DIASEM]]<=4),1,0)","v":1},{"$f":"IF(AND(tbl_ORIGINAL[[#This Row],[Festivo]]=\"No Festivo\",OR(tbl_ORIGINAL[[#This Row],[DIASEM]]=5,tbl_ORIGINAL[[#This Row],[DIASEM]]=6)),1,0)","v":0}]
["2019-12-03","No festivo",2,{"$f":"IF(AND(tbl_ORIGINAL[[#This Row],[Festivo]]=\"No Festivo\",tbl_ORIGINAL[[#This Row],[DIASEM]]<=5),1,0)","v":1},{"$f":"IF(AND(tbl_ORIGINAL[[#This Row],[Festivo]]=\"No Festivo\",tbl_ORIGINAL[[#This Row],[DIASEM]]<=4),1,0)","v":1},{"$f":"IF(AND(tbl_ORIGINAL[[#This Row],[Festivo]]=\"No Festivo\",OR(tbl_ORIGINAL[[#This Row],[DIASEM]]=5,tbl_ORIGINAL[[#This Row],[DIASEM]]=6)),1,0)","v":0}]
["2019-12-04","No festivo",3,{"$f":"IF(AND(tbl_ORIGINAL[[#This Row],[Festivo]]=\"No Festivo\",tbl_ORIGINAL[[#This Row],[DIASEM]]<=5),1,0)","v":1},{"$f":"IF(AND(tbl_ORIGINAL[[#This Row],[Festivo]]=\"No Festivo\",tbl_ORIGINAL[[#This Row],[DIASEM]]<=4),1,0)","v":1},{"$f":"IF(AND(tbl_ORIGINAL[[#This Row],[Festivo]]=\"No Festivo\",OR(tbl_ORIGINAL[[#This Row],[DIASEM]]=5,tbl_ORIGINAL[[#This Row],[DIASEM]]=6)),1,0)","v":0}]
["2019-12-05","No festivo",4,{"$f":"IF(AND(tbl_ORIGINAL[[#This Row],[Festivo]]=\"No Festivo\",tbl_ORIGINAL[[#This Row],[DIASEM]]<=5),1,0)","v":1},{"$f":"IF(AND(tbl_ORIGINAL[[#This Row],[Festivo]]=\"No Festivo\",tbl_ORIGINAL[[#This Row],[DIASEM]]<=4),1,0)","v":1},{"$f":"IF(AND(tbl_ORIGINAL[[#This Row],[Festivo]]=\"No Festivo\",OR(tbl_ORIGINAL[[#This Row],[DIASEM]]=5,tbl_ORIGINAL[[#This Row],[DIASEM]]=6)),1,0)","v":0}]
["2019-12-06","No festivo",5,{"$f":"IF(AND(tbl_ORIGINAL[[#This Row],[Festivo]]=\"No Festivo\",tbl_ORIGINAL[[#This Row],[DIASEM]]<=5),1,0)","v":1},{"$f":"IF(AND(tbl_ORIGINAL[[#This Row],[Festivo]]=\"No Festivo\",tbl_ORIGINAL[[#This Row],[DIASEM]]<=4),1,0)","v":0},{"$f":"IF(AND(tbl_ORIGINAL[[#This Row],[Festivo]]=\"No Festivo\",OR(tbl_ORIGINAL[[#This Row],[DIASEM]]=5,tbl_ORIGINAL[[#This Row],[DIASEM]]=6)),1,0)","v":1}]
["2019-12-07","No festivo",6,{"$f":"IF(AND(tbl_ORIGINAL[[#This Row],[Festivo]]=\"No Festivo\",tbl_ORIGINAL[[#This Row],[DIASEM]]<=5),1,0)","v":0},{"$f":"IF(AND(tbl_ORIGINAL[[#This Row],[Festivo]]=\"No Festivo\",tbl_ORIGINAL[[#This Row],[DIASEM]]<=4),1,0)","v":0},{"$f":"IF(AND(tbl_ORIGINAL[[#This Row],[Festivo]]=\"No Festivo\",OR(tbl_ORIGINAL[[#This Row],[DIASEM]]=5,tbl_ORIGINAL[[#This Row],[DIASEM]]=6)),1,0)","v":1}]
["2019-12-08","Festivo",7,{"$f":"IF(AND(tbl_ORIGINAL[[#This Row],[Festivo]]=\"No Festivo\",tbl_ORIGINAL[[#This Row],[DIASEM]]<=5),1,0)","v":0},{"$f":"IF(AND(tbl_ORIGINAL[[#This Row],[Festivo]]=\"No Festivo\",tbl_ORIGINAL[[#This Row],[DIASEM]]<=4),1,0)","v":0},{"$f":"IF(AND(tbl_ORIGINAL[[#This Row],[Festivo]]=\"No Festivo\",OR(tbl_ORIGINAL[[#This Row],[DIASEM]]=5,tbl_ORIGINAL[[#This Row],[DIASEM]]=6)),1,0)","v":0}]
["2019-12-09","No festivo",1,{"$f":"IF(AND(tbl_ORIGINAL[[#This Row],[Festivo]]=\"No Festivo\",tbl_ORIGINAL[[#This Row],[DIASEM]]<=5),1,0)","v":1},{"$f":"IF(AND(tbl_ORIGINAL[[#This Row],[Festivo]]=\"No Festivo\",tbl_ORIGINAL[[#This Row],[DIASEM]]<=4),1,0)","v":1},{"$f":"IF(AND(tbl_ORIGINAL[[#This Row],[Festivo]]=\"No Festivo\",OR(tbl_ORIGINAL[[#This Row],[DIASEM]]=5,tbl_ORIGINAL[[#This Row],[DIASEM]]=6)),1,0)","v":0}]
["2019-12-10","No festivo",2,{"$f":"IF(AND(tbl_ORIGINAL[[#This Row],[Festivo]]=\"No Festivo\",tbl_ORIGINAL[[#This Row],[DIASEM]]<=5),1,0)","v":1},{"$f":"IF(AND(tbl_ORIGINAL[[#This Row],[Festivo]]=\"No Festivo\",tbl_ORIGINAL[[#This Row],[DIASEM]]<=4),1,0)","v":1},{"$f":"IF(AND(tbl_ORIGINAL[[#This Row],[Festivo]]=\"No Festivo\",OR(tbl_ORIGINAL[[#This Row],[DIASEM]]=5,tbl_ORIGINAL[[#This Row],[DIASEM]]=6)),1,0)","v":0}]
["2019-12-11","No festivo",3,{"$f":"IF(AND(tbl_ORIGINAL[[#This Row],[Festivo]]=\"No Festivo\",tbl_ORIGINAL[[#This Row],[DIASEM]]<=5),1,0)","v":1},{"$f":"IF(AND(tbl_ORIGINAL[[#This Row],[Festivo]]=\"No Festivo\",tbl_ORIGINAL[[#This Row],[DIASEM]]<=4),1,0)","v":1},{"$f":"IF(AND(tbl_ORIGINAL[[#This Row],[Festivo]]=\"No Festivo\",OR(tbl_ORIGINAL[[#This Row],[DIASEM]]=5,tbl_ORIGINAL[[#This Row],[DIASEM]]=6)),1,0)","v":0}]
["2019-12-12","No festivo",4,{"$f":"IF(AND(tbl_ORIGINAL[[#This Row],[Festivo]]=\"No Festivo\",tbl_ORIGINAL[[#This Row],[DIASEM]]<=5),1,0)","v":1},{"$f":"IF(AND(tbl_ORIGINAL[[#This Row],[Festivo]]=\"No Festivo\",tbl_ORIGINAL[[#This Row],[DIASEM]]<=4),1,0)","v":1},{"$f":"IF(AND(tbl_ORIGINAL[[#This Row],[Festivo]]=\"No Festivo\",OR(tbl_ORIGINAL[[#This Row],[DIASEM]]=5,tbl_ORIGINAL[[#This Row],[DIASEM]]=6)),1,0)","v":0}]
["2019-12-13","No festivo",5,{"$f":"IF(AND(tbl_ORIGINAL[[#This Row],[Festivo]]=\"No Festivo\",tbl_ORIGINAL[[#This Row],[DIASEM]]<=5),1,0)","v":1},{"$f":"IF(AND(tbl_ORIGINAL[[#This Row],[Festivo]]=\"No Festivo\",tbl_ORIGINAL[[#This Row],[DIASEM]]<=4),1,0)","v":0},{"$f":"IF(AND(tbl_ORIGINAL[[#This Row],[Festivo]]=\"No Festivo\",OR(tbl_ORIGINAL[[#This Row],[DIASEM]]=5,tbl_ORIGINAL[[#This Row],[DIASEM]]=6)),1,0)","v":1}]
["2019-12-14","No festivo",6,{"$f":"IF(AND(tbl_ORIGINAL[[#This Row],[Festivo]]=\"No Festivo\",tbl_ORIGINAL[[#This Row],[DIASEM]]<=5),1,0)","v":0},{"$f":"IF(AND(tbl_ORIGINAL[[#This Row],[Festivo]]=\"No Festivo\",tbl_ORIGINAL[[#This Row],[DIASEM]]<=4),1,0)","v":0},{"$f":"IF(AND(tbl_ORIGINAL[[#This Row],[Festivo]]=\"No Festivo\",OR(tbl_ORIGINAL[[#This Row],[DIASEM]]=5,tbl_ORIGINAL[[#This Row],[DIASEM]]=6)),1,0)","v":1}]
["2019-12-15","No festivo",7,{"$f":"IF(AND(tbl_ORIGINAL[[#This Row],[Festivo]]=\"No Festivo\",tbl_ORIGINAL[[#This Row],[DIASEM]]<=5),1,0)","v":0},{"$f":"IF(AND(tbl_ORIGINAL[[#This Row],[Festivo]]=\"No Festivo\",tbl_ORIGINAL[[#This Row],[DIASEM]]<=4),1,0)","v":0},{"$f":"IF(AND(tbl_ORIGINAL[[#This Row],[Festivo]]=\"No Festivo\",OR(tbl_ORIGINAL[[#This Row],[DIASEM]]=5,tbl_ORIGINAL[[#This Row],[DIASEM]]=6)),1,0)","v":0}]
["2019-12-16","No festivo",1,{"$f":"IF(AND(tbl_ORIGINAL[[#This Row],[Festivo]]=\"No Festivo\",tbl_ORIGINAL[[#This Row],[DIASEM]]<=5),1,0)","v":1},{"$f":"IF(AND(tbl_ORIGINAL[[#This Row],[Festivo]]=\"No Festivo\",tbl_ORIGINAL[[#This Row],[DIASEM]]<=4),1,0)","v":1},{"$f":"IF(AND(tbl_ORIGINAL[[#This Row],[Festivo]]=\"No Festivo\",OR(tbl_ORIGINAL[[#This Row],[DIASEM]]=5,tbl_ORIGINAL[[#This Row],[DIASEM]]=6)),1,0)","v":0}]
["2019-12-17","No festivo",2,{"$f":"IF(AND(tbl_ORIGINAL[[#This Row],[Festivo]]=\"No Festivo\",tbl_ORIGINAL[[#This Row],[DIASEM]]<=5),1,0)","v":1},{"$f":"IF(AND(tbl_ORIGINAL[[#This Row],[Festivo]]=\"No Festivo\",tbl_ORIGINAL[[#This Row],[DIASEM]]<=4),1,0)","v":1},{"$f":"IF(AND(tbl_ORIGINAL[[#This Row],[Festivo]]=\"No Festivo\",OR(tbl_ORIGINAL[[#This Row],[DIASEM]]=5,tbl_ORIGINAL[[#This Row],[DIASEM]]=6)),1,0)","v":0}]
["2019-12-18","No festivo",3,{"$f":"IF(AND(tbl_ORIGINAL[[#This Row],[Festivo]]=\"No Festivo\",tbl_ORIGINAL[[#This Row],[DIASEM]]<=5),1,0)","v":1},{"$f":"IF(AND(tbl_ORIGINAL[[#This Row],[Festivo]]=\"No Festivo\",tbl_ORIGINAL[[#This Row],[DIASEM]]<=4),1,0)","v":1},{"$f":"IF(AND(tbl_ORIGINAL[[#This Row],[Festivo]]=\"No Festivo\",OR(tbl_ORIGINAL[[#This Row],[DIASEM]]=5,tbl_ORIGINAL[[#This Row],[DIASEM]]=6)),1,0)","v":0}]
["2019-12-19","No festivo",4,{"$f":"IF(AND(tbl_ORIGINAL[[#This Row],[Festivo]]=\"No Festivo\",tbl_ORIGINAL[[#This Row],[DIASEM]]<=5),1,0)","v":1},{"$f":"IF(AND(tbl_ORIGINAL[[#This Row],[Festivo]]=\"No Festivo\",tbl_ORIGINAL[[#This Row],[DIASEM]]<=4),1,0)","v":1},{"$f":"IF(AND(tbl_ORIGINAL[[#This Row],[Festivo]]=\"No Festivo\",OR(tbl_ORIGINAL[[#This Row],[DIASEM]]=5,tbl_ORIGINAL[[#This Row],[DIASEM]]=6)),1,0)","v":0}]
["2019-12-20","No festivo",5,{"$f":"IF(AND(tbl_ORIGINAL[[#This Row],[Festivo]]=\"No Festivo\",tbl_ORIGINAL[[#This Row],[DIASEM]]<=5),1,0)","v":1},{"$f":"IF(AND(tbl_ORIGINAL[[#This Row],[Festivo]]=\"No Festivo\",tbl_ORIGINAL[[#This Row],[DIASEM]]<=4),1,0)","v":0},{"$f":"IF(AND(tbl_ORIGINAL[[#This Row],[Festivo]]=\"No Festivo\",OR(tbl_ORIGINAL[[#This Row],[DIASEM]]=5,tbl_ORIGINAL[[#This Row],[DIASEM]]=6)),1,0)","v":1}]
["2019-12-21","No festivo",6,{"$f":"IF(AND(tbl_ORIGINAL[[#This Row],[Festivo]]=\"No Festivo\",tbl_ORIGINAL[[#This Row],[DIASEM]]<=5),1,0)","v":0},{"$f":"IF(AND(tbl_ORIGINAL[[#This Row],[Festivo]]=\"No Festivo\",tbl_ORIGINAL[[#This Row],[DIASEM]]<=4),1,0)","v":0},{"$f":"IF(AND(tbl_ORIGINAL[[#This Row],[Festivo]]=\"No Festivo\",OR(tbl_ORIGINAL[[#This Row],[DIASEM]]=5,tbl_ORIGINAL[[#This Row],[DIASEM]]=6)),1,0)","v":1}]
["2019-12-22","No festivo",7,{"$f":"IF(AND(tbl_ORIGINAL[[#This Row],[Festivo]]=\"No Festivo\",tbl_ORIGINAL[[#This Row],[DIASEM]]<=5),1,0)","v":0},{"$f":"IF(AND(tbl_ORIGINAL[[#This Row],[Festivo]]=\"No Festivo\",tbl_ORIGINAL[[#This Row],[DIASEM]]<=4),1,0)","v":0},{"$f":"IF(AND(tbl_ORIGINAL[[#This Row],[Festivo]]=\"No Festivo\",OR(tbl_ORIGINAL[[#This Row],[DIASEM]]=5,tbl_ORIGINAL[[#This Row],[DIASEM]]=6)),1,0)","v":0}]
["2019-12-23","No festivo",1,{"$f":"IF(AND(tbl_ORIGINAL[[#This Row],[Festivo]]=\"No Festivo\",tbl_ORIGINAL[[#This Row],[DIASEM]]<=5),1,0)","v":1},{"$f":"IF(AND(tbl_ORIGINAL[[#This Row],[Festivo]]=\"No Festivo\",tbl_ORIGINAL[[#This Row],[DIASEM]]<=4),1,0)","v":1},{"$f":"IF(AND(tbl_ORIGINAL[[#This Row],[Festivo]]=\"No Festivo\",OR(tbl_ORIGINAL[[#This Row],[DIASEM]]=5,tbl_ORIGINAL[[#This Row],[DIASEM]]=6)),1,0)","v":0}]
["2019-12-24","No festivo",2,{"$f":"IF(AND(tbl_ORIGINAL[[#This Row],[Festivo]]=\"No Festivo\",tbl_ORIGINAL[[#This Row],[DIASEM]]<=5),1,0)","v":1},{"$f":"IF(AND(tbl_ORIGINAL[[#This Row],[Festivo]]=\"No Festivo\",tbl_ORIGINAL[[#This Row],[DIASEM]]<=4),1,0)","v":1},{"$f":"IF(AND(tbl_ORIGINAL[[#This Row],[Festivo]]=\"No Festivo\",OR(tbl_ORIGINAL[[#This Row],[DIASEM]]=5,tbl_ORIGINAL[[#This Row],[DIASEM]]=6)),1,0)","v":0}]
["2019-12-25","Festivo",3,{"$f":"IF(AND(tbl_ORIGINAL[[#This Row],[Festivo]]=\"No Festivo\",tbl_ORIGINAL[[#This Row],[DIASEM]]<=5),1,0)","v":0},{"$f":"IF(AND(tbl_ORIGINAL[[#This Row],[Festivo]]=\"No Festivo\",tbl_ORIGINAL[[#This Row],[DIASEM]]<=4),1,0)","v":0},{"$f":"IF(AND(tbl_ORIGINAL[[#This Row],[Festivo]]=\"No Festivo\",OR(tbl_ORIGINAL[[#This Row],[DIASEM]]=5,tbl_ORIGINAL[[#This Row],[DIASEM]]=6)),1,0)","v":0}]
["2019-12-26","No festivo",4,{"$f":"IF(AND(tbl_ORIGINAL[[#This Row],[Festivo]]=\"No Festivo\",tbl_ORIGINAL[[#This Row],[DIASEM]]<=5),1,0)","v":1},{"$f":"IF(AND(tbl_ORIGINAL[[#This Row],[Festivo]]=\"No Festivo\",tbl_ORIGINAL[[#This Row],[DIASEM]]<=4),1,0)","v":1},{"$f":"IF(AND(tbl_ORIGINAL[[#This Row],[Festivo]]=\"No Festivo\",OR(tbl_ORIGINAL[[#This Row],[DIASEM]]=5,tbl_ORIGINAL[[#This Row],[DIASEM]]=6)),1,0)","v":0}]
["2019-12-27","No festivo",5,{"$f":"IF(AND(tbl_ORIGINAL[[#This Row],[Festivo]]=\"No Festivo\",tbl_ORIGINAL[[#This Row],[DIASEM]]<=5),1,0)","v":1},{"$f":"IF(AND(tbl_ORIGINAL[[#This Row],[Festivo]]=\"No Festivo\",tbl_ORIGINAL[[#This Row],[DIASEM]]<=4),1,0)","v":0},{"$f":"IF(AND(tbl_ORIGINAL[[#This Row],[Festivo]]=\"No Festivo\",OR(tbl_ORIGINAL[[#This Row],[DIASEM]]=5,tbl_ORIGINAL[[#This Row],[DIASEM]]=6)),1,0)","v":1}]
["2019-12-28","No festivo",6,{"$f":"IF(AND(tbl_ORIGINAL[[#This Row],[Festivo]]=\"No Festivo\",tbl_ORIGINAL[[#This Row],[DIASEM]]<=5),1,0)","v":0},{"$f":"IF(AND(tbl_ORIGINAL[[#This Row],[Festivo]]=\"No Festivo\",tbl_ORIGINAL[[#This Row],[DIASEM]]<=4),1,0)","v":0},{"$f":"IF(AND(tbl_ORIGINAL[[#This Row],[Festivo]]=\"No Festivo\",OR(tbl_ORIGINAL[[#This Row],[DIASEM]]=5,tbl_ORIGINAL[[#This Row],[DIASEM]]=6)),1,0)","v":1}]
["2019-12-29","No festivo",7,{"$f":"IF(AND(tbl_ORIGINAL[[#This Row],[Festivo]]=\"No Festivo\",tbl_ORIGINAL[[#This Row],[DIASEM]]<=5),1,0)","v":0},{"$f":"IF(AND(tbl_ORIGINAL[[#This Row],[Festivo]]=\"No Festivo\",tbl_ORIGINAL[[#This Row],[DIASEM]]<=4),1,0)","v":0},{"$f":"IF(AND(tbl_ORIGINAL[[#This Row],[Festivo]]=\"No Festivo\",OR(tbl_ORIGINAL[[#This Row],[DIASEM]]=5,tbl_ORIGINAL[[#This Row],[DIASEM]]=6)),1,0)","v":0}]
["2019-12-30","No festivo",1,{"$f":"IF(AND(tbl_ORIGINAL[[#This Row],[Festivo]]=\"No Festivo\",tbl_ORIGINAL[[#This Row],[DIASEM]]<=5),1,0)","v":1},{"$f":"IF(AND(tbl_ORIGINAL[[#This Row],[Festivo]]=\"No Festivo\",tbl_ORIGINAL[[#This Row],[DIASEM]]<=4),1,0)","v":1},{"$f":"IF(AND(tbl_ORIGINAL[[#This Row],[Festivo]]=\"No Festivo\",OR(tbl_ORIGINAL[[#This Row],[DIASEM]]=5,tbl_ORIGINAL[[#This Row],[DIASEM]]=6)),1,0)","v":0}]
["2019-12-31","No festivo",2,{"$f":"IF(AND(tbl_ORIGINAL[[#This Row],[Festivo]]=\"No Festivo\",tbl_ORIGINAL[[#This Row],[DIASEM]]<=5),1,0)","v":1},{"$f":"IF(AND(tbl_ORIGINAL[[#This Row],[Festivo]]=\"No Festivo\",tbl_ORIGINAL[[#This Row],[DIASEM]]<=4),1,0)","v":1},{"$f":"IF(AND(tbl_ORIGINAL[[#This Row],[Festivo]]=\"No Festivo\",OR(tbl_ORIGINAL[[#This Row],[DIASEM]]=5,tbl_ORIGINAL[[#This Row],[DIASEM]]=6)),1,0)","v":0}]

{"sheet":"Auxiliar","index":3,"n_rows":40,"n_cols":9,"rows_kept":40,"cut":false,"hidden":true,"merged":[]}
[1,"Lunes",null,1,"Enero",null,"Clase 1 Módulo Básico",null,"Básico"]
[2,"Martes",null,2,"Febrero",null,"Clase 2 Módulo Básico",null,"Intermedio"]
[3,"Miércoles",null,3,"Marzo",null,"Clase 3 Módulo Básico",null,"Avanzado I"]
[4,"Jueves",null,4,"Abril",null,"Clase 4 Módulo Básico",null,"Avanzado II"]
[5,"Viernes",null,5,"Mayo",null,"Clase 5 Módulo Básico",null,"Macros"]
[6,"Sábado",null,6,"Junio",null,"Clase 6 Módulo Básico"]
[7,"Domingo",null,7,"Julio",null,"Clase 7 Módulo Básico"]
[null,null,null,8,"Agosto",null,"Clase 8 Módulo Básico"]
[null,null,null,9,"Septiembre",null,"Clase 1 Módulo Intermedio"]
[null,null,null,10,"Octubre",null,"Clase 2 Módulo Intermedio"]
[null,null,null,11,"Noviembre",null,"Clase 3 Módulo Intermedio"]
[null,null,null,12,"Diciembre",null,"Clase 4 Módulo Intermedio"]
[null,null,null,null,null,null,"Clase 5 Módulo Intermedio"]
[null,null,null,null,null,null,"Clase 6 Módulo Intermedio"]
[null,null,null,null,null,null,"Clase 7 Módulo Intermedio"]
[null,null,null,null,null,null,"Clase 8 Módulo Intermedio"]
[null,null,null,null,null,null,"Clase 1 Módulo Avanzado I"]
[null,null,null,null,null,null,"Clase 2 Módulo Avanzado I"]
[null,null,null,null,null,null,"Clase 3 Módulo Avanzado I"]
[null,null,null,null,null,null,"Clase 4 Módulo Avanzado I"]
[null,null,null,null,null,null,"Clase 5 Módulo Avanzado I"]
[null,null,null,null,null,null,"Clase 6 Módulo Avanzado I"]
[null,null,null,null,null,null,"Clase 7 Módulo Avanzado I"]
[null,null,null,null,null,null,"Clase 8 Módulo Avanzado I"]
[null,null,null,null,null,null,"Clase 1 Módulo Avanzado II"]
[null,null,null,null,null,null,"Clase 2 Módulo Avanzado II"]
[null,null,null,null,null,null,"Clase 3 Módulo Avanzado II"]
[null,null,null,null,null,null,"Clase 4 Módulo Avanzado II"]
[null,null,null,null,null,null,"Clase 5 Módulo Avanzado II"]
[null,null,null,null,null,null,"Clase 6 Módulo Avanzado II"]
[null,null,null,null,null,null,"Clase 7 Módulo Avanzado II"]
[null,null,null,null,null,null,"Clase 8 Módulo Avanzado II"]
[null,null,null,null,null,null,"Clase 1 Módulo Macros"]
[null,null,null,null,null,null,"Clase 2 Módulo Macros"]
[null,null,null,null,null,null,"Clase 3 Módulo Macros"]
[null,null,null,null,null,null,"Clase 4 Módulo Macros"]
[null,null,null,null,null,null,"Clase 5 Módulo Macros"]
[null,null,null,null,null,null,"Clase 6 Módulo Macros"]
[null,null,null,null,null,null,"Clase 7 Módulo Macros"]
[null,null,null,null,null,null,"Clase 8 Módulo Macros"]

{"sheet":"qry MODULOS HORARIOS","index":4,"n_rows":4,"n_cols":4,"rows_kept":4,"cut":false,"hidden":false,"merged":[[1,3,1,5],[2,3,2,5],[3,3,4,5]]}
[]
["Inicia desde:","Básico",null,"HORARIO A: de Lunes a Viernes de 7 a 9 a.m."]
["Horario:","Horario B",null,"HORARIO B: de Lunes a Jueves de 6 a 9 p.m."]
[null,null,null,"HORARIO C: Viernes de 6 a 9 p.m.\n                          con Sábados de 8 a 11 a.m."]